Body Name,Body,Date,Department,Beneficiary,Summary of Purpose (SeRCOP),Amount,Merchant Code,Transaction Number,Supplier ID
Sandwell Metropolitan Borough Council,http://www.sandwell.gov.uk/info/200202/performance_and_spending/1079/payments_over_500,01-Aug-17,Total Housing Revenue Account,PPG ARCHITECTURAL COATINGS UK LTD,Total Housing Revenue Account,-1295.10,Material Valuation Account,1718P05_CR00001,01056402
Sandwell Metropolitan Borough Council,http://www.sandwell.gov.uk/info/200202/performance_and_spending/1079/payments_over_500,01-Aug-17,Total Housing Revenue Account,VINCI CONSTRUCTION LTD,Total Housing Revenue Account,19363.16,Contract Payments,1718P05_CR00002,36361
Sandwell Metropolitan Borough Council,http://www.sandwell.gov.uk/info/200202/performance_and_spending/1079/payments_over_500,01-Aug-17,Total Housing Revenue Account,VINCI CONSTRUCTION LTD,Total Housing Revenue Account,2498.65,Contract Payments,1718P05_CR00003,36361
Sandwell Metropolitan Borough Council,http://www.sandwell.gov.uk/info/200202/performance_and_spending/1079/payments_over_500,01-Aug-17,Total Housing Revenue Account,ENVIROCALL LIMITED,Total Housing Revenue Account,1046.79,Contract Payments,1718P05_CR00004,110475
Sandwell Metropolitan Borough Council,http://www.sandwell.gov.uk/info/200202/performance_and_spending/1079/payments_over_500,01-Aug-17,Total Housing Revenue Account,ENVIROCALL LIMITED,Total Housing Revenue Account,794.33,Contract Payments,1718P05_CR00005,110475
Sandwell Metropolitan Borough Council,http://www.sandwell.gov.uk/info/200202/performance_and_spending/1079/payments_over_500,01-Aug-17,Total Housing Revenue Account,ENVIROCALL LIMITED,Total Housing Revenue Account,1221.45,Contract Payments,1718P05_CR00006,110475
Sandwell Metropolitan Borough Council,http://www.sandwell.gov.uk/info/200202/performance_and_spending/1079/payments_over_500,01-Aug-17,Total Housing Revenue Account,NATIONWIDE WINDOWS LIMITED,Total Housing Revenue Account,885.95,Contract Payments,1718P05_CR00007,108316
Sandwell Metropolitan Borough Council,http://www.sandwell.gov.uk/info/200202/performance_and_spending/1079/payments_over_500,01-Aug-17,Total Housing Revenue Account,NATIONWIDE WINDOWS LIMITED,Total Housing Revenue Account,1126.31,Contract Payments,1718P05_CR00008,108316
Sandwell Metropolitan Borough Council,http://www.sandwell.gov.uk/info/200202/performance_and_spending/1079/payments_over_500,16-Aug-17,Total Housing Revenue Account,BUNZL CLEANING & HYGIENE SUPPLIES,Total Housing Revenue Account,726.36,Materials & Consumables,1718P05_CR00009,1946
Sandwell Metropolitan Borough Council,http://www.sandwell.gov.uk/info/200202/performance_and_spending/1079/payments_over_500,03-Aug-17,Total Housing Revenue Account,TILES UK LTD,Total Housing Revenue Account,660.00,Material Valuation Account,1718P05_CR00010,98566
Sandwell Metropolitan Borough Council,http://www.sandwell.gov.uk/info/200202/performance_and_spending/1079/payments_over_500,21-Aug-17,Total Housing Revenue Account,STAX TRADE CENTRES PLC,Total Housing Revenue Account,765.60,Material Valuation Account,1718P05_CR00011,16810
Sandwell Metropolitan Borough Council,http://www.sandwell.gov.uk/info/200202/performance_and_spending/1079/payments_over_500,07-Aug-17,Total Housing Revenue Account,INDUSTRIAL MAINTENANCE GROUP LTD,Total Housing Revenue Account,750.00,Material Valuation Account,1718P05_CR00012,01067984
Sandwell Metropolitan Borough Council,http://www.sandwell.gov.uk/info/200202/performance_and_spending/1079/payments_over_500,01-Aug-17,Total Housing Revenue Account,RICHMOND CABINET COMPANY LIMITED,Total Housing Revenue Account,1067.70,Material Valuation Account,1718P05_CR00013,40976
Sandwell Metropolitan Borough Council,http://www.sandwell.gov.uk/info/200202/performance_and_spending/1079/payments_over_500,18-Jul-17,Total Housing Revenue Account,RICHMOND CABINET COMPANY LIMITED,Total Housing Revenue Account,853.95,Material Valuation Account,1718P05_CR00014,40976
Sandwell Metropolitan Borough Council,http://www.sandwell.gov.uk/info/200202/performance_and_spending/1079/payments_over_500,18-Jul-17,Total Housing Revenue Account,RICHMOND CABINET COMPANY LIMITED,Total Housing Revenue Account,572.70,Material Valuation Account,1718P05_CR00015,40976
Sandwell Metropolitan Borough Council,http://www.sandwell.gov.uk/info/200202/performance_and_spending/1079/payments_over_500,01-Aug-17,Total Housing Revenue Account,RICHMOND CABINET COMPANY LIMITED,Total Housing Revenue Account,1570.65,Material Valuation Account,1718P05_CR00016,40976
Sandwell Metropolitan Borough Council,http://www.sandwell.gov.uk/info/200202/performance_and_spending/1079/payments_over_500,01-Aug-17,Total Housing Revenue Account,RICHMOND CABINET COMPANY LIMITED,Total Housing Revenue Account,1050.00,Material Valuation Account,1718P05_CR00017,40976
Sandwell Metropolitan Borough Council,http://www.sandwell.gov.uk/info/200202/performance_and_spending/1079/payments_over_500,01-Aug-17,Total Housing Revenue Account,RICHMOND CABINET COMPANY LIMITED,Total Housing Revenue Account,1699.90,Material Valuation Account,1718P05_CR00018,40976
Sandwell Metropolitan Borough Council,http://www.sandwell.gov.uk/info/200202/performance_and_spending/1079/payments_over_500,09-Aug-17,Total Housing Revenue Account,RICHMOND CABINET COMPANY LIMITED,Total Housing Revenue Account,1653.60,Material Valuation Account,1718P05_CR00019,40976
Sandwell Metropolitan Borough Council,http://www.sandwell.gov.uk/info/200202/performance_and_spending/1079/payments_over_500,15-Aug-17,Total Housing Revenue Account,RICHMOND CABINET COMPANY LIMITED,Total Housing Revenue Account,1028.10,Material Valuation Account,1718P05_CR00020,40976
Sandwell Metropolitan Borough Council,http://www.sandwell.gov.uk/info/200202/performance_and_spending/1079/payments_over_500,22-Aug-17,Total Housing Revenue Account,RICHMOND CABINET COMPANY LIMITED,Total Housing Revenue Account,515.10,Material Valuation Account,1718P05_CR00021,40976
Sandwell Metropolitan Borough Council,http://www.sandwell.gov.uk/info/200202/performance_and_spending/1079/payments_over_500,01-Aug-17,Total Housing Revenue Account,PPG ARCHITECTURAL COATINGS UK LTD,Total Housing Revenue Account,668.90,Material Valuation Account,1718P05_CR00022,01056402
Sandwell Metropolitan Borough Council,http://www.sandwell.gov.uk/info/200202/performance_and_spending/1079/payments_over_500,01-Aug-17,Total Housing Revenue Account,PPG ARCHITECTURAL COATINGS UK LTD,Total Housing Revenue Account,646.25,Material Valuation Account,1718P05_CR00023,01056402
Sandwell Metropolitan Borough Council,http://www.sandwell.gov.uk/info/200202/performance_and_spending/1079/payments_over_500,01-Aug-17,Total Housing Revenue Account,PPG ARCHITECTURAL COATINGS UK LTD,Total Housing Revenue Account,632.32,Material Valuation Account,1718P05_CR00024,01056402
Sandwell Metropolitan Borough Council,http://www.sandwell.gov.uk/info/200202/performance_and_spending/1079/payments_over_500,18-Aug-17,Total Housing Revenue Account,PPG ARCHITECTURAL COATINGS UK LTD,Total Housing Revenue Account,745.83,Material Valuation Account,1718P05_CR00025,01056402
Sandwell Metropolitan Borough Council,http://www.sandwell.gov.uk/info/200202/performance_and_spending/1079/payments_over_500,01-Aug-17,Total Housing Revenue Account,PERCY DOUGHTY & CO,Total Housing Revenue Account,649.20,Material Valuation Account,1718P05_CR00026,01263558
Sandwell Metropolitan Borough Council,http://www.sandwell.gov.uk/info/200202/performance_and_spending/1079/payments_over_500,09-Aug-17,Total Housing Revenue Account,MONKS & CRANE INDUSTRIAL GROUP LIMITED,Total Housing Revenue Account,712.90,Material Valuation Account,1718P05_CR00027,126574
Sandwell Metropolitan Borough Council,http://www.sandwell.gov.uk/info/200202/performance_and_spending/1079/payments_over_500,25-Aug-17,Total Housing Revenue Account,MONKS & CRANE INDUSTRIAL GROUP LIMITED,Total Housing Revenue Account,712.90,Material Valuation Account,1718P05_CR00028,126574
Sandwell Metropolitan Borough Council,http://www.sandwell.gov.uk/info/200202/performance_and_spending/1079/payments_over_500,09-Aug-17,Total Housing Revenue Account,MIDLAND FIXING SERVICES LTD,Total Housing Revenue Account,644.05,Material Valuation Account,1718P05_CR00029,01037514
Sandwell Metropolitan Borough Council,http://www.sandwell.gov.uk/info/200202/performance_and_spending/1079/payments_over_500,25-Aug-17,Total Housing Revenue Account,MIDLAND FIXING SERVICES LTD,Total Housing Revenue Account,588.16,Material Valuation Account,1718P05_CR00030,01037514
Sandwell Metropolitan Borough Council,http://www.sandwell.gov.uk/info/200202/performance_and_spending/1079/payments_over_500,03-Aug-17,Total Housing Revenue Account,MCD GROUP LIMITED,Total Housing Revenue Account,1485.00,Material Valuation Account,1718P05_CR00031,01161613
Sandwell Metropolitan Borough Council,http://www.sandwell.gov.uk/info/200202/performance_and_spending/1079/payments_over_500,01-Aug-17,Total Housing Revenue Account,JML HARDWARE LTD,Total Housing Revenue Account,640.00,Material Valuation Account,1718P05_CR00032,48639
Sandwell Metropolitan Borough Council,http://www.sandwell.gov.uk/info/200202/performance_and_spending/1079/payments_over_500,03-Aug-17,Total Housing Revenue Account,JML HARDWARE LTD,Total Housing Revenue Account,590.00,Material Valuation Account,1718P05_CR00033,48639
Sandwell Metropolitan Borough Council,http://www.sandwell.gov.uk/info/200202/performance_and_spending/1079/payments_over_500,08-Aug-17,Total Housing Revenue Account,JML HARDWARE LTD,Total Housing Revenue Account,540.00,Material Valuation Account,1718P05_CR00034,48639
Sandwell Metropolitan Borough Council,http://www.sandwell.gov.uk/info/200202/performance_and_spending/1079/payments_over_500,01-Aug-17,Total Housing Revenue Account,JAYS SOURCING GROUP LIMITED,Total Housing Revenue Account,1075.20,Material Valuation Account,1718P05_CR00035,01049335
Sandwell Metropolitan Borough Council,http://www.sandwell.gov.uk/info/200202/performance_and_spending/1079/payments_over_500,25-Aug-17,Total Housing Revenue Account,JAYS SOURCING GROUP LIMITED,Total Housing Revenue Account,824.32,Material Valuation Account,1718P05_CR00036,01049335
Sandwell Metropolitan Borough Council,http://www.sandwell.gov.uk/info/200202/performance_and_spending/1079/payments_over_500,20-Jul-17,Total Housing Revenue Account,INDUSTRIAL MAINTENANCE GROUP LTD,Total Housing Revenue Account,750.00,Material Valuation Account,1718P05_CR00037,01067984
Sandwell Metropolitan Borough Council,http://www.sandwell.gov.uk/info/200202/performance_and_spending/1079/payments_over_500,01-Aug-17,Total Housing Revenue Account,IMPEY SHOWERS LTD,Total Housing Revenue Account,530.99,Material Valuation Account,1718P05_CR00038,103499
Sandwell Metropolitan Borough Council,http://www.sandwell.gov.uk/info/200202/performance_and_spending/1079/payments_over_500,08-Aug-17,Total Housing Revenue Account,HARLOW KIDDERMINSTER LLP,Total Housing Revenue Account,639.00,Material Valuation Account,1718P05_CR00039,104853
Sandwell Metropolitan Borough Council,http://www.sandwell.gov.uk/info/200202/performance_and_spending/1079/payments_over_500,08-Aug-17,Total Housing Revenue Account,HARLOW KIDDERMINSTER LLP,Total Housing Revenue Account,673.90,Material Valuation Account,1718P05_CR00040,104853
Sandwell Metropolitan Borough Council,http://www.sandwell.gov.uk/info/200202/performance_and_spending/1079/payments_over_500,08-Aug-17,Total Housing Revenue Account,HARLOW KIDDERMINSTER LLP,Total Housing Revenue Account,673.90,Material Valuation Account,1718P05_CR00041,104853
Sandwell Metropolitan Borough Council,http://www.sandwell.gov.uk/info/200202/performance_and_spending/1079/payments_over_500,01-Aug-17,Total Housing Revenue Account,HARLOW KIDDERMINSTER LLP,Total Housing Revenue Account,702.00,Material Valuation Account,1718P05_CR00042,104853
Sandwell Metropolitan Borough Council,http://www.sandwell.gov.uk/info/200202/performance_and_spending/1079/payments_over_500,01-Aug-17,Total Housing Revenue Account,HARLOW KIDDERMINSTER LLP,Total Housing Revenue Account,697.56,Material Valuation Account,1718P05_CR00043,104853
Sandwell Metropolitan Borough Council,http://www.sandwell.gov.uk/info/200202/performance_and_spending/1079/payments_over_500,01-Aug-17,Total Housing Revenue Account,HARLOW KIDDERMINSTER LLP,Total Housing Revenue Account,1383.90,Material Valuation Account,1718P05_CR00044,104853
Sandwell Metropolitan Borough Council,http://www.sandwell.gov.uk/info/200202/performance_and_spending/1079/payments_over_500,01-Aug-17,Total Housing Revenue Account,HARLOW KIDDERMINSTER LLP,Total Housing Revenue Account,1347.80,Material Valuation Account,1718P05_CR00045,104853
Sandwell Metropolitan Borough Council,http://www.sandwell.gov.uk/info/200202/performance_and_spending/1079/payments_over_500,01-Aug-17,Total Housing Revenue Account,HARLOW KIDDERMINSTER LLP,Total Housing Revenue Account,781.00,Material Valuation Account,1718P05_CR00046,104853
Sandwell Metropolitan Borough Council,http://www.sandwell.gov.uk/info/200202/performance_and_spending/1079/payments_over_500,01-Aug-17,Total Housing Revenue Account,HARLOW KIDDERMINSTER LLP,Total Housing Revenue Account,673.90,Material Valuation Account,1718P05_CR00047,104853
Sandwell Metropolitan Borough Council,http://www.sandwell.gov.uk/info/200202/performance_and_spending/1079/payments_over_500,19-Jul-17,Total Housing Revenue Account,EDMUNDSONS (WOLVERHAMPTON) LTD,Total Housing Revenue Account,892.55,Material Valuation Account,1718P05_CR00048,91549
Sandwell Metropolitan Borough Council,http://www.sandwell.gov.uk/info/200202/performance_and_spending/1079/payments_over_500,01-Aug-17,Total Housing Revenue Account,EDMUNDSONS (WOLVERHAMPTON) LTD,Total Housing Revenue Account,2010.00,Material Valuation Account,1718P05_CR00049,91549
Sandwell Metropolitan Borough Council,http://www.sandwell.gov.uk/info/200202/performance_and_spending/1079/payments_over_500,01-Aug-17,Total Housing Revenue Account,EDMUNDSONS (WOLVERHAMPTON) LTD,Total Housing Revenue Account,690.80,Material Valuation Account,1718P05_CR00050,91549
Sandwell Metropolitan Borough Council,http://www.sandwell.gov.uk/info/200202/performance_and_spending/1079/payments_over_500,03-Aug-17,Total Housing Revenue Account,EDMUNDSONS (WOLVERHAMPTON) LTD,Total Housing Revenue Account,3072.25,Material Valuation Account,1718P05_CR00051,91549
Sandwell Metropolitan Borough Council,http://www.sandwell.gov.uk/info/200202/performance_and_spending/1079/payments_over_500,03-Aug-17,Total Housing Revenue Account,EDMUNDSONS (WOLVERHAMPTON) LTD,Total Housing Revenue Account,928.00,Material Valuation Account,1718P05_CR00052,91549
Sandwell Metropolitan Borough Council,http://www.sandwell.gov.uk/info/200202/performance_and_spending/1079/payments_over_500,07-Aug-17,Total Housing Revenue Account,EDMUNDSONS (WOLVERHAMPTON) LTD,Total Housing Revenue Account,906.10,Material Valuation Account,1718P05_CR00053,91549
Sandwell Metropolitan Borough Council,http://www.sandwell.gov.uk/info/200202/performance_and_spending/1079/payments_over_500,08-Aug-17,Total Housing Revenue Account,EDMUNDSONS (WOLVERHAMPTON) LTD,Total Housing Revenue Account,502.95,Material Valuation Account,1718P05_CR00054,91549
Sandwell Metropolitan Borough Council,http://www.sandwell.gov.uk/info/200202/performance_and_spending/1079/payments_over_500,08-Aug-17,Total Housing Revenue Account,EDMUNDSONS (WOLVERHAMPTON) LTD,Total Housing Revenue Account,567.35,Material Valuation Account,1718P05_CR00055,91549
Sandwell Metropolitan Borough Council,http://www.sandwell.gov.uk/info/200202/performance_and_spending/1079/payments_over_500,14-Aug-17,Total Housing Revenue Account,EDMUNDSONS (WOLVERHAMPTON) LTD,Total Housing Revenue Account,1704.15,Material Valuation Account,1718P05_CR00056,91549
Sandwell Metropolitan Borough Council,http://www.sandwell.gov.uk/info/200202/performance_and_spending/1079/payments_over_500,14-Aug-17,Total Housing Revenue Account,EDMUNDSONS (WOLVERHAMPTON) LTD,Total Housing Revenue Account,501.46,Material Valuation Account,1718P05_CR00057,91549
Sandwell Metropolitan Borough Council,http://www.sandwell.gov.uk/info/200202/performance_and_spending/1079/payments_over_500,14-Aug-17,Total Housing Revenue Account,EDMUNDSONS (WOLVERHAMPTON) LTD,Total Housing Revenue Account,847.50,Material Valuation Account,1718P05_CR00058,91549
Sandwell Metropolitan Borough Council,http://www.sandwell.gov.uk/info/200202/performance_and_spending/1079/payments_over_500,14-Aug-17,Total Housing Revenue Account,EDMUNDSONS (WOLVERHAMPTON) LTD,Total Housing Revenue Account,622.00,Material Valuation Account,1718P05_CR00059,91549
Sandwell Metropolitan Borough Council,http://www.sandwell.gov.uk/info/200202/performance_and_spending/1079/payments_over_500,24-Aug-17,Total Housing Revenue Account,EDMUNDSONS (WOLVERHAMPTON) LTD,Total Housing Revenue Account,938.75,Material Valuation Account,1718P05_CR00060,91549
Sandwell Metropolitan Borough Council,http://www.sandwell.gov.uk/info/200202/performance_and_spending/1079/payments_over_500,23-Aug-17,Total Housing Revenue Account,EDMUNDSONS (WOLVERHAMPTON) LTD,Total Housing Revenue Account,1457.95,Material Valuation Account,1718P05_CR00061,91549
Sandwell Metropolitan Borough Council,http://www.sandwell.gov.uk/info/200202/performance_and_spending/1079/payments_over_500,24-Aug-17,Total Housing Revenue Account,EDMUNDSONS (WOLVERHAMPTON) LTD,Total Housing Revenue Account,751.00,Material Valuation Account,1718P05_CR00062,91549
Sandwell Metropolitan Borough Council,http://www.sandwell.gov.uk/info/200202/performance_and_spending/1079/payments_over_500,25-Aug-17,Total Housing Revenue Account,EDMUNDSONS (WOLVERHAMPTON) LTD,Total Housing Revenue Account,1781.65,Material Valuation Account,1718P05_CR00063,91549
Sandwell Metropolitan Borough Council,http://www.sandwell.gov.uk/info/200202/performance_and_spending/1079/payments_over_500,01-Aug-17,Total Housing Revenue Account,DARLASTON BUILDERS GROUP LIMITED,Total Housing Revenue Account,607.02,Material Valuation Account,1718P05_CR00064,01069158
Sandwell Metropolitan Borough Council,http://www.sandwell.gov.uk/info/200202/performance_and_spending/1079/payments_over_500,01-Aug-17,Total Housing Revenue Account,DARLASTON BUILDERS GROUP LIMITED,Total Housing Revenue Account,577.88,Material Valuation Account,1718P05_CR00065,01069158
Sandwell Metropolitan Borough Council,http://www.sandwell.gov.uk/info/200202/performance_and_spending/1079/payments_over_500,01-Aug-17,Total Housing Revenue Account,DARLASTON BUILDERS GROUP LIMITED,Total Housing Revenue Account,1067.32,Material Valuation Account,1718P05_CR00066,01069158
Sandwell Metropolitan Borough Council,http://www.sandwell.gov.uk/info/200202/performance_and_spending/1079/payments_over_500,01-Aug-17,Total Housing Revenue Account,DARLASTON BUILDERS GROUP LIMITED,Total Housing Revenue Account,502.19,Material Valuation Account,1718P05_CR00067,01069158
Sandwell Metropolitan Borough Council,http://www.sandwell.gov.uk/info/200202/performance_and_spending/1079/payments_over_500,01-Aug-17,Total Housing Revenue Account,DARLASTON BUILDERS GROUP LIMITED,Total Housing Revenue Account,621.50,Material Valuation Account,1718P05_CR00068,01069158
Sandwell Metropolitan Borough Council,http://www.sandwell.gov.uk/info/200202/performance_and_spending/1079/payments_over_500,01-Aug-17,Total Housing Revenue Account,DARLASTON BUILDERS GROUP LIMITED,Total Housing Revenue Account,916.24,Material Valuation Account,1718P05_CR00069,01069158
Sandwell Metropolitan Borough Council,http://www.sandwell.gov.uk/info/200202/performance_and_spending/1079/payments_over_500,08-Aug-17,Total Housing Revenue Account,DARLASTON BUILDERS GROUP LIMITED,Total Housing Revenue Account,1618.69,Material Valuation Account,1718P05_CR00070,01069158
Sandwell Metropolitan Borough Council,http://www.sandwell.gov.uk/info/200202/performance_and_spending/1079/payments_over_500,01-Aug-17,Total Housing Revenue Account,DARLASTON BUILDERS GROUP LIMITED,Total Housing Revenue Account,941.36,Material Valuation Account,1718P05_CR00071,01069158
Sandwell Metropolitan Borough Council,http://www.sandwell.gov.uk/info/200202/performance_and_spending/1079/payments_over_500,01-Aug-17,Total Housing Revenue Account,DARLASTON BUILDERS GROUP LIMITED,Total Housing Revenue Account,941.36,Material Valuation Account,1718P05_CR00072,01069158
Sandwell Metropolitan Borough Council,http://www.sandwell.gov.uk/info/200202/performance_and_spending/1079/payments_over_500,13-Jul-17,Total Housing Revenue Account,CITY PLUMBING SUPPLIES HOLDINGS LTD,Total Housing Revenue Account,695.40,Material Valuation Account,1718P05_CR00073,80733
Sandwell Metropolitan Borough Council,http://www.sandwell.gov.uk/info/200202/performance_and_spending/1079/payments_over_500,13-Jul-17,Total Housing Revenue Account,CITY PLUMBING SUPPLIES HOLDINGS LTD,Total Housing Revenue Account,2877.90,Material Valuation Account,1718P05_CR00074,80733
Sandwell Metropolitan Borough Council,http://www.sandwell.gov.uk/info/200202/performance_and_spending/1079/payments_over_500,19-Jul-17,Total Housing Revenue Account,CITY PLUMBING SUPPLIES HOLDINGS LTD,Total Housing Revenue Account,544.80,Material Valuation Account,1718P05_CR00075,80733
Sandwell Metropolitan Borough Council,http://www.sandwell.gov.uk/info/200202/performance_and_spending/1079/payments_over_500,19-Jul-17,Total Housing Revenue Account,CITY PLUMBING SUPPLIES HOLDINGS LTD,Total Housing Revenue Account,2949.15,Material Valuation Account,1718P05_CR00076,80733
Sandwell Metropolitan Borough Council,http://www.sandwell.gov.uk/info/200202/performance_and_spending/1079/payments_over_500,01-Aug-17,Total Housing Revenue Account,CITY PLUMBING SUPPLIES HOLDINGS LTD,Total Housing Revenue Account,718.80,Material Valuation Account,1718P05_CR00077,80733
Sandwell Metropolitan Borough Council,http://www.sandwell.gov.uk/info/200202/performance_and_spending/1079/payments_over_500,01-Aug-17,Total Housing Revenue Account,CITY PLUMBING SUPPLIES HOLDINGS LTD,Total Housing Revenue Account,3062.30,Material Valuation Account,1718P05_CR00078,80733
Sandwell Metropolitan Borough Council,http://www.sandwell.gov.uk/info/200202/performance_and_spending/1079/payments_over_500,08-Aug-17,Total Housing Revenue Account,CITY PLUMBING SUPPLIES HOLDINGS LTD,Total Housing Revenue Account,3422.70,Material Valuation Account,1718P05_CR00079,80733
Sandwell Metropolitan Borough Council,http://www.sandwell.gov.uk/info/200202/performance_and_spending/1079/payments_over_500,01-Aug-17,Total Housing Revenue Account,CBS MIDLANDS LTD,Total Housing Revenue Account,501.90,Material Valuation Account,1718P05_CR00080,01020138
Sandwell Metropolitan Borough Council,http://www.sandwell.gov.uk/info/200202/performance_and_spending/1079/payments_over_500,01-Aug-17,Total Housing Revenue Account,CBS MIDLANDS LTD,Total Housing Revenue Account,931.90,Material Valuation Account,1718P05_CR00081,01020138
Sandwell Metropolitan Borough Council,http://www.sandwell.gov.uk/info/200202/performance_and_spending/1079/payments_over_500,25-Jul-17,Total Housing Revenue Account,CBS MIDLANDS LTD,Total Housing Revenue Account,996.85,Material Valuation Account,1718P05_CR00082,01020138
Sandwell Metropolitan Borough Council,http://www.sandwell.gov.uk/info/200202/performance_and_spending/1079/payments_over_500,25-Jul-17,Total Housing Revenue Account,CBS MIDLANDS LTD,Total Housing Revenue Account,819.70,Material Valuation Account,1718P05_CR00083,01020138
Sandwell Metropolitan Borough Council,http://www.sandwell.gov.uk/info/200202/performance_and_spending/1079/payments_over_500,08-Aug-17,Total Housing Revenue Account,CBS MIDLANDS LTD,Total Housing Revenue Account,1275.30,Material Valuation Account,1718P05_CR00084,01020138
Sandwell Metropolitan Borough Council,http://www.sandwell.gov.uk/info/200202/performance_and_spending/1079/payments_over_500,08-Aug-17,Total Housing Revenue Account,CBS MIDLANDS LTD,Total Housing Revenue Account,1297.95,Material Valuation Account,1718P05_CR00085,01020138
Sandwell Metropolitan Borough Council,http://www.sandwell.gov.uk/info/200202/performance_and_spending/1079/payments_over_500,15-Aug-17,Total Housing Revenue Account,CBS MIDLANDS LTD,Total Housing Revenue Account,839.79,Material Valuation Account,1718P05_CR00086,01020138
Sandwell Metropolitan Borough Council,http://www.sandwell.gov.uk/info/200202/performance_and_spending/1079/payments_over_500,18-Aug-17,Total Housing Revenue Account,CBS MIDLANDS LTD,Total Housing Revenue Account,743.00,Material Valuation Account,1718P05_CR00087,01020138
Sandwell Metropolitan Borough Council,http://www.sandwell.gov.uk/info/200202/performance_and_spending/1079/payments_over_500,18-Aug-17,Total Housing Revenue Account,CBS MIDLANDS LTD,Total Housing Revenue Account,517.00,Material Valuation Account,1718P05_CR00088,01020138
Sandwell Metropolitan Borough Council,http://www.sandwell.gov.uk/info/200202/performance_and_spending/1079/payments_over_500,18-Aug-17,Total Housing Revenue Account,CBS MIDLANDS LTD,Total Housing Revenue Account,662.55,Material Valuation Account,1718P05_CR00089,01020138
Sandwell Metropolitan Borough Council,http://www.sandwell.gov.uk/info/200202/performance_and_spending/1079/payments_over_500,22-Aug-17,Total Housing Revenue Account,CBS MIDLANDS LTD,Total Housing Revenue Account,725.10,Material Valuation Account,1718P05_CR00090,01020138
Sandwell Metropolitan Borough Council,http://www.sandwell.gov.uk/info/200202/performance_and_spending/1079/payments_over_500,25-Aug-17,Total Housing Revenue Account,CBS MIDLANDS LTD,Total Housing Revenue Account,677.00,Material Valuation Account,1718P05_CR00091,01020138
Sandwell Metropolitan Borough Council,http://www.sandwell.gov.uk/info/200202/performance_and_spending/1079/payments_over_500,25-Aug-17,Total Housing Revenue Account,CBS MIDLANDS LTD,Total Housing Revenue Account,907.28,Material Valuation Account,1718P05_CR00092,01020138
Sandwell Metropolitan Borough Council,http://www.sandwell.gov.uk/info/200202/performance_and_spending/1079/payments_over_500,01-Aug-17,Total Housing Revenue Account,CARVER (WOLVERHAMPTON) LTD,Total Housing Revenue Account,875.80,Material Valuation Account,1718P05_CR00093,01119618
Sandwell Metropolitan Borough Council,http://www.sandwell.gov.uk/info/200202/performance_and_spending/1079/payments_over_500,01-Aug-17,Total Housing Revenue Account,CARVER (WOLVERHAMPTON) LTD,Total Housing Revenue Account,3168.80,Material Valuation Account,1718P05_CR00094,01119618
Sandwell Metropolitan Borough Council,http://www.sandwell.gov.uk/info/200202/performance_and_spending/1079/payments_over_500,01-Aug-17,Total Housing Revenue Account,CARVER (WOLVERHAMPTON) LTD,Total Housing Revenue Account,1508.50,Material Valuation Account,1718P05_CR00095,01119618
Sandwell Metropolitan Borough Council,http://www.sandwell.gov.uk/info/200202/performance_and_spending/1079/payments_over_500,01-Aug-17,Total Housing Revenue Account,CARVER (WOLVERHAMPTON) LTD,Total Housing Revenue Account,517.30,Material Valuation Account,1718P05_CR00096,01119618
Sandwell Metropolitan Borough Council,http://www.sandwell.gov.uk/info/200202/performance_and_spending/1079/payments_over_500,01-Aug-17,Total Housing Revenue Account,CARVER (WOLVERHAMPTON) LTD,Total Housing Revenue Account,635.10,Material Valuation Account,1718P05_CR00097,01119618
Sandwell Metropolitan Borough Council,http://www.sandwell.gov.uk/info/200202/performance_and_spending/1079/payments_over_500,01-Aug-17,Total Housing Revenue Account,CARVER (WOLVERHAMPTON) LTD,Total Housing Revenue Account,634.68,Material Valuation Account,1718P05_CR00098,01119618
Sandwell Metropolitan Borough Council,http://www.sandwell.gov.uk/info/200202/performance_and_spending/1079/payments_over_500,01-Aug-17,Total Housing Revenue Account,CARVER (WOLVERHAMPTON) LTD,Total Housing Revenue Account,925.55,Material Valuation Account,1718P05_CR00099,01119618
Sandwell Metropolitan Borough Council,http://www.sandwell.gov.uk/info/200202/performance_and_spending/1079/payments_over_500,01-Aug-17,Total Housing Revenue Account,CARVER (WOLVERHAMPTON) LTD,Total Housing Revenue Account,763.24,Material Valuation Account,1718P05_CR00100,01119618
Sandwell Metropolitan Borough Council,http://www.sandwell.gov.uk/info/200202/performance_and_spending/1079/payments_over_500,01-Aug-17,Total Housing Revenue Account,CARVER (WOLVERHAMPTON) LTD,Total Housing Revenue Account,898.02,Material Valuation Account,1718P05_CR00101,01119618
Sandwell Metropolitan Borough Council,http://www.sandwell.gov.uk/info/200202/performance_and_spending/1079/payments_over_500,01-Aug-17,Total Housing Revenue Account,CARVER (WOLVERHAMPTON) LTD,Total Housing Revenue Account,613.42,Material Valuation Account,1718P05_CR00102,01119618
Sandwell Metropolitan Borough Council,http://www.sandwell.gov.uk/info/200202/performance_and_spending/1079/payments_over_500,01-Aug-17,Total Housing Revenue Account,CARVER (WOLVERHAMPTON) LTD,Total Housing Revenue Account,539.65,Material Valuation Account,1718P05_CR00103,01119618
Sandwell Metropolitan Borough Council,http://www.sandwell.gov.uk/info/200202/performance_and_spending/1079/payments_over_500,02-Aug-17,Total Housing Revenue Account,CARVER (WOLVERHAMPTON) LTD,Total Housing Revenue Account,819.25,Material Valuation Account,1718P05_CR00104,01119618
Sandwell Metropolitan Borough Council,http://www.sandwell.gov.uk/info/200202/performance_and_spending/1079/payments_over_500,04-Aug-17,Total Housing Revenue Account,CARVER (WOLVERHAMPTON) LTD,Total Housing Revenue Account,1287.52,Material Valuation Account,1718P05_CR00105,01119618
Sandwell Metropolitan Borough Council,http://www.sandwell.gov.uk/info/200202/performance_and_spending/1079/payments_over_500,08-Aug-17,Total Housing Revenue Account,CARVER (WOLVERHAMPTON) LTD,Total Housing Revenue Account,1110.31,Material Valuation Account,1718P05_CR00106,01119618
Sandwell Metropolitan Borough Council,http://www.sandwell.gov.uk/info/200202/performance_and_spending/1079/payments_over_500,09-Aug-17,Total Housing Revenue Account,CARVER (WOLVERHAMPTON) LTD,Total Housing Revenue Account,807.67,Material Valuation Account,1718P05_CR00107,01119618
Sandwell Metropolitan Borough Council,http://www.sandwell.gov.uk/info/200202/performance_and_spending/1079/payments_over_500,10-Aug-17,Total Housing Revenue Account,CARVER (WOLVERHAMPTON) LTD,Total Housing Revenue Account,1329.80,Material Valuation Account,1718P05_CR00108,01119618
Sandwell Metropolitan Borough Council,http://www.sandwell.gov.uk/info/200202/performance_and_spending/1079/payments_over_500,11-Aug-17,Total Housing Revenue Account,CARVER (WOLVERHAMPTON) LTD,Total Housing Revenue Account,677.74,Material Valuation Account,1718P05_CR00109,01119618
Sandwell Metropolitan Borough Council,http://www.sandwell.gov.uk/info/200202/performance_and_spending/1079/payments_over_500,15-Aug-17,Total Housing Revenue Account,CARVER (WOLVERHAMPTON) LTD,Total Housing Revenue Account,781.62,Material Valuation Account,1718P05_CR00110,01119618
Sandwell Metropolitan Borough Council,http://www.sandwell.gov.uk/info/200202/performance_and_spending/1079/payments_over_500,18-Jul-17,Total Housing Revenue Account,BUNZL CLEANING & HYGIENE SUPPLIES,Total Housing Revenue Account,757.60,Material Valuation Account,1718P05_CR00111,1946
Sandwell Metropolitan Borough Council,http://www.sandwell.gov.uk/info/200202/performance_and_spending/1079/payments_over_500,01-Aug-17,Total Housing Revenue Account,BUNZL CLEANING & HYGIENE SUPPLIES,Total Housing Revenue Account,1924.43,Material Valuation Account,1718P05_CR00112,1946
Sandwell Metropolitan Borough Council,http://www.sandwell.gov.uk/info/200202/performance_and_spending/1079/payments_over_500,01-Aug-17,Total Housing Revenue Account,BUNZL CLEANING & HYGIENE SUPPLIES,Total Housing Revenue Account,773.28,Material Valuation Account,1718P05_CR00113,1946
Sandwell Metropolitan Borough Council,http://www.sandwell.gov.uk/info/200202/performance_and_spending/1079/payments_over_500,01-Aug-17,Total Housing Revenue Account,BUNZL CLEANING & HYGIENE SUPPLIES,Total Housing Revenue Account,712.60,Material Valuation Account,1718P05_CR00114,1946
Sandwell Metropolitan Borough Council,http://www.sandwell.gov.uk/info/200202/performance_and_spending/1079/payments_over_500,07-Aug-17,Total Housing Revenue Account,BUNZL CLEANING & HYGIENE SUPPLIES,Total Housing Revenue Account,705.10,Material Valuation Account,1718P05_CR00115,1946
Sandwell Metropolitan Borough Council,http://www.sandwell.gov.uk/info/200202/performance_and_spending/1079/payments_over_500,14-Aug-17,Total Housing Revenue Account,BUNZL CLEANING & HYGIENE SUPPLIES,Total Housing Revenue Account,1440.00,Material Valuation Account,1718P05_CR00116,1946
Sandwell Metropolitan Borough Council,http://www.sandwell.gov.uk/info/200202/performance_and_spending/1079/payments_over_500,16-Aug-17,Total Housing Revenue Account,BUNZL CLEANING & HYGIENE SUPPLIES,Total Housing Revenue Account,711.60,Material Valuation Account,1718P05_CR00117,1946
Sandwell Metropolitan Borough Council,http://www.sandwell.gov.uk/info/200202/performance_and_spending/1079/payments_over_500,27-Jul-17,Total Housing Revenue Account,BGN BOARDS COMPANY LIMITED,Total Housing Revenue Account,721.25,Material Valuation Account,1718P05_CR00118,01015698
Sandwell Metropolitan Borough Council,http://www.sandwell.gov.uk/info/200202/performance_and_spending/1079/payments_over_500,04-Aug-17,Total Housing Revenue Account,BGN BOARDS COMPANY LIMITED,Total Housing Revenue Account,577.00,Material Valuation Account,1718P05_CR00119,01015698
Sandwell Metropolitan Borough Council,http://www.sandwell.gov.uk/info/200202/performance_and_spending/1079/payments_over_500,08-Aug-17,Total Housing Revenue Account,BGN BOARDS COMPANY LIMITED,Total Housing Revenue Account,577.00,Material Valuation Account,1718P05_CR00120,01015698
Sandwell Metropolitan Borough Council,http://www.sandwell.gov.uk/info/200202/performance_and_spending/1079/payments_over_500,16-Aug-17,Total Housing Revenue Account,BGN BOARDS COMPANY LIMITED,Total Housing Revenue Account,577.00,Material Valuation Account,1718P05_CR00121,01015698
Sandwell Metropolitan Borough Council,http://www.sandwell.gov.uk/info/200202/performance_and_spending/1079/payments_over_500,01-Aug-17,Total Housing Revenue Account,ARNOLD LAVER & CO LTD                                                     ,Total Housing Revenue Account,5467.59,Material Valuation Account,1718P05_CR00122,01398491
Sandwell Metropolitan Borough Council,http://www.sandwell.gov.uk/info/200202/performance_and_spending/1079/payments_over_500,09-Aug-17,Total Housing Revenue Account,ARNOLD LAVER & CO LTD                                                     ,Total Housing Revenue Account,3072.00,Material Valuation Account,1718P05_CR00123,01398491
Sandwell Metropolitan Borough Council,http://www.sandwell.gov.uk/info/200202/performance_and_spending/1079/payments_over_500,01-Aug-17,Total Housing Revenue Account,WOODHULL ROOFING LIMITED,Total Housing Revenue Account,1514.95,Contract Payments,1718P05_CR00124,77000864
Sandwell Metropolitan Borough Council,http://www.sandwell.gov.uk/info/200202/performance_and_spending/1079/payments_over_500,01-Aug-17,Total Housing Revenue Account,WOODHULL ROOFING LIMITED,Total Housing Revenue Account,666.58,Contract Payments,1718P05_CR00125,77000864
Sandwell Metropolitan Borough Council,http://www.sandwell.gov.uk/info/200202/performance_and_spending/1079/payments_over_500,01-Aug-17,Total Housing Revenue Account,WOODHULL ROOFING LIMITED,Total Housing Revenue Account,596.73,Contract Payments,1718P05_CR00126,77000864
Sandwell Metropolitan Borough Council,http://www.sandwell.gov.uk/info/200202/performance_and_spending/1079/payments_over_500,01-Aug-17,Total Housing Revenue Account,WOODHULL ROOFING LIMITED,Total Housing Revenue Account,1018.29,Contract Payments,1718P05_CR00127,77000864
Sandwell Metropolitan Borough Council,http://www.sandwell.gov.uk/info/200202/performance_and_spending/1079/payments_over_500,01-Aug-17,Total Housing Revenue Account,WOODHULL ROOFING LIMITED,Total Housing Revenue Account,625.66,Contract Payments,1718P05_CR00128,77000864
Sandwell Metropolitan Borough Council,http://www.sandwell.gov.uk/info/200202/performance_and_spending/1079/payments_over_500,01-Aug-17,Total Housing Revenue Account,WOODHULL ROOFING LIMITED,Total Housing Revenue Account,538.23,Contract Payments,1718P05_CR00129,77000864
Sandwell Metropolitan Borough Council,http://www.sandwell.gov.uk/info/200202/performance_and_spending/1079/payments_over_500,01-Aug-17,Total Housing Revenue Account,WOODHULL ROOFING LIMITED,Total Housing Revenue Account,833.58,Contract Payments,1718P05_CR00130,77000864
Sandwell Metropolitan Borough Council,http://www.sandwell.gov.uk/info/200202/performance_and_spending/1079/payments_over_500,01-Aug-17,Total Housing Revenue Account,WOODHULL ROOFING LIMITED,Total Housing Revenue Account,1445.60,Contract Payments,1718P05_CR00131,77000864
Sandwell Metropolitan Borough Council,http://www.sandwell.gov.uk/info/200202/performance_and_spending/1079/payments_over_500,01-Aug-17,Total Housing Revenue Account,WOODHULL ROOFING LIMITED,Total Housing Revenue Account,1773.60,Contract Payments,1718P05_CR00132,77000864
Sandwell Metropolitan Borough Council,http://www.sandwell.gov.uk/info/200202/performance_and_spending/1079/payments_over_500,01-Aug-17,Total Housing Revenue Account,WOODHULL ROOFING LIMITED,Total Housing Revenue Account,3415.33,Contract Payments,1718P05_CR00133,77000864
Sandwell Metropolitan Borough Council,http://www.sandwell.gov.uk/info/200202/performance_and_spending/1079/payments_over_500,01-Aug-17,Total Housing Revenue Account,VINCI CONSTRUCTION LTD,Total Housing Revenue Account,2188.63,Contract Payments,1718P05_CR00134,36361
Sandwell Metropolitan Borough Council,http://www.sandwell.gov.uk/info/200202/performance_and_spending/1079/payments_over_500,01-Aug-17,Total Housing Revenue Account,VINCI CONSTRUCTION LTD,Total Housing Revenue Account,4173.64,Contract Payments,1718P05_CR00135,36361
Sandwell Metropolitan Borough Council,http://www.sandwell.gov.uk/info/200202/performance_and_spending/1079/payments_over_500,01-Aug-17,Total Housing Revenue Account,VINCI CONSTRUCTION LTD,Total Housing Revenue Account,1657.26,Contract Payments,1718P05_CR00136,36361
Sandwell Metropolitan Borough Council,http://www.sandwell.gov.uk/info/200202/performance_and_spending/1079/payments_over_500,01-Aug-17,Total Housing Revenue Account,VINCI CONSTRUCTION LTD,Total Housing Revenue Account,4405.68,Contract Payments,1718P05_CR00137,36361
Sandwell Metropolitan Borough Council,http://www.sandwell.gov.uk/info/200202/performance_and_spending/1079/payments_over_500,01-Aug-17,Total Housing Revenue Account,VINCI CONSTRUCTION LTD,Total Housing Revenue Account,7087.91,Contract Payments,1718P05_CR00138,36361
Sandwell Metropolitan Borough Council,http://www.sandwell.gov.uk/info/200202/performance_and_spending/1079/payments_over_500,01-Aug-17,Total Housing Revenue Account,VINCI CONSTRUCTION LTD,Total Housing Revenue Account,3479.48,Contract Payments,1718P05_CR00139,36361
Sandwell Metropolitan Borough Council,http://www.sandwell.gov.uk/info/200202/performance_and_spending/1079/payments_over_500,01-Aug-17,Total Housing Revenue Account,VINCI CONSTRUCTION LTD,Total Housing Revenue Account,9853.82,Contract Payments,1718P05_CR00140,36361
Sandwell Metropolitan Borough Council,http://www.sandwell.gov.uk/info/200202/performance_and_spending/1079/payments_over_500,01-Aug-17,Total Housing Revenue Account,VINCI CONSTRUCTION LTD,Total Housing Revenue Account,1505.43,Contract Payments,1718P05_CR00141,36361
Sandwell Metropolitan Borough Council,http://www.sandwell.gov.uk/info/200202/performance_and_spending/1079/payments_over_500,01-Aug-17,Total Housing Revenue Account,VINCI CONSTRUCTION LTD,Total Housing Revenue Account,1120.51,Contract Payments,1718P05_CR00142,36361
Sandwell Metropolitan Borough Council,http://www.sandwell.gov.uk/info/200202/performance_and_spending/1079/payments_over_500,01-Aug-17,Total Housing Revenue Account,VINCI CONSTRUCTION LTD,Total Housing Revenue Account,11513.53,Contract Payments,1718P05_CR00143,36361
Sandwell Metropolitan Borough Council,http://www.sandwell.gov.uk/info/200202/performance_and_spending/1079/payments_over_500,01-Aug-17,Total Housing Revenue Account,VINCI CONSTRUCTION LTD,Total Housing Revenue Account,15688.30,Contract Payments,1718P05_CR00144,36361
Sandwell Metropolitan Borough Council,http://www.sandwell.gov.uk/info/200202/performance_and_spending/1079/payments_over_500,01-Aug-17,Total Housing Revenue Account,VINCI CONSTRUCTION LTD,Total Housing Revenue Account,8992.13,Contract Payments,1718P05_CR00145,36361
Sandwell Metropolitan Borough Council,http://www.sandwell.gov.uk/info/200202/performance_and_spending/1079/payments_over_500,01-Aug-17,Total Housing Revenue Account,VINCI CONSTRUCTION LTD,Total Housing Revenue Account,10829.13,Contract Payments,1718P05_CR00146,36361
Sandwell Metropolitan Borough Council,http://www.sandwell.gov.uk/info/200202/performance_and_spending/1079/payments_over_500,01-Aug-17,Total Housing Revenue Account,VINCI CONSTRUCTION LTD,Total Housing Revenue Account,11476.41,Contract Payments,1718P05_CR00147,36361
Sandwell Metropolitan Borough Council,http://www.sandwell.gov.uk/info/200202/performance_and_spending/1079/payments_over_500,01-Aug-17,Total Housing Revenue Account,VINCI CONSTRUCTION LTD,Total Housing Revenue Account,3950.04,Contract Payments,1718P05_CR00148,36361
Sandwell Metropolitan Borough Council,http://www.sandwell.gov.uk/info/200202/performance_and_spending/1079/payments_over_500,18-Aug-17,Total Housing Revenue Account,VINCI CONSTRUCTION LTD,Total Housing Revenue Account,7613.65,Contract Payments,1718P05_CR00149,36361
Sandwell Metropolitan Borough Council,http://www.sandwell.gov.uk/info/200202/performance_and_spending/1079/payments_over_500,18-Aug-17,Total Housing Revenue Account,VINCI CONSTRUCTION LTD,Total Housing Revenue Account,7702.85,Contract Payments,1718P05_CR00150,36361
Sandwell Metropolitan Borough Council,http://www.sandwell.gov.uk/info/200202/performance_and_spending/1079/payments_over_500,18-Aug-17,Total Housing Revenue Account,VINCI CONSTRUCTION LTD,Total Housing Revenue Account,4491.73,Contract Payments,1718P05_CR00151,36361
Sandwell Metropolitan Borough Council,http://www.sandwell.gov.uk/info/200202/performance_and_spending/1079/payments_over_500,18-Aug-17,Total Housing Revenue Account,VINCI CONSTRUCTION LTD,Total Housing Revenue Account,3550.50,Contract Payments,1718P05_CR00152,36361
Sandwell Metropolitan Borough Council,http://www.sandwell.gov.uk/info/200202/performance_and_spending/1079/payments_over_500,18-Aug-17,Total Housing Revenue Account,VINCI CONSTRUCTION LTD,Total Housing Revenue Account,16872.11,Contract Payments,1718P05_CR00153,36361
Sandwell Metropolitan Borough Council,http://www.sandwell.gov.uk/info/200202/performance_and_spending/1079/payments_over_500,18-Aug-17,Total Housing Revenue Account,VINCI CONSTRUCTION LTD,Total Housing Revenue Account,2526.10,Contract Payments,1718P05_CR00154,36361
Sandwell Metropolitan Borough Council,http://www.sandwell.gov.uk/info/200202/performance_and_spending/1079/payments_over_500,18-Aug-17,Total Housing Revenue Account,VINCI CONSTRUCTION LTD,Total Housing Revenue Account,5008.17,Contract Payments,1718P05_CR00155,36361
Sandwell Metropolitan Borough Council,http://www.sandwell.gov.uk/info/200202/performance_and_spending/1079/payments_over_500,18-Aug-17,Total Housing Revenue Account,VINCI CONSTRUCTION LTD,Total Housing Revenue Account,521.20,Contract Payments,1718P05_CR00156,36361
Sandwell Metropolitan Borough Council,http://www.sandwell.gov.uk/info/200202/performance_and_spending/1079/payments_over_500,18-Aug-17,Total Housing Revenue Account,VINCI CONSTRUCTION LTD,Total Housing Revenue Account,1421.73,Contract Payments,1718P05_CR00157,36361
Sandwell Metropolitan Borough Council,http://www.sandwell.gov.uk/info/200202/performance_and_spending/1079/payments_over_500,18-Aug-17,Total Housing Revenue Account,VINCI CONSTRUCTION LTD,Total Housing Revenue Account,2714.29,Contract Payments,1718P05_CR00158,36361
Sandwell Metropolitan Borough Council,http://www.sandwell.gov.uk/info/200202/performance_and_spending/1079/payments_over_500,25-Aug-17,Total Housing Revenue Account,UK SEARCH LTD,Total Housing Revenue Account,810.00,Externally Purchased Professional Services ,1718P05_CR00159,86285
Sandwell Metropolitan Borough Council,http://www.sandwell.gov.uk/info/200202/performance_and_spending/1079/payments_over_500,01-Aug-17,Total Housing Revenue Account,TYRER BUILDING CONTRACTORS,Total Housing Revenue Account,2494.34,Contract Payments,1718P05_CR00160,77007959
Sandwell Metropolitan Borough Council,http://www.sandwell.gov.uk/info/200202/performance_and_spending/1079/payments_over_500,01-Aug-17,Total Housing Revenue Account,TYRER BUILDING CONTRACTORS,Total Housing Revenue Account,1667.72,Contract Payments,1718P05_CR00161,77007959
Sandwell Metropolitan Borough Council,http://www.sandwell.gov.uk/info/200202/performance_and_spending/1079/payments_over_500,01-Aug-17,Total Housing Revenue Account,TYRER BUILDING CONTRACTORS,Total Housing Revenue Account,12364.29,Contract Payments,1718P05_CR00162,77007959
Sandwell Metropolitan Borough Council,http://www.sandwell.gov.uk/info/200202/performance_and_spending/1079/payments_over_500,01-Aug-17,Total Housing Revenue Account,TYRER BUILDING CONTRACTORS,Total Housing Revenue Account,901.50,Contract Payments,1718P05_CR00163,77007959
Sandwell Metropolitan Borough Council,http://www.sandwell.gov.uk/info/200202/performance_and_spending/1079/payments_over_500,01-Aug-17,Total Housing Revenue Account,TYRER BUILDING CONTRACTORS,Total Housing Revenue Account,1548.93,Contract Payments,1718P05_CR00164,77007959
Sandwell Metropolitan Borough Council,http://www.sandwell.gov.uk/info/200202/performance_and_spending/1079/payments_over_500,01-Aug-17,Total Housing Revenue Account,TYRER BUILDING CONTRACTORS,Total Housing Revenue Account,8294.26,Contract Payments,1718P05_CR00165,77007959
Sandwell Metropolitan Borough Council,http://www.sandwell.gov.uk/info/200202/performance_and_spending/1079/payments_over_500,01-Aug-17,Total Housing Revenue Account,TYRER BUILDING CONTRACTORS,Total Housing Revenue Account,10339.30,Contract Payments,1718P05_CR00166,77007959
Sandwell Metropolitan Borough Council,http://www.sandwell.gov.uk/info/200202/performance_and_spending/1079/payments_over_500,01-Aug-17,Total Housing Revenue Account,TYRER BUILDING CONTRACTORS,Total Housing Revenue Account,1285.50,Contract Payments,1718P05_CR00167,77007959
Sandwell Metropolitan Borough Council,http://www.sandwell.gov.uk/info/200202/performance_and_spending/1079/payments_over_500,01-Aug-17,Total Housing Revenue Account,TYRER BUILDING CONTRACTORS,Total Housing Revenue Account,4185.45,Contract Payments,1718P05_CR00168,77007959
Sandwell Metropolitan Borough Council,http://www.sandwell.gov.uk/info/200202/performance_and_spending/1079/payments_over_500,01-Aug-17,Total Housing Revenue Account,TYRER BUILDING CONTRACTORS,Total Housing Revenue Account,2355.39,Contract Payments,1718P05_CR00169,77007959
Sandwell Metropolitan Borough Council,http://www.sandwell.gov.uk/info/200202/performance_and_spending/1079/payments_over_500,01-Aug-17,Total Housing Revenue Account,TYRER BUILDING CONTRACTORS,Total Housing Revenue Account,2011.38,Contract Payments,1718P05_CR00170,77007959
Sandwell Metropolitan Borough Council,http://www.sandwell.gov.uk/info/200202/performance_and_spending/1079/payments_over_500,01-Aug-17,Total Housing Revenue Account,TYRER BUILDING CONTRACTORS,Total Housing Revenue Account,14603.28,Contract Payments,1718P05_CR00171,77007959
Sandwell Metropolitan Borough Council,http://www.sandwell.gov.uk/info/200202/performance_and_spending/1079/payments_over_500,01-Aug-17,Total Housing Revenue Account,TYRER BUILDING CONTRACTORS,Total Housing Revenue Account,12249.94,Contract Payments,1718P05_CR00172,77007959
Sandwell Metropolitan Borough Council,http://www.sandwell.gov.uk/info/200202/performance_and_spending/1079/payments_over_500,01-Aug-17,Total Housing Revenue Account,TYRER BUILDING CONTRACTORS,Total Housing Revenue Account,2675.58,Contract Payments,1718P05_CR00173,77007959
Sandwell Metropolitan Borough Council,http://www.sandwell.gov.uk/info/200202/performance_and_spending/1079/payments_over_500,01-Aug-17,Total Housing Revenue Account,TYRER BUILDING CONTRACTORS,Total Housing Revenue Account,5212.70,Contract Payments,1718P05_CR00174,77007959
Sandwell Metropolitan Borough Council,http://www.sandwell.gov.uk/info/200202/performance_and_spending/1079/payments_over_500,01-Aug-17,Total Housing Revenue Account,TYRER BUILDING CONTRACTORS,Total Housing Revenue Account,4556.37,Contract Payments,1718P05_CR00175,77007959
Sandwell Metropolitan Borough Council,http://www.sandwell.gov.uk/info/200202/performance_and_spending/1079/payments_over_500,02-Aug-17,Total Housing Revenue Account,TYRER BUILDING CONTRACTORS,Total Housing Revenue Account,7168.31,Contract Payments,1718P05_CR00176,77007959
Sandwell Metropolitan Borough Council,http://www.sandwell.gov.uk/info/200202/performance_and_spending/1079/payments_over_500,02-Aug-17,Total Housing Revenue Account,TYRER BUILDING CONTRACTORS,Total Housing Revenue Account,937.01,Contract Payments,1718P05_CR00177,77007959
Sandwell Metropolitan Borough Council,http://www.sandwell.gov.uk/info/200202/performance_and_spending/1079/payments_over_500,02-Aug-17,Total Housing Revenue Account,TYRER BUILDING CONTRACTORS,Total Housing Revenue Account,3487.99,Contract Payments,1718P05_CR00178,77007959
Sandwell Metropolitan Borough Council,http://www.sandwell.gov.uk/info/200202/performance_and_spending/1079/payments_over_500,02-Aug-17,Total Housing Revenue Account,TYRER BUILDING CONTRACTORS,Total Housing Revenue Account,8404.98,Contract Payments,1718P05_CR00179,77007959
Sandwell Metropolitan Borough Council,http://www.sandwell.gov.uk/info/200202/performance_and_spending/1079/payments_over_500,02-Aug-17,Total Housing Revenue Account,TYRER BUILDING CONTRACTORS,Total Housing Revenue Account,848.29,Contract Payments,1718P05_CR00180,77007959
Sandwell Metropolitan Borough Council,http://www.sandwell.gov.uk/info/200202/performance_and_spending/1079/payments_over_500,23-Aug-17,Total Housing Revenue Account,TYRER BUILDING CONTRACTORS,Total Housing Revenue Account,6330.42,Contract Payments,1718P05_CR00181,77007959
Sandwell Metropolitan Borough Council,http://www.sandwell.gov.uk/info/200202/performance_and_spending/1079/payments_over_500,23-Aug-17,Total Housing Revenue Account,TYRER BUILDING CONTRACTORS,Total Housing Revenue Account,6933.48,Contract Payments,1718P05_CR00182,77007959
Sandwell Metropolitan Borough Council,http://www.sandwell.gov.uk/info/200202/performance_and_spending/1079/payments_over_500,23-Aug-17,Total Housing Revenue Account,TYRER BUILDING CONTRACTORS,Total Housing Revenue Account,1262.19,Contract Payments,1718P05_CR00183,77007959
Sandwell Metropolitan Borough Council,http://www.sandwell.gov.uk/info/200202/performance_and_spending/1079/payments_over_500,23-Aug-17,Total Housing Revenue Account,TYRER BUILDING CONTRACTORS,Total Housing Revenue Account,1753.74,Contract Payments,1718P05_CR00184,77007959
Sandwell Metropolitan Borough Council,http://www.sandwell.gov.uk/info/200202/performance_and_spending/1079/payments_over_500,23-Aug-17,Total Housing Revenue Account,TYRER BUILDING CONTRACTORS,Total Housing Revenue Account,592.29,Contract Payments,1718P05_CR00185,77007959
Sandwell Metropolitan Borough Council,http://www.sandwell.gov.uk/info/200202/performance_and_spending/1079/payments_over_500,23-Aug-17,Total Housing Revenue Account,TYRER BUILDING CONTRACTORS,Total Housing Revenue Account,2563.84,Contract Payments,1718P05_CR00186,77007959
Sandwell Metropolitan Borough Council,http://www.sandwell.gov.uk/info/200202/performance_and_spending/1079/payments_over_500,23-Aug-17,Total Housing Revenue Account,TYRER BUILDING CONTRACTORS,Total Housing Revenue Account,827.61,Contract Payments,1718P05_CR00187,77007959
Sandwell Metropolitan Borough Council,http://www.sandwell.gov.uk/info/200202/performance_and_spending/1079/payments_over_500,23-Aug-17,Total Housing Revenue Account,TYRER BUILDING CONTRACTORS,Total Housing Revenue Account,1431.96,Contract Payments,1718P05_CR00188,77007959
Sandwell Metropolitan Borough Council,http://www.sandwell.gov.uk/info/200202/performance_and_spending/1079/payments_over_500,16-Aug-17,Total Housing Revenue Account,TYRER BUILDING CONTRACTORS,Total Housing Revenue Account,6569.50,Contract Payments,1718P05_CR00189,77007959
Sandwell Metropolitan Borough Council,http://www.sandwell.gov.uk/info/200202/performance_and_spending/1079/payments_over_500,16-Aug-17,Total Housing Revenue Account,TYRER BUILDING CONTRACTORS,Total Housing Revenue Account,6510.19,Contract Payments,1718P05_CR00190,77007959
Sandwell Metropolitan Borough Council,http://www.sandwell.gov.uk/info/200202/performance_and_spending/1079/payments_over_500,16-Aug-17,Total Housing Revenue Account,TYRER BUILDING CONTRACTORS,Total Housing Revenue Account,3267.36,Contract Payments,1718P05_CR00191,77007959
Sandwell Metropolitan Borough Council,http://www.sandwell.gov.uk/info/200202/performance_and_spending/1079/payments_over_500,18-Aug-17,Total Housing Revenue Account,TYRER BUILDING CONTRACTORS,Total Housing Revenue Account,1621.23,Contract Payments,1718P05_CR00192,77007959
Sandwell Metropolitan Borough Council,http://www.sandwell.gov.uk/info/200202/performance_and_spending/1079/payments_over_500,01-Aug-17,Total Housing Revenue Account,TRAVIS PERKINS TRADING CO LTD,Total Housing Revenue Account,3464.88,Materials & Consumables,1718P05_CR00193,01048748
Sandwell Metropolitan Borough Council,http://www.sandwell.gov.uk/info/200202/performance_and_spending/1079/payments_over_500,01-Aug-17,Total Housing Revenue Account,TRAVIS PERKINS TRADING CO LTD,Total Housing Revenue Account,9752.63,Materials & Consumables,1718P05_CR00194,01048748
Sandwell Metropolitan Borough Council,http://www.sandwell.gov.uk/info/200202/performance_and_spending/1079/payments_over_500,01-Aug-17,Total Housing Revenue Account,TRAVIS PERKINS TRADING CO LTD,Total Housing Revenue Account,6871.49,Materials & Consumables,1718P05_CR00195,01048748
Sandwell Metropolitan Borough Council,http://www.sandwell.gov.uk/info/200202/performance_and_spending/1079/payments_over_500,10-Aug-17,Total Housing Revenue Account,TOTAL GAS AND POWER LIMITED,Total Housing Revenue Account,4563.79,Gas,1718P05_CR00196,107605
Sandwell Metropolitan Borough Council,http://www.sandwell.gov.uk/info/200202/performance_and_spending/1079/payments_over_500,01-Aug-17,Total Housing Revenue Account,ORBIS PROTECT LIMITED,Total Housing Revenue Account,1038.92,Contract Payments,1718P05_CR00197,46807
Sandwell Metropolitan Borough Council,http://www.sandwell.gov.uk/info/200202/performance_and_spending/1079/payments_over_500,01-Aug-17,Total Housing Revenue Account,ORBIS PROTECT LIMITED,Total Housing Revenue Account,595.56,Contract Payments,1718P05_CR00198,46807
Sandwell Metropolitan Borough Council,http://www.sandwell.gov.uk/info/200202/performance_and_spending/1079/payments_over_500,10-Aug-17,Total Housing Revenue Account,ORBIS PROTECT LIMITED,Total Housing Revenue Account,1523.59,Contract Payments,1718P05_CR00199,46807
Sandwell Metropolitan Borough Council,http://www.sandwell.gov.uk/info/200202/performance_and_spending/1079/payments_over_500,17-Aug-17,Total Housing Revenue Account,ORBIS PROTECT LIMITED,Total Housing Revenue Account,952.28,Contract Payments,1718P05_CR00200,46807
Sandwell Metropolitan Borough Council,http://www.sandwell.gov.uk/info/200202/performance_and_spending/1079/payments_over_500,10-Aug-17,Total Housing Revenue Account,ORBIS PROTECT LIMITED,Total Housing Revenue Account,886.00,Contract Payments,1718P05_CR00201,46807
Sandwell Metropolitan Borough Council,http://www.sandwell.gov.uk/info/200202/performance_and_spending/1079/payments_over_500,01-Aug-17,Total Housing Revenue Account,OPENVIEW SECURITY SOLUTIONS LIMITED,Total Housing Revenue Account,13989.12,Security,1718P05_CR00202,77000151
Sandwell Metropolitan Borough Council,http://www.sandwell.gov.uk/info/200202/performance_and_spending/1079/payments_over_500,14-Aug-17,Total Housing Revenue Account,REDACTED PERSONAL DATA,Total Housing Revenue Account,616.00,Externally Purchased Professional Services ,1718P05_CR00203,REDACTED PERSONAL DATA
Sandwell Metropolitan Borough Council,http://www.sandwell.gov.uk/info/200202/performance_and_spending/1079/payments_over_500,01-Aug-17,Total Housing Revenue Account,INDEPENDENT SCAFFOLDING SERVICES LIMITED,Total Housing Revenue Account,712.68,Contract Payments,1718P05_CR00204,68328
Sandwell Metropolitan Borough Council,http://www.sandwell.gov.uk/info/200202/performance_and_spending/1079/payments_over_500,01-Aug-17,Total Housing Revenue Account,INDEPENDENT SCAFFOLDING SERVICES LIMITED,Total Housing Revenue Account,971.60,Contract Payments,1718P05_CR00205,68328
Sandwell Metropolitan Borough Council,http://www.sandwell.gov.uk/info/200202/performance_and_spending/1079/payments_over_500,01-Aug-17,Total Housing Revenue Account,INDEPENDENT SCAFFOLDING SERVICES LIMITED,Total Housing Revenue Account,501.40,Contract Payments,1718P05_CR00206,68328
Sandwell Metropolitan Borough Council,http://www.sandwell.gov.uk/info/200202/performance_and_spending/1079/payments_over_500,01-Aug-17,Total Housing Revenue Account,INDEPENDENT SCAFFOLDING SERVICES LIMITED,Total Housing Revenue Account,594.40,Contract Payments,1718P05_CR00207,68328
Sandwell Metropolitan Borough Council,http://www.sandwell.gov.uk/info/200202/performance_and_spending/1079/payments_over_500,11-Aug-17,Total Housing Revenue Account,IMPEY SHOWERS LTD,Total Housing Revenue Account,804.75,Materials & Consumables,1718P05_CR00208,103499
Sandwell Metropolitan Borough Council,http://www.sandwell.gov.uk/info/200202/performance_and_spending/1079/payments_over_500,01-Aug-17,Total Housing Revenue Account,IAN WILLIAMS LTD,Total Housing Revenue Account,1458.42,Contract Payments,1718P05_CR00209,77001121
Sandwell Metropolitan Borough Council,http://www.sandwell.gov.uk/info/200202/performance_and_spending/1079/payments_over_500,01-Aug-17,Total Housing Revenue Account,IAN WILLIAMS LTD,Total Housing Revenue Account,697.82,Contract Payments,1718P05_CR00210,77001121
Sandwell Metropolitan Borough Council,http://www.sandwell.gov.uk/info/200202/performance_and_spending/1079/payments_over_500,01-Aug-17,Total Housing Revenue Account,IAN WILLIAMS LTD,Total Housing Revenue Account,1263.14,Contract Payments,1718P05_CR00211,77001121
Sandwell Metropolitan Borough Council,http://www.sandwell.gov.uk/info/200202/performance_and_spending/1079/payments_over_500,01-Aug-17,Total Housing Revenue Account,IAN WILLIAMS LTD,Total Housing Revenue Account,675.22,Contract Payments,1718P05_CR00212,77001121
Sandwell Metropolitan Borough Council,http://www.sandwell.gov.uk/info/200202/performance_and_spending/1079/payments_over_500,01-Aug-17,Total Housing Revenue Account,HINDLEY CONTRACTORS LIMITED,Total Housing Revenue Account,2658.08,Contract Payments,1718P05_CR00213,77002804
Sandwell Metropolitan Borough Council,http://www.sandwell.gov.uk/info/200202/performance_and_spending/1079/payments_over_500,01-Aug-17,Total Housing Revenue Account,HINDLEY CONTRACTORS LIMITED,Total Housing Revenue Account,880.26,Contract Payments,1718P05_CR00214,77002804
Sandwell Metropolitan Borough Council,http://www.sandwell.gov.uk/info/200202/performance_and_spending/1079/payments_over_500,01-Aug-17,Total Housing Revenue Account,HINDLEY CONTRACTORS LIMITED,Total Housing Revenue Account,643.39,Contract Payments,1718P05_CR00215,77002804
Sandwell Metropolitan Borough Council,http://www.sandwell.gov.uk/info/200202/performance_and_spending/1079/payments_over_500,01-Aug-17,Total Housing Revenue Account,HINDLEY CONTRACTORS LIMITED,Total Housing Revenue Account,2609.35,Contract Payments,1718P05_CR00216,77002804
Sandwell Metropolitan Borough Council,http://www.sandwell.gov.uk/info/200202/performance_and_spending/1079/payments_over_500,01-Aug-17,Total Housing Revenue Account,HINDLEY CONTRACTORS LIMITED,Total Housing Revenue Account,2681.39,Contract Payments,1718P05_CR00217,77002804
Sandwell Metropolitan Borough Council,http://www.sandwell.gov.uk/info/200202/performance_and_spending/1079/payments_over_500,23-Aug-17,Total Housing Revenue Account,HINDLEY CONTRACTORS LIMITED,Total Housing Revenue Account,1068.30,Contract Payments,1718P05_CR00218,77002804
Sandwell Metropolitan Borough Council,http://www.sandwell.gov.uk/info/200202/performance_and_spending/1079/payments_over_500,23-Aug-17,Total Housing Revenue Account,HINDLEY CONTRACTORS LIMITED,Total Housing Revenue Account,606.65,Contract Payments,1718P05_CR00219,77002804
Sandwell Metropolitan Borough Council,http://www.sandwell.gov.uk/info/200202/performance_and_spending/1079/payments_over_500,24-Aug-17,Total Housing Revenue Account,HINDLEY CONTRACTORS LIMITED,Total Housing Revenue Account,522.70,Contract Payments,1718P05_CR00220,77002804
Sandwell Metropolitan Borough Council,http://www.sandwell.gov.uk/info/200202/performance_and_spending/1079/payments_over_500,21-Aug-17,Total Housing Revenue Account,HILL INTERIOR CONTRACTS LTD,Total Housing Revenue Account,735.73,Contract Payments,1718P05_CR00221,17158
Sandwell Metropolitan Borough Council,http://www.sandwell.gov.uk/info/200202/performance_and_spending/1079/payments_over_500,21-Aug-17,Total Housing Revenue Account,HILL INTERIOR CONTRACTS LTD,Total Housing Revenue Account,611.02,Contract Payments,1718P05_CR00222,17158
Sandwell Metropolitan Borough Council,http://www.sandwell.gov.uk/info/200202/performance_and_spending/1079/payments_over_500,21-Aug-17,Total Housing Revenue Account,HILL INTERIOR CONTRACTS LTD,Total Housing Revenue Account,506.58,Contract Payments,1718P05_CR00223,17158
Sandwell Metropolitan Borough Council,http://www.sandwell.gov.uk/info/200202/performance_and_spending/1079/payments_over_500,01-Aug-17,Total Housing Revenue Account,G PURCHASE CONSTRUCTION LTD,Total Housing Revenue Account,1751.58,Contract Payments,1718P05_CR00224,53026
Sandwell Metropolitan Borough Council,http://www.sandwell.gov.uk/info/200202/performance_and_spending/1079/payments_over_500,01-Aug-17,Total Housing Revenue Account,G PURCHASE CONSTRUCTION LTD,Total Housing Revenue Account,861.19,Contract Payments,1718P05_CR00225,53026
Sandwell Metropolitan Borough Council,http://www.sandwell.gov.uk/info/200202/performance_and_spending/1079/payments_over_500,01-Aug-17,Total Housing Revenue Account,G PURCHASE CONSTRUCTION LTD,Total Housing Revenue Account,608.37,Contract Payments,1718P05_CR00226,53026
Sandwell Metropolitan Borough Council,http://www.sandwell.gov.uk/info/200202/performance_and_spending/1079/payments_over_500,01-Aug-17,Total Housing Revenue Account,G PURCHASE CONSTRUCTION LTD,Total Housing Revenue Account,2680.98,Contract Payments,1718P05_CR00227,53026
Sandwell Metropolitan Borough Council,http://www.sandwell.gov.uk/info/200202/performance_and_spending/1079/payments_over_500,01-Aug-17,Total Housing Revenue Account,G PURCHASE CONSTRUCTION LTD,Total Housing Revenue Account,2246.44,Contract Payments,1718P05_CR00228,53026
Sandwell Metropolitan Borough Council,http://www.sandwell.gov.uk/info/200202/performance_and_spending/1079/payments_over_500,01-Aug-17,Total Housing Revenue Account,G PURCHASE CONSTRUCTION LTD,Total Housing Revenue Account,1979.28,Contract Payments,1718P05_CR00229,53026
Sandwell Metropolitan Borough Council,http://www.sandwell.gov.uk/info/200202/performance_and_spending/1079/payments_over_500,01-Aug-17,Total Housing Revenue Account,G PURCHASE CONSTRUCTION LTD,Total Housing Revenue Account,3770.97,Contract Payments,1718P05_CR00230,53026
Sandwell Metropolitan Borough Council,http://www.sandwell.gov.uk/info/200202/performance_and_spending/1079/payments_over_500,01-Aug-17,Total Housing Revenue Account,G PURCHASE CONSTRUCTION LTD,Total Housing Revenue Account,1230.03,Contract Payments,1718P05_CR00231,53026
Sandwell Metropolitan Borough Council,http://www.sandwell.gov.uk/info/200202/performance_and_spending/1079/payments_over_500,01-Aug-17,Total Housing Revenue Account,G PURCHASE CONSTRUCTION LTD,Total Housing Revenue Account,2333.81,Contract Payments,1718P05_CR00232,53026
Sandwell Metropolitan Borough Council,http://www.sandwell.gov.uk/info/200202/performance_and_spending/1079/payments_over_500,01-Aug-17,Total Housing Revenue Account,G PURCHASE CONSTRUCTION LTD,Total Housing Revenue Account,821.03,Contract Payments,1718P05_CR00233,53026
Sandwell Metropolitan Borough Council,http://www.sandwell.gov.uk/info/200202/performance_and_spending/1079/payments_over_500,01-Aug-17,Total Housing Revenue Account,G PURCHASE CONSTRUCTION LTD,Total Housing Revenue Account,3623.82,Contract Payments,1718P05_CR00234,53026
Sandwell Metropolitan Borough Council,http://www.sandwell.gov.uk/info/200202/performance_and_spending/1079/payments_over_500,10-Aug-17,Total Housing Revenue Account,G PURCHASE CONSTRUCTION LTD,Total Housing Revenue Account,1825.96,Contract Payments,1718P05_CR00235,53026
Sandwell Metropolitan Borough Council,http://www.sandwell.gov.uk/info/200202/performance_and_spending/1079/payments_over_500,10-Aug-17,Total Housing Revenue Account,G PURCHASE CONSTRUCTION LTD,Total Housing Revenue Account,12450.96,Contract Payments,1718P05_CR00236,53026
Sandwell Metropolitan Borough Council,http://www.sandwell.gov.uk/info/200202/performance_and_spending/1079/payments_over_500,10-Aug-17,Total Housing Revenue Account,G PURCHASE CONSTRUCTION LTD,Total Housing Revenue Account,814.52,Contract Payments,1718P05_CR00237,53026
Sandwell Metropolitan Borough Council,http://www.sandwell.gov.uk/info/200202/performance_and_spending/1079/payments_over_500,10-Aug-17,Total Housing Revenue Account,G PURCHASE CONSTRUCTION LTD,Total Housing Revenue Account,12106.94,Contract Payments,1718P05_CR00238,53026
Sandwell Metropolitan Borough Council,http://www.sandwell.gov.uk/info/200202/performance_and_spending/1079/payments_over_500,10-Aug-17,Total Housing Revenue Account,G PURCHASE CONSTRUCTION LTD,Total Housing Revenue Account,4198.26,Contract Payments,1718P05_CR00239,53026
Sandwell Metropolitan Borough Council,http://www.sandwell.gov.uk/info/200202/performance_and_spending/1079/payments_over_500,10-Aug-17,Total Housing Revenue Account,G PURCHASE CONSTRUCTION LTD,Total Housing Revenue Account,722.85,Contract Payments,1718P05_CR00240,53026
Sandwell Metropolitan Borough Council,http://www.sandwell.gov.uk/info/200202/performance_and_spending/1079/payments_over_500,10-Aug-17,Total Housing Revenue Account,G PURCHASE CONSTRUCTION LTD,Total Housing Revenue Account,582.21,Contract Payments,1718P05_CR00241,53026
Sandwell Metropolitan Borough Council,http://www.sandwell.gov.uk/info/200202/performance_and_spending/1079/payments_over_500,01-Aug-17,Total Housing Revenue Account,G PURCHASE CONSTRUCTION LTD,Total Housing Revenue Account,763.05,Contract Payments,1718P05_CR00242,53026
Sandwell Metropolitan Borough Council,http://www.sandwell.gov.uk/info/200202/performance_and_spending/1079/payments_over_500,08-Aug-17,Total Housing Revenue Account,ENVIROCALL LIMITED,Total Housing Revenue Account,5969.98,Contract Payments,1718P05_CR00243,110475
Sandwell Metropolitan Borough Council,http://www.sandwell.gov.uk/info/200202/performance_and_spending/1079/payments_over_500,14-Aug-17,Total Housing Revenue Account,DRAINTECH SERVICES (MIDLANDS) LIMITED,Total Housing Revenue Account,2740.43,Contract Payments,1718P05_CR00244,115106
Sandwell Metropolitan Borough Council,http://www.sandwell.gov.uk/info/200202/performance_and_spending/1079/payments_over_500,14-Aug-17,Total Housing Revenue Account,DRAINTECH SERVICES (MIDLANDS) LIMITED,Total Housing Revenue Account,1883.01,Contract Payments,1718P05_CR00245,115106
Sandwell Metropolitan Borough Council,http://www.sandwell.gov.uk/info/200202/performance_and_spending/1079/payments_over_500,14-Aug-17,Total Housing Revenue Account,DAVY MAINTENANCE LIMITED,Total Housing Revenue Account,735.02,Contract Payments,1718P05_CR00246,114917
Sandwell Metropolitan Borough Council,http://www.sandwell.gov.uk/info/200202/performance_and_spending/1079/payments_over_500,25-Aug-17,Total Housing Revenue Account,DAVY MAINTENANCE LIMITED,Total Housing Revenue Account,665.68,Contract Payments,1718P05_CR00247,114917
Sandwell Metropolitan Borough Council,http://www.sandwell.gov.uk/info/200202/performance_and_spending/1079/payments_over_500,25-Aug-17,Total Housing Revenue Account,DAVY MAINTENANCE LIMITED,Total Housing Revenue Account,2234.74,Contract Payments,1718P05_CR00248,114917
Sandwell Metropolitan Borough Council,http://www.sandwell.gov.uk/info/200202/performance_and_spending/1079/payments_over_500,01-Aug-17,Total Housing Revenue Account,BSS GROUP PLC,Total Housing Revenue Account,1969.07,Materials & Consumables,1718P05_CR00249,01070377
Sandwell Metropolitan Borough Council,http://www.sandwell.gov.uk/info/200202/performance_and_spending/1079/payments_over_500,01-Aug-17,Total Housing Revenue Account,AXIS EUROPE PLC                                                           ,Total Housing Revenue Account,5962.09,Contract Payments,1718P05_CR00250,64946
Sandwell Metropolitan Borough Council,http://www.sandwell.gov.uk/info/200202/performance_and_spending/1079/payments_over_500,01-Aug-17,Total Housing Revenue Account,AXIS EUROPE PLC                                                           ,Total Housing Revenue Account,570.14,Contract Payments,1718P05_CR00251,64946
Sandwell Metropolitan Borough Council,http://www.sandwell.gov.uk/info/200202/performance_and_spending/1079/payments_over_500,01-Aug-17,Total Housing Revenue Account,AXIS EUROPE PLC                                                           ,Total Housing Revenue Account,922.62,Contract Payments,1718P05_CR00252,64946
Sandwell Metropolitan Borough Council,http://www.sandwell.gov.uk/info/200202/performance_and_spending/1079/payments_over_500,11-Aug-17,Total Housing Revenue Account,AXIS EUROPE PLC                                                           ,Total Housing Revenue Account,2845.68,Contract Payments,1718P05_CR00253,64946
Sandwell Metropolitan Borough Council,http://www.sandwell.gov.uk/info/200202/performance_and_spending/1079/payments_over_500,11-Aug-17,Total Housing Revenue Account,AXIS EUROPE PLC                                                           ,Total Housing Revenue Account,718.54,Contract Payments,1718P05_CR00254,64946
Sandwell Metropolitan Borough Council,http://www.sandwell.gov.uk/info/200202/performance_and_spending/1079/payments_over_500,17-Aug-17,Total Housing Revenue Account,AXIS EUROPE PLC                                                           ,Total Housing Revenue Account,2577.33,Contract Payments,1718P05_CR00255,64946
Sandwell Metropolitan Borough Council,http://www.sandwell.gov.uk/info/200202/performance_and_spending/1079/payments_over_500,17-Aug-17,Total Housing Revenue Account,AXIS EUROPE PLC                                                           ,Total Housing Revenue Account,8161.51,Contract Payments,1718P05_CR00256,64946
Sandwell Metropolitan Borough Council,http://www.sandwell.gov.uk/info/200202/performance_and_spending/1079/payments_over_500,17-Aug-17,Total Housing Revenue Account,AXIS EUROPE PLC                                                           ,Total Housing Revenue Account,2376.41,Contract Payments,1718P05_CR00257,64946
Sandwell Metropolitan Borough Council,http://www.sandwell.gov.uk/info/200202/performance_and_spending/1079/payments_over_500,17-Aug-17,Total Housing Revenue Account,AXIS EUROPE PLC                                                           ,Total Housing Revenue Account,797.98,Contract Payments,1718P05_CR00258,64946
Sandwell Metropolitan Borough Council,http://www.sandwell.gov.uk/info/200202/performance_and_spending/1079/payments_over_500,17-Aug-17,Total Housing Revenue Account,AXIS EUROPE PLC                                                           ,Total Housing Revenue Account,1686.35,Contract Payments,1718P05_CR00259,64946
Sandwell Metropolitan Borough Council,http://www.sandwell.gov.uk/info/200202/performance_and_spending/1079/payments_over_500,01-Aug-17,Total Housing Revenue Account,AXIS EUROPE PLC                                                           ,Total Housing Revenue Account,513.61,Contract Payments,1718P05_CR00260,64946
Sandwell Metropolitan Borough Council,http://www.sandwell.gov.uk/info/200202/performance_and_spending/1079/payments_over_500,04-Aug-17,Total Housing Revenue Account,AXIS EUROPE PLC                                                           ,Total Housing Revenue Account,505.71,Contract Payments,1718P05_CR00261,64946
Sandwell Metropolitan Borough Council,http://www.sandwell.gov.uk/info/200202/performance_and_spending/1079/payments_over_500,04-Aug-17,Total Housing Revenue Account,AXIS EUROPE PLC                                                           ,Total Housing Revenue Account,521.45,Contract Payments,1718P05_CR00262,64946
Sandwell Metropolitan Borough Council,http://www.sandwell.gov.uk/info/200202/performance_and_spending/1079/payments_over_500,04-Aug-17,Total Housing Revenue Account,AXIS EUROPE PLC                                                           ,Total Housing Revenue Account,896.16,Contract Payments,1718P05_CR00263,64946
Sandwell Metropolitan Borough Council,http://www.sandwell.gov.uk/info/200202/performance_and_spending/1079/payments_over_500,11-Aug-17,Total Housing Revenue Account,AXIS EUROPE PLC                                                           ,Total Housing Revenue Account,682.07,Contract Payments,1718P05_CR00264,64946
Sandwell Metropolitan Borough Council,http://www.sandwell.gov.uk/info/200202/performance_and_spending/1079/payments_over_500,11-Aug-17,Total Housing Revenue Account,AXIS EUROPE PLC                                                           ,Total Housing Revenue Account,1119.88,Contract Payments,1718P05_CR00265,64946
Sandwell Metropolitan Borough Council,http://www.sandwell.gov.uk/info/200202/performance_and_spending/1079/payments_over_500,01-Aug-17,Total Housing Revenue Account,AXIS EUROPE PLC                                                           ,Total Housing Revenue Account,8307.01,Contract Payments,1718P05_CR00266,64946
Sandwell Metropolitan Borough Council,http://www.sandwell.gov.uk/info/200202/performance_and_spending/1079/payments_over_500,04-Aug-17,Total Housing Revenue Account,AXIS EUROPE PLC                                                           ,Total Housing Revenue Account,1009.08,Contract Payments,1718P05_CR00267,64946
Sandwell Metropolitan Borough Council,http://www.sandwell.gov.uk/info/200202/performance_and_spending/1079/payments_over_500,04-Aug-17,Total Housing Revenue Account,AXIS EUROPE PLC                                                           ,Total Housing Revenue Account,1887.30,Contract Payments,1718P05_CR00268,64946
Sandwell Metropolitan Borough Council,http://www.sandwell.gov.uk/info/200202/performance_and_spending/1079/payments_over_500,04-Aug-17,Total Housing Revenue Account,AXIS EUROPE PLC                                                           ,Total Housing Revenue Account,1065.85,Contract Payments,1718P05_CR00269,64946
Sandwell Metropolitan Borough Council,http://www.sandwell.gov.uk/info/200202/performance_and_spending/1079/payments_over_500,04-Aug-17,Total Housing Revenue Account,AXIS EUROPE PLC                                                           ,Total Housing Revenue Account,743.69,Contract Payments,1718P05_CR00270,64946
Sandwell Metropolitan Borough Council,http://www.sandwell.gov.uk/info/200202/performance_and_spending/1079/payments_over_500,04-Aug-17,Total Housing Revenue Account,AXIS EUROPE PLC                                                           ,Total Housing Revenue Account,702.18,Contract Payments,1718P05_CR00271,64946
Sandwell Metropolitan Borough Council,http://www.sandwell.gov.uk/info/200202/performance_and_spending/1079/payments_over_500,04-Aug-17,Total Housing Revenue Account,AXIS EUROPE PLC                                                           ,Total Housing Revenue Account,878.93,Contract Payments,1718P05_CR00272,64946
Sandwell Metropolitan Borough Council,http://www.sandwell.gov.uk/info/200202/performance_and_spending/1079/payments_over_500,04-Aug-17,Total Housing Revenue Account,AXIS EUROPE PLC                                                           ,Total Housing Revenue Account,594.39,Contract Payments,1718P05_CR00273,64946
Sandwell Metropolitan Borough Council,http://www.sandwell.gov.uk/info/200202/performance_and_spending/1079/payments_over_500,04-Aug-17,Total Housing Revenue Account,AXIS EUROPE PLC                                                           ,Total Housing Revenue Account,529.06,Contract Payments,1718P05_CR00274,64946
Sandwell Metropolitan Borough Council,http://www.sandwell.gov.uk/info/200202/performance_and_spending/1079/payments_over_500,01-Aug-17,Total Housing Revenue Account,AXIS EUROPE PLC                                                           ,Total Housing Revenue Account,5137.12,Contract Payments,1718P05_CR00275,64946
Sandwell Metropolitan Borough Council,http://www.sandwell.gov.uk/info/200202/performance_and_spending/1079/payments_over_500,11-Aug-17,Total Housing Revenue Account,WOODHULL ROOFING LIMITED,Total Housing Revenue Account,886.59,Contract Payments,1718P05_CR00276,77000864
Sandwell Metropolitan Borough Council,http://www.sandwell.gov.uk/info/200202/performance_and_spending/1079/payments_over_500,01-Aug-17,Total Housing Revenue Account,VINSHIRE PLUMBING AND HEATING LIMITED,Total Housing Revenue Account,9049.95,Contract Payments,1718P05_CR00277,107735
Sandwell Metropolitan Borough Council,http://www.sandwell.gov.uk/info/200202/performance_and_spending/1079/payments_over_500,16-Aug-17,Total Housing Revenue Account,VENTILATION GEAR CO LTD,Total Housing Revenue Account,855.00,Building Maintenance & Improvements,1718P05_CR00278,77006213
Sandwell Metropolitan Borough Council,http://www.sandwell.gov.uk/info/200202/performance_and_spending/1079/payments_over_500,01-Aug-17,Total Housing Revenue Account,SOS GROUP SERVICES LIMITED,Total Housing Revenue Account,640.86,Contract Payments,1718P05_CR00279,115535
Sandwell Metropolitan Borough Council,http://www.sandwell.gov.uk/info/200202/performance_and_spending/1079/payments_over_500,01-Aug-17,Total Housing Revenue Account,RSK ENVIRONMENT LIMITED,Total Housing Revenue Account,4207.50,Externally Purchased Professional Services ,1718P05_CR00280,89358
Sandwell Metropolitan Borough Council,http://www.sandwell.gov.uk/info/200202/performance_and_spending/1079/payments_over_500,10-Aug-17,Total Housing Revenue Account,RICS BUSINESS SERVICES LTD,Total Housing Revenue Account,572.00,Externally Purchased Professional Services ,1718P05_CR00281,01686824
Sandwell Metropolitan Borough Council,http://www.sandwell.gov.uk/info/200202/performance_and_spending/1079/payments_over_500,01-Aug-17,Total Housing Revenue Account,ORBIS PROTECT LIMITED,Total Housing Revenue Account,1590.64,Contract Payments,1718P05_CR00282,46807
Sandwell Metropolitan Borough Council,http://www.sandwell.gov.uk/info/200202/performance_and_spending/1079/payments_over_500,01-Aug-17,Total Housing Revenue Account,INDEPENDENT SCAFFOLDING SERVICES LIMITED,Total Housing Revenue Account,571.80,Contract Payments,1718P05_CR00283,68328
Sandwell Metropolitan Borough Council,http://www.sandwell.gov.uk/info/200202/performance_and_spending/1079/payments_over_500,01-Aug-17,Total Housing Revenue Account,INDEPENDENT SCAFFOLDING SERVICES LIMITED,Total Housing Revenue Account,572.75,Contract Payments,1718P05_CR00284,68328
Sandwell Metropolitan Borough Council,http://www.sandwell.gov.uk/info/200202/performance_and_spending/1079/payments_over_500,01-Aug-17,Total Housing Revenue Account,INDEPENDENT SCAFFOLDING SERVICES LIMITED,Total Housing Revenue Account,886.70,Contract Payments,1718P05_CR00285,68328
Sandwell Metropolitan Borough Council,http://www.sandwell.gov.uk/info/200202/performance_and_spending/1079/payments_over_500,01-Aug-17,Total Housing Revenue Account,INDEPENDENT SCAFFOLDING SERVICES LIMITED,Total Housing Revenue Account,582.25,Contract Payments,1718P05_CR00286,68328
Sandwell Metropolitan Borough Council,http://www.sandwell.gov.uk/info/200202/performance_and_spending/1079/payments_over_500,01-Aug-17,Total Housing Revenue Account,IAN WILLIAMS LTD,Total Housing Revenue Account,13047.07,Contract Payments,1718P05_CR00287,77001121
Sandwell Metropolitan Borough Council,http://www.sandwell.gov.uk/info/200202/performance_and_spending/1079/payments_over_500,01-Aug-17,Total Housing Revenue Account,HOUSEMARK LTD,Total Housing Revenue Account,4750.00,Licences,1718P05_CR00288,19363
Sandwell Metropolitan Borough Council,http://www.sandwell.gov.uk/info/200202/performance_and_spending/1079/payments_over_500,01-Aug-17,Total Housing Revenue Account,HOME FARM NURSERIES (PINVIN) LIMITED,Total Housing Revenue Account,571.69,Contract Payments,1718P05_CR00289,77003445
Sandwell Metropolitan Borough Council,http://www.sandwell.gov.uk/info/200202/performance_and_spending/1079/payments_over_500,02-Aug-17,Total Housing Revenue Account,GLEVUM HEATING & PLUMBING LIMITED,Total Housing Revenue Account,7982.16,Contract Payments,1718P05_CR00290,127138
Sandwell Metropolitan Borough Council,http://www.sandwell.gov.uk/info/200202/performance_and_spending/1079/payments_over_500,01-Aug-17,Total Housing Revenue Account,G PURCHASE CONSTRUCTION LTD,Total Housing Revenue Account,3468.43,Contract Payments,1718P05_CR00291,53026
Sandwell Metropolitan Borough Council,http://www.sandwell.gov.uk/info/200202/performance_and_spending/1079/payments_over_500,10-Aug-17,Total Housing Revenue Account,G PURCHASE CONSTRUCTION LTD,Total Housing Revenue Account,530.90,Contract Payments,1718P05_CR00292,53026
Sandwell Metropolitan Borough Council,http://www.sandwell.gov.uk/info/200202/performance_and_spending/1079/payments_over_500,01-Aug-17,Total Housing Revenue Account,EDMUNDSONS (WOLVERHAMPTON) LTD,Total Housing Revenue Account,5319.00,Materials & Consumables,1718P05_CR00293,91549
Sandwell Metropolitan Borough Council,http://www.sandwell.gov.uk/info/200202/performance_and_spending/1079/payments_over_500,14-Aug-17,Total Housing Revenue Account,DRAINTECH SERVICES (MIDLANDS) LIMITED,Total Housing Revenue Account,3185.49,Contract Payments,1718P05_CR00294,115106
Sandwell Metropolitan Borough Council,http://www.sandwell.gov.uk/info/200202/performance_and_spending/1079/payments_over_500,07-Aug-17,Total Housing Revenue Account,DAVY MAINTENANCE LIMITED,Total Housing Revenue Account,1410.92,Contract Payments,1718P05_CR00295,114917
Sandwell Metropolitan Borough Council,http://www.sandwell.gov.uk/info/200202/performance_and_spending/1079/payments_over_500,15-Aug-17,Total Housing Revenue Account,BURROWS HOME COMFORT LIMITED,Total Housing Revenue Account,8202.61,Contract Payments,1718P05_CR00296,128502
Sandwell Metropolitan Borough Council,http://www.sandwell.gov.uk/info/200202/performance_and_spending/1079/payments_over_500,16-Aug-17,Total Housing Revenue Account,BURROWS HOME COMFORT LIMITED,Total Housing Revenue Account,8353.65,Contract Payments,1718P05_CR00297,128502
Sandwell Metropolitan Borough Council,http://www.sandwell.gov.uk/info/200202/performance_and_spending/1079/payments_over_500,01-Aug-17,Total Housing Revenue Account,BSS GROUP PLC,Total Housing Revenue Account,1828.01,Materials & Consumables,1718P05_CR00298,01070377
Sandwell Metropolitan Borough Council,http://www.sandwell.gov.uk/info/200202/performance_and_spending/1079/payments_over_500,01-Aug-17,Total Housing Revenue Account,BSS GROUP PLC,Total Housing Revenue Account,2248.22,Materials & Consumables,1718P05_CR00299,01070377
Sandwell Metropolitan Borough Council,http://www.sandwell.gov.uk/info/200202/performance_and_spending/1079/payments_over_500,02-Aug-17,Total Housing Revenue Account,BIRMINGHAM GARAGE & INDUSTRIAL DOORS LTD,Total Housing Revenue Account,1135.00,Contract Payments,1718P05_CR00300,01016169
Sandwell Metropolitan Borough Council,http://www.sandwell.gov.uk/info/200202/performance_and_spending/1079/payments_over_500,01-Aug-17,Total Housing Revenue Account,AXIS EUROPE PLC                                                           ,Total Housing Revenue Account,923.46,Contract Payments,1718P05_CR00301,64946
Sandwell Metropolitan Borough Council,http://www.sandwell.gov.uk/info/200202/performance_and_spending/1079/payments_over_500,01-Aug-17,Total Housing Revenue Account,WOODHULL ROOFING LIMITED,Total Housing Revenue Account,1541.39,Contract Payments,1718P05_CR00302,77000864
Sandwell Metropolitan Borough Council,http://www.sandwell.gov.uk/info/200202/performance_and_spending/1079/payments_over_500,04-Aug-17,Total Housing Revenue Account,WOODHULL ROOFING LIMITED,Total Housing Revenue Account,571.24,Contract Payments,1718P05_CR00303,77000864
Sandwell Metropolitan Borough Council,http://www.sandwell.gov.uk/info/200202/performance_and_spending/1079/payments_over_500,01-Aug-17,Total Housing Revenue Account,WOODHULL ROOFING LIMITED,Total Housing Revenue Account,584.92,Contract Payments,1718P05_CR00304,77000864
Sandwell Metropolitan Borough Council,http://www.sandwell.gov.uk/info/200202/performance_and_spending/1079/payments_over_500,01-Aug-17,Total Housing Revenue Account,WOODHULL ROOFING LIMITED,Total Housing Revenue Account,729.71,Contract Payments,1718P05_CR00305,77000864
Sandwell Metropolitan Borough Council,http://www.sandwell.gov.uk/info/200202/performance_and_spending/1079/payments_over_500,01-Aug-17,Total Housing Revenue Account,WOODHULL ROOFING LIMITED,Total Housing Revenue Account,542.81,Contract Payments,1718P05_CR00306,77000864
Sandwell Metropolitan Borough Council,http://www.sandwell.gov.uk/info/200202/performance_and_spending/1079/payments_over_500,01-Aug-17,Total Housing Revenue Account,WATER PLUS SELECT LIMITED,Total Housing Revenue Account,618.42,Water Services,1718P05_CR00307,129644
Sandwell Metropolitan Borough Council,http://www.sandwell.gov.uk/info/200202/performance_and_spending/1079/payments_over_500,04-Aug-17,Total Housing Revenue Account,VINSHIRE PLUMBING AND HEATING LIMITED,Total Housing Revenue Account,7704.90,Contract Payments,1718P05_CR00308,107735
Sandwell Metropolitan Borough Council,http://www.sandwell.gov.uk/info/200202/performance_and_spending/1079/payments_over_500,23-Aug-17,Total Housing Revenue Account,VENTILATION GEAR CO LTD,Total Housing Revenue Account,520.88,Building Maintenance & Improvements,1718P05_CR00309,77006213
Sandwell Metropolitan Borough Council,http://www.sandwell.gov.uk/info/200202/performance_and_spending/1079/payments_over_500,01-Aug-17,Total Housing Revenue Account,SCHINDLER LTD,Total Housing Revenue Account,797.50,Consultancy,1718P05_CR00310,77077
Sandwell Metropolitan Borough Council,http://www.sandwell.gov.uk/info/200202/performance_and_spending/1079/payments_over_500,01-Aug-17,Total Housing Revenue Account,ROSSENDALES LIMITED,Total Housing Revenue Account,1348.73,Externally Purchased Professional Services ,1718P05_CR00311,69610
Sandwell Metropolitan Borough Council,http://www.sandwell.gov.uk/info/200202/performance_and_spending/1079/payments_over_500,01-Aug-17,Total Housing Revenue Account,QUANTA TRAINING LTD,Total Housing Revenue Account,798.00,Externally Purchased Professional Services ,1718P05_CR00312,01654129
Sandwell Metropolitan Borough Council,http://www.sandwell.gov.uk/info/200202/performance_and_spending/1079/payments_over_500,01-Aug-17,Total Housing Revenue Account,OMFAX SYSTEMS LIMITED,Total Housing Revenue Account,5294.00,Externally Purchased Professional Services ,1718P05_CR00313,103840
Sandwell Metropolitan Borough Council,http://www.sandwell.gov.uk/info/200202/performance_and_spending/1079/payments_over_500,01-Aug-17,Total Housing Revenue Account,NEWEY ELECTRICAL INSTALLATIONS LIMITED,Total Housing Revenue Account,660.28,Contract Payments,1718P05_CR00314,77009935
Sandwell Metropolitan Borough Council,http://www.sandwell.gov.uk/info/200202/performance_and_spending/1079/payments_over_500,09-Aug-17,Total Housing Revenue Account,NANT LTD,Total Housing Revenue Account,560.00,Building Maintenance & Improvements,1718P05_CR00315,127404
Sandwell Metropolitan Borough Council,http://www.sandwell.gov.uk/info/200202/performance_and_spending/1079/payments_over_500,01-Aug-17,Total Housing Revenue Account,INDEPENDENT SCAFFOLDING SERVICES LIMITED,Total Housing Revenue Account,1137.05,Contract Payments,1718P05_CR00316,68328
Sandwell Metropolitan Borough Council,http://www.sandwell.gov.uk/info/200202/performance_and_spending/1079/payments_over_500,15-Aug-17,Total Housing Revenue Account,IMPEY SHOWERS LTD,Total Housing Revenue Account,536.50,Materials & Consumables,1718P05_CR00317,103499
Sandwell Metropolitan Borough Council,http://www.sandwell.gov.uk/info/200202/performance_and_spending/1079/payments_over_500,21-Aug-17,Total Housing Revenue Account,HARRIS GLASS LIMITED,Total Housing Revenue Account,603.26,Contract Payments,1718P05_CR00318,90836
Sandwell Metropolitan Borough Council,http://www.sandwell.gov.uk/info/200202/performance_and_spending/1079/payments_over_500,01-Aug-17,Total Housing Revenue Account,ENVIROCALL LIMITED,Total Housing Revenue Account,805.80,Operational Services ,1718P05_CR00319,110475
Sandwell Metropolitan Borough Council,http://www.sandwell.gov.uk/info/200202/performance_and_spending/1079/payments_over_500,01-Aug-17,Total Housing Revenue Account,ENVIROCALL LIMITED,Total Housing Revenue Account,814.30,Operational Services ,1718P05_CR00320,110475
Sandwell Metropolitan Borough Council,http://www.sandwell.gov.uk/info/200202/performance_and_spending/1079/payments_over_500,14-Aug-17,Total Housing Revenue Account,BURROWS HOME COMFORT LIMITED,Total Housing Revenue Account,7197.23,Contract Payments,1718P05_CR00321,128502
Sandwell Metropolitan Borough Council,http://www.sandwell.gov.uk/info/200202/performance_and_spending/1079/payments_over_500,11-Aug-17,Total Housing Revenue Account,AXIS EUROPE PLC                                                           ,Total Housing Revenue Account,735.84,Contract Payments,1718P05_CR00322,64946
Sandwell Metropolitan Borough Council,http://www.sandwell.gov.uk/info/200202/performance_and_spending/1079/payments_over_500,03-Aug-17,Total Housing Revenue Account,VINSHIRE PLUMBING AND HEATING LIMITED,Total Housing Revenue Account,15509.97,Contract Payments,1718P05_CR00323,107735
Sandwell Metropolitan Borough Council,http://www.sandwell.gov.uk/info/200202/performance_and_spending/1079/payments_over_500,01-Aug-17,Total Housing Revenue Account,SUTTON COLDFIELD CONSTRUCTION LIMITED,Total Housing Revenue Account,11879.90,Building Maintenance & Improvements,1718P05_CR00324,103130
Sandwell Metropolitan Borough Council,http://www.sandwell.gov.uk/info/200202/performance_and_spending/1079/payments_over_500,02-Aug-17,Total Housing Revenue Account,SOUTH STAFFORDSHIRE WATER PLC,Total Housing Revenue Account,1448.97,Operational Services ,1718P05_CR00325,77003605
Sandwell Metropolitan Borough Council,http://www.sandwell.gov.uk/info/200202/performance_and_spending/1079/payments_over_500,22-Aug-17,Total Housing Revenue Account,SELECT WINDOWS (HOME IMPROVEMENTS) LIMITED,Total Housing Revenue Account,526.69,Contract Payments,1718P05_CR00326,42616
Sandwell Metropolitan Borough Council,http://www.sandwell.gov.uk/info/200202/performance_and_spending/1079/payments_over_500,09-Aug-17,Total Housing Revenue Account,DRAINTECH SERVICES (MIDLANDS) LIMITED,Total Housing Revenue Account,2708.45,Contract Payments,1718P05_CR00327,115106
Sandwell Metropolitan Borough Council,http://www.sandwell.gov.uk/info/200202/performance_and_spending/1079/payments_over_500,01-Aug-17,Total Housing Revenue Account,VINCI CONSTRUCTION LTD,Total Housing Revenue Account,2157.51,Contract Payments,1718P05_CR00328,36361
Sandwell Metropolitan Borough Council,http://www.sandwell.gov.uk/info/200202/performance_and_spending/1079/payments_over_500,01-Aug-17,Total Housing Revenue Account,VINCI CONSTRUCTION LTD,Total Housing Revenue Account,3111.37,Contract Payments,1718P05_CR00329,36361
Sandwell Metropolitan Borough Council,http://www.sandwell.gov.uk/info/200202/performance_and_spending/1079/payments_over_500,18-Aug-17,Total Housing Revenue Account,VINCI CONSTRUCTION LTD,Total Housing Revenue Account,8173.36,Contract Payments,1718P05_CR00330,36361
Sandwell Metropolitan Borough Council,http://www.sandwell.gov.uk/info/200202/performance_and_spending/1079/payments_over_500,01-Aug-17,Total Housing Revenue Account,INDEPENDENT SCAFFOLDING SERVICES LIMITED,Total Housing Revenue Account,1117.70,Contract Payments,1718P05_CR00331,68328
Sandwell Metropolitan Borough Council,http://www.sandwell.gov.uk/info/200202/performance_and_spending/1079/payments_over_500,15-Aug-17,Total Housing Revenue Account,IMPEY SHOWERS LTD,Total Housing Revenue Account,536.50,Materials & Consumables,1718P05_CR00332,103499
Sandwell Metropolitan Borough Council,http://www.sandwell.gov.uk/info/200202/performance_and_spending/1079/payments_over_500,04-Aug-17,Total Housing Revenue Account,AXIS EUROPE PLC                                                           ,Total Housing Revenue Account,2748.34,Contract Payments,1718P05_CR00333,64946
Sandwell Metropolitan Borough Council,http://www.sandwell.gov.uk/info/200202/performance_and_spending/1079/payments_over_500,18-Aug-17,Total Housing Revenue Account,WATRIX LTD,Total Housing Revenue Account,572.85,Contract Payments,1718P05_CR00334,118235
Sandwell Metropolitan Borough Council,http://www.sandwell.gov.uk/info/200202/performance_and_spending/1079/payments_over_500,16-Aug-17,Total Housing Revenue Account,VENTILATION GEAR CO LTD,Total Housing Revenue Account,2665.65,Building Maintenance & Improvements,1718P05_CR00335,77006213
Sandwell Metropolitan Borough Council,http://www.sandwell.gov.uk/info/200202/performance_and_spending/1079/payments_over_500,11-Aug-17,Total Housing Revenue Account,TYRER BUILDING CONTRACTORS,Total Housing Revenue Account,1905.37,Contract Payments,1718P05_CR00336,77007959
Sandwell Metropolitan Borough Council,http://www.sandwell.gov.uk/info/200202/performance_and_spending/1079/payments_over_500,01-Aug-17,Total Housing Revenue Account,ORBIS PROTECT LIMITED,Total Housing Revenue Account,2058.92,Contract Payments,1718P05_CR00337,46807
Sandwell Metropolitan Borough Council,http://www.sandwell.gov.uk/info/200202/performance_and_spending/1079/payments_over_500,15-Aug-17,Total Housing Revenue Account,HOME FARM NURSERIES (PINVIN) LIMITED,Total Housing Revenue Account,3666.81,Contract Payments,1718P05_CR00338,77003445
Sandwell Metropolitan Borough Council,http://www.sandwell.gov.uk/info/200202/performance_and_spending/1079/payments_over_500,11-Aug-17,Total Housing Revenue Account,GLEVUM HEATING & PLUMBING LIMITED,Total Housing Revenue Account,8207.02,Contract Payments,1718P05_CR00339,127138
Sandwell Metropolitan Borough Council,http://www.sandwell.gov.uk/info/200202/performance_and_spending/1079/payments_over_500,08-Aug-17,Total Housing Revenue Account,C & S ELECTRICAL INSTALLATIONS LTD,Total Housing Revenue Account,502.14,Contract Payments,1718P05_CR00340,88519
Sandwell Metropolitan Borough Council,http://www.sandwell.gov.uk/info/200202/performance_and_spending/1079/payments_over_500,01-Aug-17,Total Housing Revenue Account,ALLPAY LIMITED,Total Housing Revenue Account,2713.41,Bank Charges & Commissions,1718P05_CR00341,111177
Sandwell Metropolitan Borough Council,http://www.sandwell.gov.uk/info/200202/performance_and_spending/1079/payments_over_500,15-Aug-17,Total Housing Revenue Account,SERCO LIMITED,Total Housing Revenue Account,28256.53,Waste Disposal Charges,1718P05_CR00342,53771
Sandwell Metropolitan Borough Council,http://www.sandwell.gov.uk/info/200202/performance_and_spending/1079/payments_over_500,01-Aug-17,Total Housing Revenue Account,PHOENIX GAS SERVICES LIMITED,Total Housing Revenue Account,5056.00,Contract Payments,1718P05_CR00343,126729
Sandwell Metropolitan Borough Council,http://www.sandwell.gov.uk/info/200202/performance_and_spending/1079/payments_over_500,01-Aug-17,Total Housing Revenue Account,PHOENIX GAS SERVICES LIMITED,Total Housing Revenue Account,4498.00,Contract Payments,1718P05_CR00344,126729
Sandwell Metropolitan Borough Council,http://www.sandwell.gov.uk/info/200202/performance_and_spending/1079/payments_over_500,02-Aug-17,Total Housing Revenue Account,PENNA PLC,Total Housing Revenue Account,14763.00,Externally Purchased Professional Services ,1718P05_CR00345,20829
Sandwell Metropolitan Borough Council,http://www.sandwell.gov.uk/info/200202/performance_and_spending/1079/payments_over_500,01-Aug-17,Total Housing Revenue Account,WOODHULL ROOFING LIMITED,Total Housing Revenue Account,796.79,Contract Payments,1718P05_CR00346,77000864
Sandwell Metropolitan Borough Council,http://www.sandwell.gov.uk/info/200202/performance_and_spending/1079/payments_over_500,01-Aug-17,Total Housing Revenue Account,VIRGIN MEDIA BUSINESS LIMITED,Total Housing Revenue Account,6120.00,ICT ,1718P05_CR00347,87097
Sandwell Metropolitan Borough Council,http://www.sandwell.gov.uk/info/200202/performance_and_spending/1079/payments_over_500,11-Aug-17,Total Housing Revenue Account,VINSHIRE PLUMBING AND HEATING LIMITED,Total Housing Revenue Account,6535.65,Contract Payments,1718P05_CR00348,107735
Sandwell Metropolitan Borough Council,http://www.sandwell.gov.uk/info/200202/performance_and_spending/1079/payments_over_500,01-Aug-17,Total Housing Revenue Account,TYRER BUILDING CONTRACTORS,Total Housing Revenue Account,6921.56,Contract Payments,1718P05_CR00349,77007959
Sandwell Metropolitan Borough Council,http://www.sandwell.gov.uk/info/200202/performance_and_spending/1079/payments_over_500,01-Aug-17,Total Housing Revenue Account,SSWB LIMITED,Total Housing Revenue Account,1002.81,Water Services,1718P05_CR00350,129579
Sandwell Metropolitan Borough Council,http://www.sandwell.gov.uk/info/200202/performance_and_spending/1079/payments_over_500,22-Aug-17,Total Housing Revenue Account,SERCO LIMITED,Total Housing Revenue Account,2966.41,Waste Disposal Charges,1718P05_CR00351,53771
Sandwell Metropolitan Borough Council,http://www.sandwell.gov.uk/info/200202/performance_and_spending/1079/payments_over_500,11-Aug-17,Total Housing Revenue Account,PHOENIX GAS SERVICES LIMITED,Total Housing Revenue Account,4946.00,Contract Payments,1718P05_CR00352,126729
Sandwell Metropolitan Borough Council,http://www.sandwell.gov.uk/info/200202/performance_and_spending/1079/payments_over_500,22-Aug-17,Total Housing Revenue Account,ORBIS PROTECT LIMITED,Total Housing Revenue Account,513.00,Contract Payments,1718P05_CR00353,46807
Sandwell Metropolitan Borough Council,http://www.sandwell.gov.uk/info/200202/performance_and_spending/1079/payments_over_500,22-Aug-17,Total Housing Revenue Account,ORBIS PROTECT LIMITED,Total Housing Revenue Account,994.21,Contract Payments,1718P05_CR00354,46807
Sandwell Metropolitan Borough Council,http://www.sandwell.gov.uk/info/200202/performance_and_spending/1079/payments_over_500,17-Aug-17,Total Housing Revenue Account,ORBIS PROTECT LIMITED,Total Housing Revenue Account,630.75,Contract Payments,1718P05_CR00355,46807
Sandwell Metropolitan Borough Council,http://www.sandwell.gov.uk/info/200202/performance_and_spending/1079/payments_over_500,01-Aug-17,Total Housing Revenue Account,NICHOLLS STEEL CO LTD,Total Housing Revenue Account,524.00,Materials & Consumables,1718P05_CR00356,01068544
Sandwell Metropolitan Borough Council,http://www.sandwell.gov.uk/info/200202/performance_and_spending/1079/payments_over_500,01-Aug-17,Total Housing Revenue Account,REDACTED PERSONAL DATA,Total Housing Revenue Account,616.00,Externally Purchased Professional Services ,1718P05_CR00357,REDACTED PERSONAL DATA
Sandwell Metropolitan Borough Council,http://www.sandwell.gov.uk/info/200202/performance_and_spending/1079/payments_over_500,01-Aug-17,Total Housing Revenue Account,REDACTED PERSONAL DATA,Total Housing Revenue Account,924.00,Externally Purchased Professional Services ,1718P05_CR00358,REDACTED PERSONAL DATA
Sandwell Metropolitan Borough Council,http://www.sandwell.gov.uk/info/200202/performance_and_spending/1079/payments_over_500,01-Aug-17,Total Housing Revenue Account,KIRONA SOLUTIONS LIMITED,Total Housing Revenue Account,950.00,Externally Purchased Professional Services ,1718P05_CR00359,79257
Sandwell Metropolitan Borough Council,http://www.sandwell.gov.uk/info/200202/performance_and_spending/1079/payments_over_500,10-Aug-17,Total Housing Revenue Account,IMPEY SHOWERS LTD,Total Housing Revenue Account,580.94,Materials & Consumables,1718P05_CR00360,103499
Sandwell Metropolitan Borough Council,http://www.sandwell.gov.uk/info/200202/performance_and_spending/1079/payments_over_500,01-Aug-17,Total Housing Revenue Account,HINDLEY CONTRACTORS LIMITED,Total Housing Revenue Account,668.63,Contract Payments,1718P05_CR00361,77002804
Sandwell Metropolitan Borough Council,http://www.sandwell.gov.uk/info/200202/performance_and_spending/1079/payments_over_500,10-Aug-17,Total Housing Revenue Account,G PURCHASE CONSTRUCTION LTD,Total Housing Revenue Account,1081.87,Contract Payments,1718P05_CR00362,53026
Sandwell Metropolitan Borough Council,http://www.sandwell.gov.uk/info/200202/performance_and_spending/1079/payments_over_500,25-Aug-17,Total Housing Revenue Account,DAVY MAINTENANCE LIMITED,Total Housing Revenue Account,593.04,Contract Payments,1718P05_CR00363,114917
Sandwell Metropolitan Borough Council,http://www.sandwell.gov.uk/info/200202/performance_and_spending/1079/payments_over_500,04-Aug-17,Total Housing Revenue Account,AXIS EUROPE PLC                                                           ,Total Housing Revenue Account,591.61,Contract Payments,1718P05_CR00364,64946
Sandwell Metropolitan Borough Council,http://www.sandwell.gov.uk/info/200202/performance_and_spending/1079/payments_over_500,11-Aug-17,Total Housing Revenue Account,AXIS EUROPE PLC                                                           ,Total Housing Revenue Account,559.74,Contract Payments,1718P05_CR00365,64946
Sandwell Metropolitan Borough Council,http://www.sandwell.gov.uk/info/200202/performance_and_spending/1079/payments_over_500,17-Aug-17,Total Housing Revenue Account,AXIS EUROPE PLC                                                           ,Total Housing Revenue Account,5887.75,Contract Payments,1718P05_CR00366,64946
Sandwell Metropolitan Borough Council,http://www.sandwell.gov.uk/info/200202/performance_and_spending/1079/payments_over_500,01-Aug-17,Total Housing Revenue Account,AXIS EUROPE PLC                                                           ,Total Housing Revenue Account,999.90,Contract Payments,1718P05_CR00367,64946
Sandwell Metropolitan Borough Council,http://www.sandwell.gov.uk/info/200202/performance_and_spending/1079/payments_over_500,01-Aug-17,Total Housing Revenue Account,ALBION TOOL HIRE LIMITED,Total Housing Revenue Account,1086.20,Materials & Consumables,1718P05_CR00368,129688
Sandwell Metropolitan Borough Council,http://www.sandwell.gov.uk/info/200202/performance_and_spending/1079/payments_over_500,01-Aug-17,Total Housing Revenue Account,INDEPENDENT SCAFFOLDING SERVICES LIMITED,Total Housing Revenue Account,779.70,Contract Payments,1718P05_CR00369,68328
Sandwell Metropolitan Borough Council,http://www.sandwell.gov.uk/info/200202/performance_and_spending/1079/payments_over_500,01-Aug-17,Total Housing Revenue Account,INDEPENDENT SCAFFOLDING SERVICES LIMITED,Total Housing Revenue Account,910.90,Contract Payments,1718P05_CR00370,68328
Sandwell Metropolitan Borough Council,http://www.sandwell.gov.uk/info/200202/performance_and_spending/1079/payments_over_500,01-Aug-17,Total Housing Revenue Account,INDEPENDENT SCAFFOLDING SERVICES LIMITED,Total Housing Revenue Account,514.90,Contract Payments,1718P05_CR00371,68328
Sandwell Metropolitan Borough Council,http://www.sandwell.gov.uk/info/200202/performance_and_spending/1079/payments_over_500,01-Aug-17,Total Housing Revenue Account,BSS GROUP PLC,Total Housing Revenue Account,3278.46,Materials & Consumables,1718P05_CR00372,01070377
Sandwell Metropolitan Borough Council,http://www.sandwell.gov.uk/info/200202/performance_and_spending/1079/payments_over_500,01-Aug-17,Total Housing Revenue Account,WOODHULL ROOFING LIMITED,Total Housing Revenue Account,1749.72,Contract Payments,1718P05_CR00373,77000864
Sandwell Metropolitan Borough Council,http://www.sandwell.gov.uk/info/200202/performance_and_spending/1079/payments_over_500,01-Aug-17,Total Housing Revenue Account,WATER PLUS SELECT LIMITED,Total Housing Revenue Account,1345.31,Water Services,1718P05_CR00374,129644
Sandwell Metropolitan Borough Council,http://www.sandwell.gov.uk/info/200202/performance_and_spending/1079/payments_over_500,01-Aug-17,Total Housing Revenue Account,TRIOS PROPERTY LIMITED,Total Housing Revenue Account,689.00,Building Maintenance & Improvements,1718P05_CR00375,1300
Sandwell Metropolitan Borough Council,http://www.sandwell.gov.uk/info/200202/performance_and_spending/1079/payments_over_500,09-Aug-17,Total Housing Revenue Account,TOTAL GAS AND POWER LIMITED,Total Housing Revenue Account,48729.45,Electricity,1718P05_CR00376,107605
Sandwell Metropolitan Borough Council,http://www.sandwell.gov.uk/info/200202/performance_and_spending/1079/payments_over_500,25-Aug-17,Total Housing Revenue Account,SELECT WINDOWS (HOME IMPROVEMENTS) LIMITED,Total Housing Revenue Account,629.19,Materials & Consumables,1718P05_CR00377,42616
Sandwell Metropolitan Borough Council,http://www.sandwell.gov.uk/info/200202/performance_and_spending/1079/payments_over_500,04-Aug-17,Total Housing Revenue Account,PHOENIX GAS SERVICES LIMITED,Total Housing Revenue Account,6155.00,Contract Payments,1718P05_CR00378,126729
Sandwell Metropolitan Borough Council,http://www.sandwell.gov.uk/info/200202/performance_and_spending/1079/payments_over_500,01-Aug-17,Total Housing Revenue Account,OPENVIEW SECURITY SOLUTIONS LIMITED,Total Housing Revenue Account,13989.12,Security,1718P05_CR00379,77000151
Sandwell Metropolitan Borough Council,http://www.sandwell.gov.uk/info/200202/performance_and_spending/1079/payments_over_500,18-Aug-17,Total Housing Revenue Account,LIFT & ENGINEERING SERVICES LTD,Total Housing Revenue Account,32688.29,"CIP - New Construction,Conversion, Enhancement & Reno",1718P05_CR00380,77003962
Sandwell Metropolitan Borough Council,http://www.sandwell.gov.uk/info/200202/performance_and_spending/1079/payments_over_500,01-Aug-17,Total Housing Revenue Account,KIRONA SOLUTIONS LIMITED,Total Housing Revenue Account,3325.00,ICT ,1718P05_CR00381,79257
Sandwell Metropolitan Borough Council,http://www.sandwell.gov.uk/info/200202/performance_and_spending/1079/payments_over_500,01-Aug-17,Total Housing Revenue Account,KIRONA SOLUTIONS LIMITED,Total Housing Revenue Account,712.50,ICT ,1718P05_CR00382,79257
Sandwell Metropolitan Borough Council,http://www.sandwell.gov.uk/info/200202/performance_and_spending/1079/payments_over_500,01-Aug-17,Total Housing Revenue Account,INDEPENDENT SCAFFOLDING SERVICES LIMITED,Total Housing Revenue Account,686.95,Contract Payments,1718P05_CR00383,68328
Sandwell Metropolitan Borough Council,http://www.sandwell.gov.uk/info/200202/performance_and_spending/1079/payments_over_500,10-Aug-17,Total Housing Revenue Account,IMPEY SHOWERS LTD,Total Housing Revenue Account,764.17,Materials & Consumables,1718P05_CR00384,103499
Sandwell Metropolitan Borough Council,http://www.sandwell.gov.uk/info/200202/performance_and_spending/1079/payments_over_500,15-Aug-17,Total Housing Revenue Account,IMPEY SHOWERS LTD,Total Housing Revenue Account,804.75,Materials & Consumables,1718P05_CR00385,103499
Sandwell Metropolitan Borough Council,http://www.sandwell.gov.uk/info/200202/performance_and_spending/1079/payments_over_500,08-Aug-17,Total Housing Revenue Account,HILL INTERIOR CONTRACTS LTD,Total Housing Revenue Account,834.85,Contract Payments,1718P05_CR00386,17158
Sandwell Metropolitan Borough Council,http://www.sandwell.gov.uk/info/200202/performance_and_spending/1079/payments_over_500,01-Aug-17,Total Housing Revenue Account,G PURCHASE CONSTRUCTION LTD,Total Housing Revenue Account,509.82,Contract Payments,1718P05_CR00387,53026
Sandwell Metropolitan Borough Council,http://www.sandwell.gov.uk/info/200202/performance_and_spending/1079/payments_over_500,01-Aug-17,Total Housing Revenue Account,ENVIROCALL LIMITED,Total Housing Revenue Account,1480.70,Operational Services ,1718P05_CR00388,110475
Sandwell Metropolitan Borough Council,http://www.sandwell.gov.uk/info/200202/performance_and_spending/1079/payments_over_500,25-Aug-17,Total Housing Revenue Account,DAVY MAINTENANCE LIMITED,Total Housing Revenue Account,1180.75,Contract Payments,1718P05_CR00389,114917
Sandwell Metropolitan Borough Council,http://www.sandwell.gov.uk/info/200202/performance_and_spending/1079/payments_over_500,25-Aug-17,Total Housing Revenue Account,DAVY MAINTENANCE LIMITED,Total Housing Revenue Account,1711.52,Contract Payments,1718P05_CR00390,114917
Sandwell Metropolitan Borough Council,http://www.sandwell.gov.uk/info/200202/performance_and_spending/1079/payments_over_500,01-Aug-17,Total Housing Revenue Account,CIVICA UK LTD,Total Housing Revenue Account,3789.50,Licences,1718P05_CR00391,26200
Sandwell Metropolitan Borough Council,http://www.sandwell.gov.uk/info/200202/performance_and_spending/1079/payments_over_500,01-Aug-17,Total Housing Revenue Account,BSS GROUP PLC,Total Housing Revenue Account,1760.63,Materials & Consumables,1718P05_CR00392,01070377
Sandwell Metropolitan Borough Council,http://www.sandwell.gov.uk/info/200202/performance_and_spending/1079/payments_over_500,01-Aug-17,Total Housing Revenue Account,BSS GROUP PLC,Total Housing Revenue Account,1718.07,Materials & Consumables,1718P05_CR00393,01070377
Sandwell Metropolitan Borough Council,http://www.sandwell.gov.uk/info/200202/performance_and_spending/1079/payments_over_500,23-Aug-17,Total Housing Revenue Account,BRYANT ELECTRICAL (MIDLANDS) LIMITED,Total Housing Revenue Account,885.35,Contract Payments,1718P05_CR00394,118143
Sandwell Metropolitan Borough Council,http://www.sandwell.gov.uk/info/200202/performance_and_spending/1079/payments_over_500,02-Aug-17,Total Housing Revenue Account,BRYANT ELECTRICAL (MIDLANDS) LIMITED,Total Housing Revenue Account,1214.69,Contract Payments,1718P05_CR00395,118143
Sandwell Metropolitan Borough Council,http://www.sandwell.gov.uk/info/200202/performance_and_spending/1079/payments_over_500,18-Aug-17,Total Housing Revenue Account,A & N JOINERY LTD,Total Housing Revenue Account,1381.60,Operational Services ,1718P05_CR00396,118844
Sandwell Metropolitan Borough Council,http://www.sandwell.gov.uk/info/200202/performance_and_spending/1079/payments_over_500,25-Aug-17,Total Housing Revenue Account,AXIS EUROPE PLC                                                           ,Total Housing Revenue Account,899.58,Contract Payments,1718P05_CR00397,64946
Sandwell Metropolitan Borough Council,http://www.sandwell.gov.uk/info/200202/performance_and_spending/1079/payments_over_500,01-Aug-17,Total Housing Revenue Account,GLEVUM HEATING & PLUMBING LIMITED,Total Housing Revenue Account,8548.62,Contract Payments,1718P05_CR00398,127138
Sandwell Metropolitan Borough Council,http://www.sandwell.gov.uk/info/200202/performance_and_spending/1079/payments_over_500,09-Aug-17,Total Housing Revenue Account,BRYANT ELECTRICAL (MIDLANDS) LIMITED,Total Housing Revenue Account,1698.38,Contract Payments,1718P05_CR00399,118143
Sandwell Metropolitan Borough Council,http://www.sandwell.gov.uk/info/200202/performance_and_spending/1079/payments_over_500,16-Aug-17,Total Housing Revenue Account,VENTILATION GEAR CO LTD,Total Housing Revenue Account,3640.00,Building Maintenance & Improvements,1718P05_CR00400,77006213
Sandwell Metropolitan Borough Council,http://www.sandwell.gov.uk/info/200202/performance_and_spending/1079/payments_over_500,01-Aug-17,Total Housing Revenue Account,G4S CASH SOLUTIONS (UK) LTD,Total Housing Revenue Account,823.69,Cash Collections,1718P05_CR00401,01606348
Sandwell Metropolitan Borough Council,http://www.sandwell.gov.uk/info/200202/performance_and_spending/1079/payments_over_500,18-Aug-17,Total Housing Revenue Account,VINCI CONSTRUCTION LTD,Total Housing Revenue Account,691.73,Contract Payments,1718P05_CR00402,36361
Sandwell Metropolitan Borough Council,http://www.sandwell.gov.uk/info/200202/performance_and_spending/1079/payments_over_500,18-Aug-17,Total Housing Revenue Account,VINCI CONSTRUCTION LTD,Total Housing Revenue Account,1728.50,Contract Payments,1718P05_CR00403,36361
Sandwell Metropolitan Borough Council,http://www.sandwell.gov.uk/info/200202/performance_and_spending/1079/payments_over_500,15-Aug-17,Total Housing Revenue Account,ENVIROCALL LIMITED,Total Housing Revenue Account,2476.95,Contract Payments,1718P05_CR00404,110475
Sandwell Metropolitan Borough Council,http://www.sandwell.gov.uk/info/200202/performance_and_spending/1079/payments_over_500,14-Aug-17,Total Housing Revenue Account,DRAINTECH SERVICES (MIDLANDS) LIMITED,Total Housing Revenue Account,1430.07,Contract Payments,1718P05_CR00405,115106
Sandwell Metropolitan Borough Council,http://www.sandwell.gov.uk/info/200202/performance_and_spending/1079/payments_over_500,01-Aug-17,Total Housing Revenue Account,TRAVIS PERKINS TRADING CO LTD,Total Housing Revenue Account,7383.18,Materials & Consumables,1718P05_CR00406,01048748
Sandwell Metropolitan Borough Council,http://www.sandwell.gov.uk/info/200202/performance_and_spending/1079/payments_over_500,01-Aug-17,Total Housing Revenue Account,TRAVIS PERKINS TRADING CO LTD,Total Housing Revenue Account,4774.19,Materials & Consumables,1718P05_CR00407,01048748
Sandwell Metropolitan Borough Council,http://www.sandwell.gov.uk/info/200202/performance_and_spending/1079/payments_over_500,01-Aug-17,Total Housing Revenue Account,TRAVIS PERKINS TRADING CO LTD,Total Housing Revenue Account,1566.37,Materials & Consumables,1718P05_CR00408,01048748
Sandwell Metropolitan Borough Council,http://www.sandwell.gov.uk/info/200202/performance_and_spending/1079/payments_over_500,01-Aug-17,Total Housing Revenue Account,LIFT & ENGINEERING SERVICES LTD,Total Housing Revenue Account,41892.48,"CIP - New Construction,Conversion, Enhancement & Reno",1718P05_CR00409,77003962
Sandwell Metropolitan Borough Council,http://www.sandwell.gov.uk/info/200202/performance_and_spending/1079/payments_over_500,01-Aug-17,Total Housing Revenue Account,SOS GROUP SERVICES LIMITED,Total Housing Revenue Account,1001.55,Contract Payments,1718P05_CR00410,115535
Sandwell Metropolitan Borough Council,http://www.sandwell.gov.uk/info/200202/performance_and_spending/1079/payments_over_500,01-Aug-17,Total Housing Revenue Account,PHOENIX GAS SERVICES LIMITED,Total Housing Revenue Account,5509.00,Contract Payments,1718P05_CR00411,126729
Sandwell Metropolitan Borough Council,http://www.sandwell.gov.uk/info/200202/performance_and_spending/1079/payments_over_500,01-Aug-17,Total Housing Revenue Account,PHOENIX GAS SERVICES LIMITED,Total Housing Revenue Account,4944.00,Contract Payments,1718P05_CR00412,126729
Sandwell Metropolitan Borough Council,http://www.sandwell.gov.uk/info/200202/performance_and_spending/1079/payments_over_500,01-Aug-17,Total Housing Revenue Account,CITY PLUMBING SUPPLIES HOLDINGS LTD,Total Housing Revenue Account,622.51,Materials & Consumables,1718P05_CR00413,80733
Sandwell Metropolitan Borough Council,http://www.sandwell.gov.uk/info/200202/performance_and_spending/1079/payments_over_500,01-Aug-17,Total Housing Revenue Account,SIEMENS FINANCIAL SERVICES LTD,Total Housing Revenue Account,1097.79,Catering Provisions,1718P05_CR00414,01713713
Sandwell Metropolitan Borough Council,http://www.sandwell.gov.uk/info/200202/performance_and_spending/1079/payments_over_500,09-Aug-17,Total Housing Revenue Account,RIVERSIDE HOUSING ASSOCIATION,Total Housing Revenue Account,727179.34,PFI & PPP Schemes,1718P05_CR00415,120965
Sandwell Metropolitan Borough Council,http://www.sandwell.gov.uk/info/200202/performance_and_spending/1079/payments_over_500,29-Aug-17,Total Housing Revenue Account,REDACTED PERSONAL DATA,Total Housing Revenue Account,3000.00,Tenants Expenses,1718P05_CR00416,REDACTED PERSONAL DATA
Sandwell Metropolitan Borough Council,http://www.sandwell.gov.uk/info/200202/performance_and_spending/1079/payments_over_500,28-Aug-17,Total Housing Revenue Account,HMCTS,Total Housing Revenue Account,10680.00,Externally Purchased Professional Services ,1718P05_CR00417,120965
Sandwell Metropolitan Borough Council,http://www.sandwell.gov.uk/info/200202/performance_and_spending/1079/payments_over_500,01-Aug-17,Total Housing Revenue Account,INNERWORKINGS EUROPE LTD,Total Housing Revenue Account,901.20,"Printing, Stationery & General Office Expenses",1718P05_CR00418,123436
Sandwell Metropolitan Borough Council,http://www.sandwell.gov.uk/info/200202/performance_and_spending/1079/payments_over_500,01-Aug-17,Total Housing Revenue Account,INNERWORKINGS EUROPE LTD,Total Housing Revenue Account,1086.00,"Printing, Stationery & General Office Expenses",1718P05_CR00419,123436
Sandwell Metropolitan Borough Council,http://www.sandwell.gov.uk/info/200202/performance_and_spending/1079/payments_over_500,01-Aug-17,Total Housing Revenue Account,INNERWORKINGS EUROPE LTD,Total Housing Revenue Account,2306.28,"Printing, Stationery & General Office Expenses",1718P05_CR00420,123436
Sandwell Metropolitan Borough Council,http://www.sandwell.gov.uk/info/200202/performance_and_spending/1079/payments_over_500,01-Aug-17,Total Housing Revenue Account,ALLSTAR BUSINESS SOLUTIONS LIMITED,Total Housing Revenue Account,8116.97,Fuel ,1718P05_CR00421,104057
Sandwell Metropolitan Borough Council,http://www.sandwell.gov.uk/info/200202/performance_and_spending/1079/payments_over_500,01-Aug-17,Total Housing Revenue Account,ALLSTAR BUSINESS SOLUTIONS LIMITED,Total Housing Revenue Account,8726.93,Fuel ,1718P05_CR00422,104057
Sandwell Metropolitan Borough Council,http://www.sandwell.gov.uk/info/200202/performance_and_spending/1079/payments_over_500,29-Aug-17,Strategic Finance,SOUTH STAFFS WATER,Strategic Finance,15868.02,Water Rates Collection Account,1718P05_CR00423,120965
Sandwell Metropolitan Borough Council,http://www.sandwell.gov.uk/info/200202/performance_and_spending/1079/payments_over_500,15-Aug-17,Strategic Finance,SOUTH STAFFS WATER,Strategic Finance,8707.37,Water Rates Collection Account,1718P05_CR00424,120965
Sandwell Metropolitan Borough Council,http://www.sandwell.gov.uk/info/200202/performance_and_spending/1079/payments_over_500,09-Aug-17,Strategic Finance,SOUTH STAFFS WATER,Strategic Finance,47697.50,Water Rates Collection Account,1718P05_CR00425,120965
Sandwell Metropolitan Borough Council,http://www.sandwell.gov.uk/info/200202/performance_and_spending/1079/payments_over_500,15-Aug-17,Strategic Finance,SOUTH STAFFS WATER,Strategic Finance,13875.69,Water Rates Collection Account,1718P05_CR00426,120965
Sandwell Metropolitan Borough Council,http://www.sandwell.gov.uk/info/200202/performance_and_spending/1079/payments_over_500,01-Aug-17,Resources Capital,COMPUTACENTER (UK) LTD,Resources Capital,19160.60,ICT ,1718P05_CR00427,19758
Sandwell Metropolitan Borough Council,http://www.sandwell.gov.uk/info/200202/performance_and_spending/1079/payments_over_500,25-Aug-17,Resources (Inc SIU),Slater Gordon Solutions Legal,Assistant Chief Executive (Excl SIU),1832.00,Insurance,1718P05_CR00428,130158
Sandwell Metropolitan Borough Council,http://www.sandwell.gov.uk/info/200202/performance_and_spending/1079/payments_over_500,07-Aug-17,Resources (Inc SIU),SINTONS LLP.,Assistant Chief Executive (Excl SIU),6672.25,Insurance,1718P05_CR00429,117702
Sandwell Metropolitan Borough Council,http://www.sandwell.gov.uk/info/200202/performance_and_spending/1079/payments_over_500,25-Aug-17,Resources (Inc SIU),Slater Gordon Solutions Legal,Assistant Chief Executive (Excl SIU),2500.00,Insurance,1718P05_CR00430,130158
Sandwell Metropolitan Borough Council,http://www.sandwell.gov.uk/info/200202/performance_and_spending/1079/payments_over_500,07-Aug-17,Resources (Inc SIU),SINTONS LLP.,Assistant Chief Executive (Excl SIU),7500.00,Insurance,1718P05_CR00431,117702
Sandwell Metropolitan Borough Council,http://www.sandwell.gov.uk/info/200202/performance_and_spending/1079/payments_over_500,07-Aug-17,Resources (Inc SIU),SHIRELAND COLLEGIATE ACADEMY,Assistant Chief Executive (Excl SIU),17681.40,Insurance,1718P05_CR00432,74286
Sandwell Metropolitan Borough Council,http://www.sandwell.gov.uk/info/200202/performance_and_spending/1079/payments_over_500,21-Aug-17,Resources (Inc SIU),RUSSELL WORTH SOLICITORS,Assistant Chief Executive (Excl SIU),1608.00,Insurance,1718P05_CR00433,121108
Sandwell Metropolitan Borough Council,http://www.sandwell.gov.uk/info/200202/performance_and_spending/1079/payments_over_500,16-Aug-17,Resources (Inc SIU),REDACTED PERSONAL DATA,Assistant Chief Executive (Excl SIU),1000.00,Insurance,1718P05_CR00434,REDACTED PERSONAL DATA
Sandwell Metropolitan Borough Council,http://www.sandwell.gov.uk/info/200202/performance_and_spending/1079/payments_over_500,21-Aug-17,Resources (Inc SIU),REDACTED PERSONAL DATA,Assistant Chief Executive (Excl SIU),2600.00,Insurance,1718P05_CR00435,REDACTED PERSONAL DATA
Sandwell Metropolitan Borough Council,http://www.sandwell.gov.uk/info/200202/performance_and_spending/1079/payments_over_500,01-Aug-17,Resources (Inc SIU),REDACTED PERSONAL DATA,Assistant Chief Executive (Excl SIU),1765.25,Insurance,1718P05_CR00436,REDACTED PERSONAL DATA
Sandwell Metropolitan Borough Council,http://www.sandwell.gov.uk/info/200202/performance_and_spending/1079/payments_over_500,16-Aug-17,Resources (Inc SIU),REDACTED PERSONAL DATA,Assistant Chief Executive (Excl SIU),1400.00,Insurance,1718P05_CR00437,REDACTED PERSONAL DATA
Sandwell Metropolitan Borough Council,http://www.sandwell.gov.uk/info/200202/performance_and_spending/1079/payments_over_500,07-Aug-17,Resources (Inc SIU),REDACTED PERSONAL DATA,Assistant Chief Executive (Excl SIU),2500.00,Insurance,1718P05_CR00438,REDACTED PERSONAL DATA
Sandwell Metropolitan Borough Council,http://www.sandwell.gov.uk/info/200202/performance_and_spending/1079/payments_over_500,16-Aug-17,Resources (Inc SIU),REDACTED PERSONAL DATA,Assistant Chief Executive (Excl SIU),737.50,Insurance,1718P05_CR00439,REDACTED PERSONAL DATA
Sandwell Metropolitan Borough Council,http://www.sandwell.gov.uk/info/200202/performance_and_spending/1079/payments_over_500,21-Aug-17,Resources (Inc SIU),DWP,Assistant Chief Executive (Excl SIU),627.00,Insurance,1718P05_CR00440,01753867
Sandwell Metropolitan Borough Council,http://www.sandwell.gov.uk/info/200202/performance_and_spending/1079/payments_over_500,15-Aug-17,Resources (Inc SIU),DWP,Assistant Chief Executive (Excl SIU),627.00,Insurance,1718P05_CR00441,01753867
Sandwell Metropolitan Borough Council,http://www.sandwell.gov.uk/info/200202/performance_and_spending/1079/payments_over_500,11-Aug-17,Resources (Inc SIU),DWP,Assistant Chief Executive (Excl SIU),4175.00,Insurance,1718P05_CR00442,01753867
Sandwell Metropolitan Borough Council,http://www.sandwell.gov.uk/info/200202/performance_and_spending/1079/payments_over_500,25-Aug-17,Resources (Inc SIU),DWP,Assistant Chief Executive (Excl SIU),647.00,Insurance,1718P05_CR00443,01753867
Sandwell Metropolitan Borough Council,http://www.sandwell.gov.uk/info/200202/performance_and_spending/1079/payments_over_500,21-Aug-17,Resources (Inc SIU),DWP,Assistant Chief Executive (Excl SIU),647.00,Insurance,1718P05_CR00444,01753867
Sandwell Metropolitan Borough Council,http://www.sandwell.gov.uk/info/200202/performance_and_spending/1079/payments_over_500,15-Aug-17,Resources (Inc SIU),DWP,Assistant Chief Executive (Excl SIU),29762.50,Insurance,1718P05_CR00445,01753867
Sandwell Metropolitan Borough Council,http://www.sandwell.gov.uk/info/200202/performance_and_spending/1079/payments_over_500,07-Aug-17,Resources (Inc SIU),DWP,Assistant Chief Executive (Excl SIU),665.00,Insurance,1718P05_CR00446,01753867
Sandwell Metropolitan Borough Council,http://www.sandwell.gov.uk/info/200202/performance_and_spending/1079/payments_over_500,29-Aug-17,Resources (Inc SIU),REDACTED PERSONAL DATA,Assistant Chief Executive (Excl SIU),3700.00,Insurance,1718P05_CR00447,REDACTED PERSONAL DATA
Sandwell Metropolitan Borough Council,http://www.sandwell.gov.uk/info/200202/performance_and_spending/1079/payments_over_500,15-Aug-17,Resources (Inc SIU),Active Legal Limited,Assistant Chief Executive (Excl SIU),2000.00,Insurance,1718P05_CR00448,129595
Sandwell Metropolitan Borough Council,http://www.sandwell.gov.uk/info/200202/performance_and_spending/1079/payments_over_500,23-Aug-17,Resources (Inc SIU),PLEXUS LAW LIMITED,Assistant Chief Executive (Excl SIU),500.00,Externally Purchased Professional Services ,1718P05_CR00449,124338
Sandwell Metropolitan Borough Council,http://www.sandwell.gov.uk/info/200202/performance_and_spending/1079/payments_over_500,11-Aug-17,Resources (Inc SIU),PLEXUS LAW LIMITED,Assistant Chief Executive (Excl SIU),2914.50,Externally Purchased Professional Services ,1718P05_CR00450,124338
Sandwell Metropolitan Borough Council,http://www.sandwell.gov.uk/info/200202/performance_and_spending/1079/payments_over_500,15-Aug-17,Resources (Inc SIU),WEIGHTMANS LLP,Assistant Chief Executive (Excl SIU),928.89,Externally Purchased Professional Services ,1718P05_CR00451,30670
Sandwell Metropolitan Borough Council,http://www.sandwell.gov.uk/info/200202/performance_and_spending/1079/payments_over_500,31-Aug-17,Resources (Inc SIU),PLEXUS LAW LIMITED,Assistant Chief Executive (Excl SIU),1293.50,Externally Purchased Professional Services ,1718P05_CR00452,124338
Sandwell Metropolitan Borough Council,http://www.sandwell.gov.uk/info/200202/performance_and_spending/1079/payments_over_500,31-Jul-17,Resources (Inc SIU),PLEXUS LAW LIMITED,Assistant Chief Executive (Excl SIU),3386.42,Externally Purchased Professional Services ,1718P05_CR00453,124338
Sandwell Metropolitan Borough Council,http://www.sandwell.gov.uk/info/200202/performance_and_spending/1079/payments_over_500,01-Aug-17,Resources (Inc SIU),TEMPEST RESOURCING LIMITED,Assistant Chief Executive (Excl SIU),-888.13,Agency Staff,1718P05_CR00454,106730
Sandwell Metropolitan Borough Council,http://www.sandwell.gov.uk/info/200202/performance_and_spending/1079/payments_over_500,01-Aug-17,Resources (Inc SIU),NORTHGATE PUBLIC SERVICES (UK) LIMITED,Assistant Chief Executive (Excl SIU),-681.91,Licences,1718P05_CR00455,56043
Sandwell Metropolitan Borough Council,http://www.sandwell.gov.uk/info/200202/performance_and_spending/1079/payments_over_500,01-Aug-17,Resources (Inc SIU),NORTHGATE PUBLIC SERVICES (UK) LIMITED,Assistant Chief Executive (Excl SIU),-2750.00,Private Contractors,1718P05_CR00456,56043
Sandwell Metropolitan Borough Council,http://www.sandwell.gov.uk/info/200202/performance_and_spending/1079/payments_over_500,01-Aug-17,Resources (Inc SIU),KIER SERVICES LTD,Assistant Chief Executive (Excl SIU),-5000.00,Building Maintenance & Improvements,1718P05_CR00457,124867
Sandwell Metropolitan Borough Council,http://www.sandwell.gov.uk/info/200202/performance_and_spending/1079/payments_over_500,01-Aug-17,Resources (Inc SIU),NORTHGATE PUBLIC SERVICES (UK) LIMITED,Assistant Chief Executive (Excl SIU),-507.89,ICT ,1718P05_CR00458,56043
Sandwell Metropolitan Borough Council,http://www.sandwell.gov.uk/info/200202/performance_and_spending/1079/payments_over_500,01-Aug-17,Resources (Inc SIU),CROWE CLARK WHITEHILL LLP,Strategic Investment Unit,4750.00,Externally Purchased Professional Services ,1718P05_CR00459,113958
Sandwell Metropolitan Borough Council,http://www.sandwell.gov.uk/info/200202/performance_and_spending/1079/payments_over_500,01-Aug-17,Resources (Inc SIU),J & D TRAINING LTD,Strategic Investment Unit,710.00,Externally Purchased Professional Services ,1718P05_CR00460,124793
Sandwell Metropolitan Borough Council,http://www.sandwell.gov.uk/info/200202/performance_and_spending/1079/payments_over_500,01-Aug-17,Resources (Inc SIU),CROWE CLARK WHITEHILL LLP,Strategic Investment Unit,4750.00,Externally Purchased Professional Services ,1718P05_CR00461,113958
Sandwell Metropolitan Borough Council,http://www.sandwell.gov.uk/info/200202/performance_and_spending/1079/payments_over_500,14-Aug-17,Resources (Inc SIU),WEST MIDLANDS COMBINED AUTHORITY,Strategic Investment Unit,959.68,Public Transport,1718P05_CR00462,126646
Sandwell Metropolitan Borough Council,http://www.sandwell.gov.uk/info/200202/performance_and_spending/1079/payments_over_500,01-Aug-17,Resources (Inc SIU),CROWE CLARK WHITEHILL LLP,Strategic Investment Unit,4750.00,Externally Purchased Professional Services ,1718P05_CR00463,113958
Sandwell Metropolitan Borough Council,http://www.sandwell.gov.uk/info/200202/performance_and_spending/1079/payments_over_500,07-Aug-17,Resources (Inc SIU),WEST MIDLANDS TRAVEL LIMITED,Strategic Investment Unit,869.10,Public Transport,1718P05_CR00464,01736688
Sandwell Metropolitan Borough Council,http://www.sandwell.gov.uk/info/200202/performance_and_spending/1079/payments_over_500,11-Aug-17,Resources (Inc SIU),ALUCAST LTD,Strategic Investment Unit,9856.06,Grant Payments,1718P05_CR00465,20695
Sandwell Metropolitan Borough Council,http://www.sandwell.gov.uk/info/200202/performance_and_spending/1079/payments_over_500,01-Aug-17,Resources (Inc SIU),XEROX (UK) LTD,Assistant Chief Executive (Excl SIU),51299.72,"Printing, Stationery & General Office Expenses",1718P05_CR00466,01565127
Sandwell Metropolitan Borough Council,http://www.sandwell.gov.uk/info/200202/performance_and_spending/1079/payments_over_500,01-Aug-17,Resources (Inc SIU),VENN GROUP LTD,Assistant Chief Executive (Excl SIU),1920.09,Agency Staff,1718P05_CR00467,49728
Sandwell Metropolitan Borough Council,http://www.sandwell.gov.uk/info/200202/performance_and_spending/1079/payments_over_500,02-Aug-17,Resources (Inc SIU),VENN GROUP LTD,Assistant Chief Executive (Excl SIU),606.20,Agency Staff,1718P05_CR00468,49728
Sandwell Metropolitan Borough Council,http://www.sandwell.gov.uk/info/200202/performance_and_spending/1079/payments_over_500,01-Aug-17,Resources (Inc SIU),THOMSON REUTERS (PROFESSIONAL) UK LIMITED,Assistant Chief Executive (Excl SIU),6540.18,Materials & Consumables,1718P05_CR00469,102777
Sandwell Metropolitan Borough Council,http://www.sandwell.gov.uk/info/200202/performance_and_spending/1079/payments_over_500,01-Aug-17,Resources (Inc SIU),SOLACE IN BUSINESS LTD,Assistant Chief Executive (Excl SIU),13360.00,Externally Purchased Professional Services ,1718P05_CR00470,129445
Sandwell Metropolitan Borough Council,http://www.sandwell.gov.uk/info/200202/performance_and_spending/1079/payments_over_500,01-Aug-17,Resources (Inc SIU),SCRIBES PLUS LTD,Assistant Chief Executive (Excl SIU),802.00,Bereavement Expenses,1718P05_CR00471,19254
Sandwell Metropolitan Borough Council,http://www.sandwell.gov.uk/info/200202/performance_and_spending/1079/payments_over_500,04-Aug-17,Resources (Inc SIU),PERVASIVE NETWORKS LTD,Assistant Chief Executive (Excl SIU),4802.65,Externally Purchased Professional Services ,1718P05_CR00472,01658599
Sandwell Metropolitan Borough Council,http://www.sandwell.gov.uk/info/200202/performance_and_spending/1079/payments_over_500,18-Aug-17,Resources (Inc SIU),MEDICARE FIRST LIMITED,Assistant Chief Executive (Excl SIU),29224.33,Agency Staff,1718P05_CR00473,45175
Sandwell Metropolitan Borough Council,http://www.sandwell.gov.uk/info/200202/performance_and_spending/1079/payments_over_500,11-Aug-17,Resources (Inc SIU),MBL (SEMINARS) LIMITED,Assistant Chief Executive (Excl SIU),500.00,Externally Purchased Professional Services ,1718P05_CR00474,86535
Sandwell Metropolitan Borough Council,http://www.sandwell.gov.uk/info/200202/performance_and_spending/1079/payments_over_500,11-Aug-17,Resources (Inc SIU),JEWSON LIMITED,Assistant Chief Executive (Excl SIU),1118.11,Equipment & Furniture ,1718P05_CR00475,01540195
Sandwell Metropolitan Borough Council,http://www.sandwell.gov.uk/info/200202/performance_and_spending/1079/payments_over_500,04-Aug-17,Resources (Inc SIU),REDACTED PERSONAL DATA,Assistant Chief Executive (Excl SIU),900.00,Externally Purchased Professional Services ,1718P05_CR00476,REDACTED PERSONAL DATA
Sandwell Metropolitan Borough Council,http://www.sandwell.gov.uk/info/200202/performance_and_spending/1079/payments_over_500,01-Aug-17,Resources (Inc SIU),HCL SOCIAL CARE LIMITED,Assistant Chief Executive (Excl SIU),1170.59,Agency Staff,1718P05_CR00477,49877
Sandwell Metropolitan Borough Council,http://www.sandwell.gov.uk/info/200202/performance_and_spending/1079/payments_over_500,01-Aug-17,Resources (Inc SIU),HCL SOCIAL CARE LIMITED,Assistant Chief Executive (Excl SIU),1332.00,Agency Staff,1718P05_CR00478,49877
Sandwell Metropolitan Borough Council,http://www.sandwell.gov.uk/info/200202/performance_and_spending/1079/payments_over_500,01-Aug-17,Resources (Inc SIU),HAYS SPECIALIST RECRUITMENT LTD,Assistant Chief Executive (Excl SIU),700.00,Agency Staff,1718P05_CR00479,80349
Sandwell Metropolitan Borough Council,http://www.sandwell.gov.uk/info/200202/performance_and_spending/1079/payments_over_500,01-Aug-17,Resources (Inc SIU),FACULTATIEVE TECHNOLOGIES LTD,Assistant Chief Executive (Excl SIU),1386.83,Building Maintenance & Improvements,1718P05_CR00480,89268
Sandwell Metropolitan Borough Council,http://www.sandwell.gov.uk/info/200202/performance_and_spending/1079/payments_over_500,01-Aug-17,Resources (Inc SIU),COAL AUTHORITY,Assistant Chief Executive (Excl SIU),548.10,Consultancy,1718P05_CR00481,01432803
Sandwell Metropolitan Borough Council,http://www.sandwell.gov.uk/info/200202/performance_and_spending/1079/payments_over_500,01-Aug-17,Resources (Inc SIU),CIVICA UK LTD,Assistant Chief Executive (Excl SIU),21000.00,Licences,1718P05_CR00482,26200
Sandwell Metropolitan Borough Council,http://www.sandwell.gov.uk/info/200202/performance_and_spending/1079/payments_over_500,16-Aug-17,Resources (Inc SIU),CARITAS RECRUITMENT LTD,Assistant Chief Executive (Excl SIU),1312.39,Agency Staff,1718P05_CR00483,86876
Sandwell Metropolitan Borough Council,http://www.sandwell.gov.uk/info/200202/performance_and_spending/1079/payments_over_500,17-Aug-17,Resources (Inc SIU),BREAKTHROUGH MARKETING LTD,Assistant Chief Executive (Excl SIU),575.00,Advertising & Publicity,1718P05_CR00484,18678
Sandwell Metropolitan Borough Council,http://www.sandwell.gov.uk/info/200202/performance_and_spending/1079/payments_over_500,16-Aug-17,Resources (Inc SIU),VODAFONE LTD,Assistant Chief Executive (Excl SIU),4975.29,Telephones,1718P05_CR00485,01555354
Sandwell Metropolitan Borough Council,http://www.sandwell.gov.uk/info/200202/performance_and_spending/1079/payments_over_500,01-Aug-17,Resources (Inc SIU),VENN GROUP LTD,Assistant Chief Executive (Excl SIU),1517.00,Agency Staff,1718P05_CR00486,49728
Sandwell Metropolitan Borough Council,http://www.sandwell.gov.uk/info/200202/performance_and_spending/1079/payments_over_500,01-Aug-17,Resources (Inc SIU),VENN GROUP LTD,Assistant Chief Executive (Excl SIU),606.20,Agency Staff,1718P05_CR00487,49728
Sandwell Metropolitan Borough Council,http://www.sandwell.gov.uk/info/200202/performance_and_spending/1079/payments_over_500,01-Aug-17,Resources (Inc SIU),VENN GROUP LTD,Assistant Chief Executive (Excl SIU),1512.00,Agency Staff,1718P05_CR00488,49728
Sandwell Metropolitan Borough Council,http://www.sandwell.gov.uk/info/200202/performance_and_spending/1079/payments_over_500,02-Aug-17,Resources (Inc SIU),VENN GROUP LTD,Assistant Chief Executive (Excl SIU),2103.17,Agency Staff,1718P05_CR00489,49728
Sandwell Metropolitan Borough Council,http://www.sandwell.gov.uk/info/200202/performance_and_spending/1079/payments_over_500,02-Aug-17,Resources (Inc SIU),VENN GROUP LTD,Assistant Chief Executive (Excl SIU),1517.00,Agency Staff,1718P05_CR00490,49728
Sandwell Metropolitan Borough Council,http://www.sandwell.gov.uk/info/200202/performance_and_spending/1079/payments_over_500,08-Aug-17,Resources (Inc SIU),TOTAL GAS AND POWER LIMITED,Assistant Chief Executive (Excl SIU),1994.67,Gas,1718P05_CR00491,107605
Sandwell Metropolitan Borough Council,http://www.sandwell.gov.uk/info/200202/performance_and_spending/1079/payments_over_500,08-Aug-17,Resources (Inc SIU),TOTAL GAS AND POWER LIMITED,Assistant Chief Executive (Excl SIU),1018.65,Gas,1718P05_CR00492,107605
Sandwell Metropolitan Borough Council,http://www.sandwell.gov.uk/info/200202/performance_and_spending/1079/payments_over_500,01-Aug-17,Resources (Inc SIU),TEMPEST RESOURCING LIMITED,Assistant Chief Executive (Excl SIU),1335.33,Agency Staff,1718P05_CR00493,106730
Sandwell Metropolitan Borough Council,http://www.sandwell.gov.uk/info/200202/performance_and_spending/1079/payments_over_500,02-Aug-17,Resources (Inc SIU),TEMPEST RESOURCING LIMITED,Assistant Chief Executive (Excl SIU),1248.75,Agency Staff,1718P05_CR00494,106730
Sandwell Metropolitan Borough Council,http://www.sandwell.gov.uk/info/200202/performance_and_spending/1079/payments_over_500,01-Aug-17,Resources (Inc SIU),TEMPEST RESOURCING LIMITED,Assistant Chief Executive (Excl SIU),1518.30,Agency Staff,1718P05_CR00495,106730
Sandwell Metropolitan Borough Council,http://www.sandwell.gov.uk/info/200202/performance_and_spending/1079/payments_over_500,01-Aug-17,Resources (Inc SIU),TEMPEST RESOURCING LIMITED,Assistant Chief Executive (Excl SIU),1335.33,Agency Staff,1718P05_CR00496,106730
Sandwell Metropolitan Borough Council,http://www.sandwell.gov.uk/info/200202/performance_and_spending/1079/payments_over_500,01-Aug-17,Resources (Inc SIU),TEMPEST RESOURCING LIMITED,Assistant Chief Executive (Excl SIU),1335.33,Agency Staff,1718P05_CR00497,106730
Sandwell Metropolitan Borough Council,http://www.sandwell.gov.uk/info/200202/performance_and_spending/1079/payments_over_500,01-Aug-17,Resources (Inc SIU),TEMPEST RESOURCING LIMITED,Assistant Chief Executive (Excl SIU),1246.16,Agency Staff,1718P05_CR00498,106730
Sandwell Metropolitan Borough Council,http://www.sandwell.gov.uk/info/200202/performance_and_spending/1079/payments_over_500,01-Aug-17,Resources (Inc SIU),TEMPEST RESOURCING LIMITED,Assistant Chief Executive (Excl SIU),1246.16,Agency Staff,1718P05_CR00499,106730
Sandwell Metropolitan Borough Council,http://www.sandwell.gov.uk/info/200202/performance_and_spending/1079/payments_over_500,01-Aug-17,Resources (Inc SIU),TEMPEST RESOURCING LIMITED,Assistant Chief Executive (Excl SIU),1335.33,Agency Staff,1718P05_CR00500,106730
Sandwell Metropolitan Borough Council,http://www.sandwell.gov.uk/info/200202/performance_and_spending/1079/payments_over_500,01-Aug-17,Resources (Inc SIU),TEMPEST RESOURCING LIMITED,Assistant Chief Executive (Excl SIU),1246.16,Agency Staff,1718P05_CR00501,106730
Sandwell Metropolitan Borough Council,http://www.sandwell.gov.uk/info/200202/performance_and_spending/1079/payments_over_500,01-Aug-17,Resources (Inc SIU),TEMPEST RESOURCING LIMITED,Assistant Chief Executive (Excl SIU),1248.75,Agency Staff,1718P05_CR00502,106730
Sandwell Metropolitan Borough Council,http://www.sandwell.gov.uk/info/200202/performance_and_spending/1079/payments_over_500,01-Aug-17,Resources (Inc SIU),TEMPEST RESOURCING LIMITED,Assistant Chief Executive (Excl SIU),1248.75,Agency Staff,1718P05_CR00503,106730
Sandwell Metropolitan Borough Council,http://www.sandwell.gov.uk/info/200202/performance_and_spending/1079/payments_over_500,02-Aug-17,Resources (Inc SIU),TEMPEST RESOURCING LIMITED,Assistant Chief Executive (Excl SIU),1248.75,Agency Staff,1718P05_CR00504,106730
Sandwell Metropolitan Borough Council,http://www.sandwell.gov.uk/info/200202/performance_and_spending/1079/payments_over_500,02-Aug-17,Resources (Inc SIU),TEMPEST RESOURCING LIMITED,Assistant Chief Executive (Excl SIU),1246.16,Agency Staff,1718P05_CR00505,106730
Sandwell Metropolitan Borough Council,http://www.sandwell.gov.uk/info/200202/performance_and_spending/1079/payments_over_500,02-Aug-17,Resources (Inc SIU),TEMPEST RESOURCING LIMITED,Assistant Chief Executive (Excl SIU),1246.16,Agency Staff,1718P05_CR00506,106730
Sandwell Metropolitan Borough Council,http://www.sandwell.gov.uk/info/200202/performance_and_spending/1079/payments_over_500,02-Aug-17,Resources (Inc SIU),TEMPEST RESOURCING LIMITED,Assistant Chief Executive (Excl SIU),1246.16,Agency Staff,1718P05_CR00507,106730
Sandwell Metropolitan Borough Council,http://www.sandwell.gov.uk/info/200202/performance_and_spending/1079/payments_over_500,02-Aug-17,Resources (Inc SIU),TEMPEST RESOURCING LIMITED,Assistant Chief Executive (Excl SIU),1335.33,Agency Staff,1718P05_CR00508,106730
Sandwell Metropolitan Borough Council,http://www.sandwell.gov.uk/info/200202/performance_and_spending/1079/payments_over_500,02-Aug-17,Resources (Inc SIU),TEMPEST RESOURCING LIMITED,Assistant Chief Executive (Excl SIU),1256.63,Agency Staff,1718P05_CR00509,106730
Sandwell Metropolitan Borough Council,http://www.sandwell.gov.uk/info/200202/performance_and_spending/1079/payments_over_500,02-Aug-17,Resources (Inc SIU),TEMPEST RESOURCING LIMITED,Assistant Chief Executive (Excl SIU),1248.75,Agency Staff,1718P05_CR00510,106730
Sandwell Metropolitan Borough Council,http://www.sandwell.gov.uk/info/200202/performance_and_spending/1079/payments_over_500,09-Aug-17,Resources (Inc SIU),TEMPEST RESOURCING LIMITED,Assistant Chief Executive (Excl SIU),1246.16,Agency Staff,1718P05_CR00511,106730
Sandwell Metropolitan Borough Council,http://www.sandwell.gov.uk/info/200202/performance_and_spending/1079/payments_over_500,09-Aug-17,Resources (Inc SIU),TEMPEST RESOURCING LIMITED,Assistant Chief Executive (Excl SIU),1486.30,Agency Staff,1718P05_CR00512,106730
Sandwell Metropolitan Borough Council,http://www.sandwell.gov.uk/info/200202/performance_and_spending/1079/payments_over_500,09-Aug-17,Resources (Inc SIU),TEMPEST RESOURCING LIMITED,Assistant Chief Executive (Excl SIU),1248.75,Agency Staff,1718P05_CR00513,106730
Sandwell Metropolitan Borough Council,http://www.sandwell.gov.uk/info/200202/performance_and_spending/1079/payments_over_500,09-Aug-17,Resources (Inc SIU),TEMPEST RESOURCING LIMITED,Assistant Chief Executive (Excl SIU),1248.75,Agency Staff,1718P05_CR00514,106730
Sandwell Metropolitan Borough Council,http://www.sandwell.gov.uk/info/200202/performance_and_spending/1079/payments_over_500,07-Aug-17,Resources (Inc SIU),TEMPEST RESOURCING LIMITED,Assistant Chief Executive (Excl SIU),1248.75,Agency Staff,1718P05_CR00515,106730
Sandwell Metropolitan Borough Council,http://www.sandwell.gov.uk/info/200202/performance_and_spending/1079/payments_over_500,07-Aug-17,Resources (Inc SIU),TEMPEST RESOURCING LIMITED,Assistant Chief Executive (Excl SIU),1246.16,Agency Staff,1718P05_CR00516,106730
Sandwell Metropolitan Borough Council,http://www.sandwell.gov.uk/info/200202/performance_and_spending/1079/payments_over_500,07-Aug-17,Resources (Inc SIU),TEMPEST RESOURCING LIMITED,Assistant Chief Executive (Excl SIU),1333.31,Agency Staff,1718P05_CR00517,106730
Sandwell Metropolitan Borough Council,http://www.sandwell.gov.uk/info/200202/performance_and_spending/1079/payments_over_500,07-Aug-17,Resources (Inc SIU),TEMPEST RESOURCING LIMITED,Assistant Chief Executive (Excl SIU),1248.75,Agency Staff,1718P05_CR00518,106730
Sandwell Metropolitan Borough Council,http://www.sandwell.gov.uk/info/200202/performance_and_spending/1079/payments_over_500,07-Aug-17,Resources (Inc SIU),TEMPEST RESOURCING LIMITED,Assistant Chief Executive (Excl SIU),1248.75,Agency Staff,1718P05_CR00519,106730
Sandwell Metropolitan Borough Council,http://www.sandwell.gov.uk/info/200202/performance_and_spending/1079/payments_over_500,01-Aug-17,Resources (Inc SIU),TEICCAF,Assistant Chief Executive (Excl SIU),1000.00,Subscriptions,1718P05_CR00520,125841
Sandwell Metropolitan Borough Council,http://www.sandwell.gov.uk/info/200202/performance_and_spending/1079/payments_over_500,07-Aug-17,Resources (Inc SIU),SUMMIT AT LLOYDS T/A AMLIN UK LTD,Assistant Chief Executive (Excl SIU),3534.27,Insurance,1718P05_CR00521,96716
Sandwell Metropolitan Borough Council,http://www.sandwell.gov.uk/info/200202/performance_and_spending/1079/payments_over_500,23-Aug-17,Resources (Inc SIU),STOURBRIDGE PAVING COMPANY LIMITED,Assistant Chief Executive (Excl SIU),2467.74,Grounds Maintenance & Improvements,1718P05_CR00522,77003641
Sandwell Metropolitan Borough Council,http://www.sandwell.gov.uk/info/200202/performance_and_spending/1079/payments_over_500,22-Aug-17,Resources (Inc SIU),SANDWELL LEISURE TRUST,Assistant Chief Executive (Excl SIU),547.20,Equipment & Furniture ,1718P05_CR00523,23305
Sandwell Metropolitan Borough Council,http://www.sandwell.gov.uk/info/200202/performance_and_spending/1079/payments_over_500,10-Aug-17,Resources (Inc SIU),SANDWELL & WEST BIRMINGHAM HOSPITALS NHS TRUST,Assistant Chief Executive (Excl SIU),815.00,Bereavement Expenses,1718P05_CR00524,1385
Sandwell Metropolitan Borough Council,http://www.sandwell.gov.uk/info/200202/performance_and_spending/1079/payments_over_500,10-Aug-17,Resources (Inc SIU),SANDWELL & WEST BIRMINGHAM HOSPITALS NHS TRUST,Assistant Chief Executive (Excl SIU),1304.00,Bereavement Expenses,1718P05_CR00525,1385
Sandwell Metropolitan Borough Council,http://www.sandwell.gov.uk/info/200202/performance_and_spending/1079/payments_over_500,01-Aug-17,Resources (Inc SIU),SANCTUARY PERSONNEL LTD,Assistant Chief Executive (Excl SIU),1035.63,Agency Staff,1718P05_CR00526,95946
Sandwell Metropolitan Borough Council,http://www.sandwell.gov.uk/info/200202/performance_and_spending/1079/payments_over_500,01-Aug-17,Resources (Inc SIU),SANCTUARY PERSONNEL LTD,Assistant Chief Executive (Excl SIU),1035.63,Agency Staff,1718P05_CR00527,95946
Sandwell Metropolitan Borough Council,http://www.sandwell.gov.uk/info/200202/performance_and_spending/1079/payments_over_500,01-Aug-17,Resources (Inc SIU),SANCTUARY PERSONNEL LTD,Assistant Chief Executive (Excl SIU),1218.04,Agency Staff,1718P05_CR00528,95946
Sandwell Metropolitan Borough Council,http://www.sandwell.gov.uk/info/200202/performance_and_spending/1079/payments_over_500,01-Aug-17,Resources (Inc SIU),SANCTUARY PERSONNEL LTD,Assistant Chief Executive (Excl SIU),1218.04,Agency Staff,1718P05_CR00529,95946
Sandwell Metropolitan Borough Council,http://www.sandwell.gov.uk/info/200202/performance_and_spending/1079/payments_over_500,01-Aug-17,Resources (Inc SIU),SANCTUARY PERSONNEL LTD,Assistant Chief Executive (Excl SIU),1218.04,Agency Staff,1718P05_CR00530,95946
Sandwell Metropolitan Borough Council,http://www.sandwell.gov.uk/info/200202/performance_and_spending/1079/payments_over_500,01-Aug-17,Resources (Inc SIU),SANCTUARY PERSONNEL LTD,Assistant Chief Executive (Excl SIU),1220.63,Agency Staff,1718P05_CR00531,95946
Sandwell Metropolitan Borough Council,http://www.sandwell.gov.uk/info/200202/performance_and_spending/1079/payments_over_500,01-Aug-17,Resources (Inc SIU),SANCTUARY PERSONNEL LTD,Assistant Chief Executive (Excl SIU),1493.13,Agency Staff,1718P05_CR00532,95946
Sandwell Metropolitan Borough Council,http://www.sandwell.gov.uk/info/200202/performance_and_spending/1079/payments_over_500,01-Aug-17,Resources (Inc SIU),SANCTUARY PERSONNEL LTD,Assistant Chief Executive (Excl SIU),989.70,Agency Staff,1718P05_CR00533,95946
Sandwell Metropolitan Borough Council,http://www.sandwell.gov.uk/info/200202/performance_and_spending/1079/payments_over_500,01-Aug-17,Resources (Inc SIU),SANCTUARY PERSONNEL LTD,Assistant Chief Executive (Excl SIU),1035.63,Agency Staff,1718P05_CR00534,95946
Sandwell Metropolitan Borough Council,http://www.sandwell.gov.uk/info/200202/performance_and_spending/1079/payments_over_500,01-Aug-17,Resources (Inc SIU),SANCTUARY PERSONNEL LTD,Assistant Chief Executive (Excl SIU),825.71,Agency Staff,1718P05_CR00535,95946
Sandwell Metropolitan Borough Council,http://www.sandwell.gov.uk/info/200202/performance_and_spending/1079/payments_over_500,01-Aug-17,Resources (Inc SIU),SANCTUARY PERSONNEL LTD,Assistant Chief Executive (Excl SIU),725.78,Agency Staff,1718P05_CR00536,95946
Sandwell Metropolitan Borough Council,http://www.sandwell.gov.uk/info/200202/performance_and_spending/1079/payments_over_500,01-Aug-17,Resources (Inc SIU),SANCTUARY PERSONNEL LTD,Assistant Chief Executive (Excl SIU),1220.63,Agency Staff,1718P05_CR00537,95946
Sandwell Metropolitan Borough Council,http://www.sandwell.gov.uk/info/200202/performance_and_spending/1079/payments_over_500,10-Aug-17,Resources (Inc SIU),SANCTUARY PERSONNEL LTD,Assistant Chief Executive (Excl SIU),1035.63,Agency Staff,1718P05_CR00538,95946
Sandwell Metropolitan Borough Council,http://www.sandwell.gov.uk/info/200202/performance_and_spending/1079/payments_over_500,10-Aug-17,Resources (Inc SIU),SANCTUARY PERSONNEL LTD,Assistant Chief Executive (Excl SIU),1035.63,Agency Staff,1718P05_CR00539,95946
Sandwell Metropolitan Borough Council,http://www.sandwell.gov.uk/info/200202/performance_and_spending/1079/payments_over_500,10-Aug-17,Resources (Inc SIU),SANCTUARY PERSONNEL LTD,Assistant Chief Executive (Excl SIU),1220.63,Agency Staff,1718P05_CR00540,95946
Sandwell Metropolitan Borough Council,http://www.sandwell.gov.uk/info/200202/performance_and_spending/1079/payments_over_500,10-Aug-17,Resources (Inc SIU),SANCTUARY PERSONNEL LTD,Assistant Chief Executive (Excl SIU),1220.63,Agency Staff,1718P05_CR00541,95946
Sandwell Metropolitan Borough Council,http://www.sandwell.gov.uk/info/200202/performance_and_spending/1079/payments_over_500,13-Aug-17,Resources (Inc SIU),SANCTUARY PERSONNEL LTD,Assistant Chief Executive (Excl SIU),1218.04,Agency Staff,1718P05_CR00542,95946
Sandwell Metropolitan Borough Council,http://www.sandwell.gov.uk/info/200202/performance_and_spending/1079/payments_over_500,13-Aug-17,Resources (Inc SIU),SANCTUARY PERSONNEL LTD,Assistant Chief Executive (Excl SIU),1218.04,Agency Staff,1718P05_CR00543,95946
Sandwell Metropolitan Borough Council,http://www.sandwell.gov.uk/info/200202/performance_and_spending/1079/payments_over_500,13-Aug-17,Resources (Inc SIU),SANCTUARY PERSONNEL LTD,Assistant Chief Executive (Excl SIU),1313.13,Agency Staff,1718P05_CR00544,95946
Sandwell Metropolitan Borough Council,http://www.sandwell.gov.uk/info/200202/performance_and_spending/1079/payments_over_500,13-Aug-17,Resources (Inc SIU),SANCTUARY PERSONNEL LTD,Assistant Chief Executive (Excl SIU),1313.13,Agency Staff,1718P05_CR00545,95946
Sandwell Metropolitan Borough Council,http://www.sandwell.gov.uk/info/200202/performance_and_spending/1079/payments_over_500,13-Aug-17,Resources (Inc SIU),SANCTUARY PERSONNEL LTD,Assistant Chief Executive (Excl SIU),1313.13,Agency Staff,1718P05_CR00546,95946
Sandwell Metropolitan Borough Council,http://www.sandwell.gov.uk/info/200202/performance_and_spending/1079/payments_over_500,13-Aug-17,Resources (Inc SIU),SANCTUARY PERSONNEL LTD,Assistant Chief Executive (Excl SIU),1313.13,Agency Staff,1718P05_CR00547,95946
Sandwell Metropolitan Borough Council,http://www.sandwell.gov.uk/info/200202/performance_and_spending/1079/payments_over_500,13-Aug-17,Resources (Inc SIU),SANCTUARY PERSONNEL LTD,Assistant Chief Executive (Excl SIU),1313.13,Agency Staff,1718P05_CR00548,95946
Sandwell Metropolitan Borough Council,http://www.sandwell.gov.uk/info/200202/performance_and_spending/1079/payments_over_500,04-Aug-17,Resources (Inc SIU),REDACTED PERSONAL DATA,Assistant Chief Executive (Excl SIU),2160.00,Externally Purchased Professional Services ,1718P05_CR00549,REDACTED PERSONAL DATA
Sandwell Metropolitan Borough Council,http://www.sandwell.gov.uk/info/200202/performance_and_spending/1079/payments_over_500,04-Aug-17,Resources (Inc SIU),REDACTED PERSONAL DATA,Assistant Chief Executive (Excl SIU),560.00,Externally Purchased Professional Services ,1718P05_CR00550,REDACTED PERSONAL DATA
Sandwell Metropolitan Borough Council,http://www.sandwell.gov.uk/info/200202/performance_and_spending/1079/payments_over_500,01-Aug-17,Resources (Inc SIU),REDACTED PERSONAL DATA,Assistant Chief Executive (Excl SIU),1800.00,Externally Purchased Professional Services ,1718P05_CR00551,REDACTED PERSONAL DATA
Sandwell Metropolitan Borough Council,http://www.sandwell.gov.uk/info/200202/performance_and_spending/1079/payments_over_500,01-Aug-17,Resources (Inc SIU),REDACTED PERSONAL DATA,Assistant Chief Executive (Excl SIU),600.00,Externally Purchased Professional Services ,1718P05_CR00552,REDACTED PERSONAL DATA
Sandwell Metropolitan Borough Council,http://www.sandwell.gov.uk/info/200202/performance_and_spending/1079/payments_over_500,01-Aug-17,Resources (Inc SIU),PERTEMPS GROUP LTD,Assistant Chief Executive (Excl SIU),1634.35,Agency Staff,1718P05_CR00553,01026174
Sandwell Metropolitan Borough Council,http://www.sandwell.gov.uk/info/200202/performance_and_spending/1079/payments_over_500,01-Aug-17,Resources (Inc SIU),NORTHGATE PUBLIC SERVICES (UK) LIMITED,Assistant Chief Executive (Excl SIU),3347.25,Private Contractors,1718P05_CR00554,56043
Sandwell Metropolitan Borough Council,http://www.sandwell.gov.uk/info/200202/performance_and_spending/1079/payments_over_500,01-Aug-17,Resources (Inc SIU),NORTHGATE PUBLIC SERVICES (UK) LIMITED,Assistant Chief Executive (Excl SIU),27485.64,Private Contractors,1718P05_CR00555,56043
Sandwell Metropolitan Borough Council,http://www.sandwell.gov.uk/info/200202/performance_and_spending/1079/payments_over_500,01-Aug-17,Resources (Inc SIU),NORTHGATE PUBLIC SERVICES (UK) LIMITED,Assistant Chief Executive (Excl SIU),1950.00,Private Contractors,1718P05_CR00556,56043
Sandwell Metropolitan Borough Council,http://www.sandwell.gov.uk/info/200202/performance_and_spending/1079/payments_over_500,01-Aug-17,Resources (Inc SIU),NORTHGATE PUBLIC SERVICES (UK) LIMITED,Assistant Chief Executive (Excl SIU),2095.10,Private Contractors,1718P05_CR00557,56043
Sandwell Metropolitan Borough Council,http://www.sandwell.gov.uk/info/200202/performance_and_spending/1079/payments_over_500,02-Aug-17,Resources (Inc SIU),METHODS BUSINESS AND DIGITAL TECHNOLOGY LIMITED,Assistant Chief Executive (Excl SIU),4000.00,Externally Purchased Professional Services ,1718P05_CR00558,126288
Sandwell Metropolitan Borough Council,http://www.sandwell.gov.uk/info/200202/performance_and_spending/1079/payments_over_500,01-Aug-17,Resources (Inc SIU),METHODS BUSINESS AND DIGITAL TECHNOLOGY LIMITED,Assistant Chief Executive (Excl SIU),3600.00,Externally Purchased Professional Services ,1718P05_CR00559,126288
Sandwell Metropolitan Borough Council,http://www.sandwell.gov.uk/info/200202/performance_and_spending/1079/payments_over_500,01-Aug-17,Resources (Inc SIU),MEDICARE FIRST LIMITED,Assistant Chief Executive (Excl SIU),36098.71,Agency Staff,1718P05_CR00560,45175
Sandwell Metropolitan Borough Council,http://www.sandwell.gov.uk/info/200202/performance_and_spending/1079/payments_over_500,10-Aug-17,Resources (Inc SIU),MEDICARE FIRST LIMITED,Assistant Chief Executive (Excl SIU),34168.53,Agency Staff,1718P05_CR00561,45175
Sandwell Metropolitan Borough Council,http://www.sandwell.gov.uk/info/200202/performance_and_spending/1079/payments_over_500,01-Aug-17,Resources (Inc SIU),LIQUIDLOGIC LIMITED,Assistant Chief Executive (Excl SIU),9840.00,ICT ,1718P05_CR00562,83167
Sandwell Metropolitan Borough Council,http://www.sandwell.gov.uk/info/200202/performance_and_spending/1079/payments_over_500,25-Aug-17,Resources (Inc SIU),KAPLAN FINANCIAL,Assistant Chief Executive (Excl SIU),973.33,Discretionary Awards,1718P05_CR00563,18694
Sandwell Metropolitan Borough Council,http://www.sandwell.gov.uk/info/200202/performance_and_spending/1079/payments_over_500,01-Aug-17,Resources (Inc SIU),KANCHEN KUMARI,Assistant Chief Executive (Excl SIU),675.00,"Printing, Stationery & General Office Expenses",1718P05_CR00564,112641
Sandwell Metropolitan Borough Council,http://www.sandwell.gov.uk/info/200202/performance_and_spending/1079/payments_over_500,01-Aug-17,Resources (Inc SIU),HILL INTERIOR CONTRACTS LTD,Assistant Chief Executive (Excl SIU),3960.00,Building Maintenance & Improvements,1718P05_CR00565,17158
Sandwell Metropolitan Borough Council,http://www.sandwell.gov.uk/info/200202/performance_and_spending/1079/payments_over_500,01-Aug-17,Resources (Inc SIU),HCL SOCIAL CARE LIMITED,Assistant Chief Executive (Excl SIU),1609.50,Agency Staff,1718P05_CR00566,49877
Sandwell Metropolitan Borough Council,http://www.sandwell.gov.uk/info/200202/performance_and_spending/1079/payments_over_500,01-Aug-17,Resources (Inc SIU),HCL SOCIAL CARE LIMITED,Assistant Chief Executive (Excl SIU),1332.00,Agency Staff,1718P05_CR00567,49877
Sandwell Metropolitan Borough Council,http://www.sandwell.gov.uk/info/200202/performance_and_spending/1079/payments_over_500,01-Aug-17,Resources (Inc SIU),HCL SOCIAL CARE LIMITED,Assistant Chief Executive (Excl SIU),1794.50,Agency Staff,1718P05_CR00568,49877
Sandwell Metropolitan Borough Council,http://www.sandwell.gov.uk/info/200202/performance_and_spending/1079/payments_over_500,01-Aug-17,Resources (Inc SIU),HCL SOCIAL CARE LIMITED,Assistant Chief Executive (Excl SIU),1350.50,Agency Staff,1718P05_CR00569,49877
Sandwell Metropolitan Borough Council,http://www.sandwell.gov.uk/info/200202/performance_and_spending/1079/payments_over_500,01-Aug-17,Resources (Inc SIU),HCL SOCIAL CARE LIMITED,Assistant Chief Executive (Excl SIU),1696.50,Agency Staff,1718P05_CR00570,49877
Sandwell Metropolitan Borough Council,http://www.sandwell.gov.uk/info/200202/performance_and_spending/1079/payments_over_500,01-Aug-17,Resources (Inc SIU),HCL SOCIAL CARE LIMITED,Assistant Chief Executive (Excl SIU),1258.00,Agency Staff,1718P05_CR00571,49877
Sandwell Metropolitan Borough Council,http://www.sandwell.gov.uk/info/200202/performance_and_spending/1079/payments_over_500,01-Aug-17,Resources (Inc SIU),HCL SOCIAL CARE LIMITED,Assistant Chief Executive (Excl SIU),661.64,Agency Staff,1718P05_CR00572,49877
Sandwell Metropolitan Borough Council,http://www.sandwell.gov.uk/info/200202/performance_and_spending/1079/payments_over_500,07-Aug-17,Resources (Inc SIU),HCL SOCIAL CARE LIMITED,Assistant Chief Executive (Excl SIU),627.71,Agency Staff,1718P05_CR00573,49877
Sandwell Metropolitan Borough Council,http://www.sandwell.gov.uk/info/200202/performance_and_spending/1079/payments_over_500,01-Aug-17,Resources (Inc SIU),HCL SOCIAL CARE LIMITED,Assistant Chief Executive (Excl SIU),1258.00,Agency Staff,1718P05_CR00574,49877
Sandwell Metropolitan Borough Council,http://www.sandwell.gov.uk/info/200202/performance_and_spending/1079/payments_over_500,01-Aug-17,Resources (Inc SIU),HCL SOCIAL CARE LIMITED,Assistant Chief Executive (Excl SIU),1258.00,Agency Staff,1718P05_CR00575,49877
Sandwell Metropolitan Borough Council,http://www.sandwell.gov.uk/info/200202/performance_and_spending/1079/payments_over_500,01-Aug-17,Resources (Inc SIU),HCL SOCIAL CARE LIMITED,Assistant Chief Executive (Excl SIU),1702.00,Agency Staff,1718P05_CR00576,49877
Sandwell Metropolitan Borough Council,http://www.sandwell.gov.uk/info/200202/performance_and_spending/1079/payments_over_500,01-Aug-17,Resources (Inc SIU),HCL SOCIAL CARE LIMITED,Assistant Chief Executive (Excl SIU),1258.00,Agency Staff,1718P05_CR00577,49877
Sandwell Metropolitan Borough Council,http://www.sandwell.gov.uk/info/200202/performance_and_spending/1079/payments_over_500,01-Aug-17,Resources (Inc SIU),HCL SOCIAL CARE LIMITED,Assistant Chief Executive (Excl SIU),1609.50,Agency Staff,1718P05_CR00578,49877
Sandwell Metropolitan Borough Council,http://www.sandwell.gov.uk/info/200202/performance_and_spending/1079/payments_over_500,01-Aug-17,Resources (Inc SIU),HCL SOCIAL CARE LIMITED,Assistant Chief Executive (Excl SIU),1255.41,Agency Staff,1718P05_CR00579,49877
Sandwell Metropolitan Borough Council,http://www.sandwell.gov.uk/info/200202/performance_and_spending/1079/payments_over_500,01-Aug-17,Resources (Inc SIU),HCL SOCIAL CARE LIMITED,Assistant Chief Executive (Excl SIU),1332.00,Agency Staff,1718P05_CR00580,49877
Sandwell Metropolitan Borough Council,http://www.sandwell.gov.uk/info/200202/performance_and_spending/1079/payments_over_500,01-Aug-17,Resources (Inc SIU),HCL SOCIAL CARE LIMITED,Assistant Chief Executive (Excl SIU),1443.00,Agency Staff,1718P05_CR00581,49877
Sandwell Metropolitan Borough Council,http://www.sandwell.gov.uk/info/200202/performance_and_spending/1079/payments_over_500,01-Aug-17,Resources (Inc SIU),HCL SOCIAL CARE LIMITED,Assistant Chief Executive (Excl SIU),1058.50,Agency Staff,1718P05_CR00582,49877
Sandwell Metropolitan Borough Council,http://www.sandwell.gov.uk/info/200202/performance_and_spending/1079/payments_over_500,01-Aug-17,Resources (Inc SIU),HCL SOCIAL CARE LIMITED,Assistant Chief Executive (Excl SIU),1255.41,Agency Staff,1718P05_CR00583,49877
Sandwell Metropolitan Borough Council,http://www.sandwell.gov.uk/info/200202/performance_and_spending/1079/payments_over_500,01-Aug-17,Resources (Inc SIU),HCL SOCIAL CARE LIMITED,Assistant Chief Executive (Excl SIU),1221.48,Agency Staff,1718P05_CR00584,49877
Sandwell Metropolitan Borough Council,http://www.sandwell.gov.uk/info/200202/performance_and_spending/1079/payments_over_500,01-Aug-17,Resources (Inc SIU),HCL SOCIAL CARE LIMITED,Assistant Chief Executive (Excl SIU),1155.75,Agency Staff,1718P05_CR00585,49877
Sandwell Metropolitan Borough Council,http://www.sandwell.gov.uk/info/200202/performance_and_spending/1079/payments_over_500,01-Aug-17,Resources (Inc SIU),HCL SOCIAL CARE LIMITED,Assistant Chief Executive (Excl SIU),1258.00,Agency Staff,1718P05_CR00586,49877
Sandwell Metropolitan Borough Council,http://www.sandwell.gov.uk/info/200202/performance_and_spending/1079/payments_over_500,01-Aug-17,Resources (Inc SIU),HCL SOCIAL CARE LIMITED,Assistant Chief Executive (Excl SIU),1258.00,Agency Staff,1718P05_CR00587,49877
Sandwell Metropolitan Borough Council,http://www.sandwell.gov.uk/info/200202/performance_and_spending/1079/payments_over_500,01-Aug-17,Resources (Inc SIU),HCL SOCIAL CARE LIMITED,Assistant Chief Executive (Excl SIU),1332.00,Agency Staff,1718P05_CR00588,49877
Sandwell Metropolitan Borough Council,http://www.sandwell.gov.uk/info/200202/performance_and_spending/1079/payments_over_500,01-Aug-17,Resources (Inc SIU),HCL SOCIAL CARE LIMITED,Assistant Chief Executive (Excl SIU),1255.41,Agency Staff,1718P05_CR00589,49877
Sandwell Metropolitan Borough Council,http://www.sandwell.gov.uk/info/200202/performance_and_spending/1079/payments_over_500,01-Aug-17,Resources (Inc SIU),HCL SOCIAL CARE LIMITED,Assistant Chief Executive (Excl SIU),1098.29,Agency Staff,1718P05_CR00590,49877
Sandwell Metropolitan Borough Council,http://www.sandwell.gov.uk/info/200202/performance_and_spending/1079/payments_over_500,01-Aug-17,Resources (Inc SIU),HCL SOCIAL CARE LIMITED,Assistant Chief Executive (Excl SIU),1036.00,Agency Staff,1718P05_CR00591,49877
Sandwell Metropolitan Borough Council,http://www.sandwell.gov.uk/info/200202/performance_and_spending/1079/payments_over_500,01-Aug-17,Resources (Inc SIU),HCL SOCIAL CARE LIMITED,Assistant Chief Executive (Excl SIU),1258.00,Agency Staff,1718P05_CR00592,49877
Sandwell Metropolitan Borough Council,http://www.sandwell.gov.uk/info/200202/performance_and_spending/1079/payments_over_500,01-Aug-17,Resources (Inc SIU),HCL SOCIAL CARE LIMITED,Assistant Chief Executive (Excl SIU),1609.50,Agency Staff,1718P05_CR00593,49877
Sandwell Metropolitan Borough Council,http://www.sandwell.gov.uk/info/200202/performance_and_spending/1079/payments_over_500,01-Aug-17,Resources (Inc SIU),HCL SOCIAL CARE LIMITED,Assistant Chief Executive (Excl SIU),1350.50,Agency Staff,1718P05_CR00594,49877
Sandwell Metropolitan Borough Council,http://www.sandwell.gov.uk/info/200202/performance_and_spending/1079/payments_over_500,01-Aug-17,Resources (Inc SIU),HCL SOCIAL CARE LIMITED,Assistant Chief Executive (Excl SIU),1794.50,Agency Staff,1718P05_CR00595,49877
Sandwell Metropolitan Borough Council,http://www.sandwell.gov.uk/info/200202/performance_and_spending/1079/payments_over_500,01-Aug-17,Resources (Inc SIU),HCL SOCIAL CARE LIMITED,Assistant Chief Executive (Excl SIU),1609.50,Agency Staff,1718P05_CR00596,49877
Sandwell Metropolitan Borough Council,http://www.sandwell.gov.uk/info/200202/performance_and_spending/1079/payments_over_500,01-Aug-17,Resources (Inc SIU),HCL SOCIAL CARE LIMITED,Assistant Chief Executive (Excl SIU),920.75,Agency Staff,1718P05_CR00597,49877
Sandwell Metropolitan Borough Council,http://www.sandwell.gov.uk/info/200202/performance_and_spending/1079/payments_over_500,01-Aug-17,Resources (Inc SIU),HCL SOCIAL CARE LIMITED,Assistant Chief Executive (Excl SIU),680.00,Agency Staff,1718P05_CR00598,49877
Sandwell Metropolitan Borough Council,http://www.sandwell.gov.uk/info/200202/performance_and_spending/1079/payments_over_500,01-Aug-17,Resources (Inc SIU),HCL SOCIAL CARE LIMITED,Assistant Chief Executive (Excl SIU),661.64,Agency Staff,1718P05_CR00599,49877
Sandwell Metropolitan Borough Council,http://www.sandwell.gov.uk/info/200202/performance_and_spending/1079/payments_over_500,01-Aug-17,Resources (Inc SIU),HCL SOCIAL CARE LIMITED,Assistant Chief Executive (Excl SIU),627.71,Agency Staff,1718P05_CR00600,49877
Sandwell Metropolitan Borough Council,http://www.sandwell.gov.uk/info/200202/performance_and_spending/1079/payments_over_500,01-Aug-17,Resources (Inc SIU),HCL SOCIAL CARE LIMITED,Assistant Chief Executive (Excl SIU),1020.00,Agency Staff,1718P05_CR00601,49877
Sandwell Metropolitan Borough Council,http://www.sandwell.gov.uk/info/200202/performance_and_spending/1079/payments_over_500,01-Aug-17,Resources (Inc SIU),HCL SOCIAL CARE LIMITED,Assistant Chief Executive (Excl SIU),1258.00,Agency Staff,1718P05_CR00602,49877
Sandwell Metropolitan Borough Council,http://www.sandwell.gov.uk/info/200202/performance_and_spending/1079/payments_over_500,01-Aug-17,Resources (Inc SIU),HCL SOCIAL CARE LIMITED,Assistant Chief Executive (Excl SIU),1609.50,Agency Staff,1718P05_CR00603,49877
Sandwell Metropolitan Borough Council,http://www.sandwell.gov.uk/info/200202/performance_and_spending/1079/payments_over_500,01-Aug-17,Resources (Inc SIU),HCL SOCIAL CARE LIMITED,Assistant Chief Executive (Excl SIU),1258.00,Agency Staff,1718P05_CR00604,49877
Sandwell Metropolitan Borough Council,http://www.sandwell.gov.uk/info/200202/performance_and_spending/1079/payments_over_500,01-Aug-17,Resources (Inc SIU),HCL SOCIAL CARE LIMITED,Assistant Chief Executive (Excl SIU),1000.94,Agency Staff,1718P05_CR00605,49877
Sandwell Metropolitan Borough Council,http://www.sandwell.gov.uk/info/200202/performance_and_spending/1079/payments_over_500,01-Aug-17,Resources (Inc SIU),HCL SOCIAL CARE LIMITED,Assistant Chief Executive (Excl SIU),1443.00,Agency Staff,1718P05_CR00606,49877
Sandwell Metropolitan Borough Council,http://www.sandwell.gov.uk/info/200202/performance_and_spending/1079/payments_over_500,01-Aug-17,Resources (Inc SIU),HCL SOCIAL CARE LIMITED,Assistant Chief Executive (Excl SIU),1702.00,Agency Staff,1718P05_CR00607,49877
Sandwell Metropolitan Borough Council,http://www.sandwell.gov.uk/info/200202/performance_and_spending/1079/payments_over_500,01-Aug-17,Resources (Inc SIU),HCL SOCIAL CARE LIMITED,Assistant Chief Executive (Excl SIU),957.00,Agency Staff,1718P05_CR00608,49877
Sandwell Metropolitan Borough Council,http://www.sandwell.gov.uk/info/200202/performance_and_spending/1079/payments_over_500,01-Aug-17,Resources (Inc SIU),HCL SOCIAL CARE LIMITED,Assistant Chief Executive (Excl SIU),983.97,Agency Staff,1718P05_CR00609,49877
Sandwell Metropolitan Borough Council,http://www.sandwell.gov.uk/info/200202/performance_and_spending/1079/payments_over_500,01-Aug-17,Resources (Inc SIU),HCL SOCIAL CARE LIMITED,Assistant Chief Executive (Excl SIU),1609.50,Agency Staff,1718P05_CR00610,49877
Sandwell Metropolitan Borough Council,http://www.sandwell.gov.uk/info/200202/performance_and_spending/1079/payments_over_500,01-Aug-17,Resources (Inc SIU),HCL SOCIAL CARE LIMITED,Assistant Chief Executive (Excl SIU),1332.00,Agency Staff,1718P05_CR00611,49877
Sandwell Metropolitan Borough Council,http://www.sandwell.gov.uk/info/200202/performance_and_spending/1079/payments_over_500,01-Aug-17,Resources (Inc SIU),HCL SOCIAL CARE LIMITED,Assistant Chief Executive (Excl SIU),1350.50,Agency Staff,1718P05_CR00612,49877
Sandwell Metropolitan Borough Council,http://www.sandwell.gov.uk/info/200202/performance_and_spending/1079/payments_over_500,01-Aug-17,Resources (Inc SIU),HCL SOCIAL CARE LIMITED,Assistant Chief Executive (Excl SIU),1051.25,Agency Staff,1718P05_CR00613,49877
Sandwell Metropolitan Borough Council,http://www.sandwell.gov.uk/info/200202/performance_and_spending/1079/payments_over_500,01-Aug-17,Resources (Inc SIU),HCL SOCIAL CARE LIMITED,Assistant Chief Executive (Excl SIU),1255.41,Agency Staff,1718P05_CR00614,49877
Sandwell Metropolitan Borough Council,http://www.sandwell.gov.uk/info/200202/performance_and_spending/1079/payments_over_500,01-Aug-17,Resources (Inc SIU),HCL SOCIAL CARE LIMITED,Assistant Chief Executive (Excl SIU),1255.41,Agency Staff,1718P05_CR00615,49877
Sandwell Metropolitan Borough Council,http://www.sandwell.gov.uk/info/200202/performance_and_spending/1079/payments_over_500,01-Aug-17,Resources (Inc SIU),HCL SOCIAL CARE LIMITED,Assistant Chief Executive (Excl SIU),1258.00,Agency Staff,1718P05_CR00616,49877
Sandwell Metropolitan Borough Council,http://www.sandwell.gov.uk/info/200202/performance_and_spending/1079/payments_over_500,01-Aug-17,Resources (Inc SIU),HCL SOCIAL CARE LIMITED,Assistant Chief Executive (Excl SIU),1204.52,Agency Staff,1718P05_CR00617,49877
Sandwell Metropolitan Borough Council,http://www.sandwell.gov.uk/info/200202/performance_and_spending/1079/payments_over_500,01-Aug-17,Resources (Inc SIU),HCL SOCIAL CARE LIMITED,Assistant Chief Executive (Excl SIU),2414.25,Agency Staff,1718P05_CR00618,49877
Sandwell Metropolitan Borough Council,http://www.sandwell.gov.uk/info/200202/performance_and_spending/1079/payments_over_500,01-Aug-17,Resources (Inc SIU),HCL SOCIAL CARE LIMITED,Assistant Chief Executive (Excl SIU),1761.75,Agency Staff,1718P05_CR00619,49877
Sandwell Metropolitan Borough Council,http://www.sandwell.gov.uk/info/200202/performance_and_spending/1079/payments_over_500,01-Aug-17,Resources (Inc SIU),HCL SOCIAL CARE LIMITED,Assistant Chief Executive (Excl SIU),581.45,Agency Staff,1718P05_CR00620,49877
Sandwell Metropolitan Borough Council,http://www.sandwell.gov.uk/info/200202/performance_and_spending/1079/payments_over_500,01-Aug-17,Resources (Inc SIU),HCL SOCIAL CARE LIMITED,Assistant Chief Executive (Excl SIU),1794.50,Agency Staff,1718P05_CR00621,49877
Sandwell Metropolitan Borough Council,http://www.sandwell.gov.uk/info/200202/performance_and_spending/1079/payments_over_500,01-Aug-17,Resources (Inc SIU),HCL SOCIAL CARE LIMITED,Assistant Chief Executive (Excl SIU),1109.25,Agency Staff,1718P05_CR00622,49877
Sandwell Metropolitan Borough Council,http://www.sandwell.gov.uk/info/200202/performance_and_spending/1079/payments_over_500,01-Aug-17,Resources (Inc SIU),HCL SOCIAL CARE LIMITED,Assistant Chief Executive (Excl SIU),644.67,Agency Staff,1718P05_CR00623,49877
Sandwell Metropolitan Borough Council,http://www.sandwell.gov.uk/info/200202/performance_and_spending/1079/payments_over_500,01-Aug-17,Resources (Inc SIU),HCL SOCIAL CARE LIMITED,Assistant Chief Executive (Excl SIU),1036.00,Agency Staff,1718P05_CR00624,49877
Sandwell Metropolitan Borough Council,http://www.sandwell.gov.uk/info/200202/performance_and_spending/1079/payments_over_500,01-Aug-17,Resources (Inc SIU),HCL SOCIAL CARE LIMITED,Assistant Chief Executive (Excl SIU),1073.00,Agency Staff,1718P05_CR00625,49877
Sandwell Metropolitan Borough Council,http://www.sandwell.gov.uk/info/200202/performance_and_spending/1079/payments_over_500,01-Aug-17,Resources (Inc SIU),HCL SOCIAL CARE LIMITED,Assistant Chief Executive (Excl SIU),742.96,Agency Staff,1718P05_CR00626,49877
Sandwell Metropolitan Borough Council,http://www.sandwell.gov.uk/info/200202/performance_and_spending/1079/payments_over_500,01-Aug-17,Resources (Inc SIU),HCL SOCIAL CARE LIMITED,Assistant Chief Executive (Excl SIU),1255.41,Agency Staff,1718P05_CR00627,49877
Sandwell Metropolitan Borough Council,http://www.sandwell.gov.uk/info/200202/performance_and_spending/1079/payments_over_500,01-Aug-17,Resources (Inc SIU),HCL SOCIAL CARE LIMITED,Assistant Chief Executive (Excl SIU),897.00,Agency Staff,1718P05_CR00628,49877
Sandwell Metropolitan Borough Council,http://www.sandwell.gov.uk/info/200202/performance_and_spending/1079/payments_over_500,07-Aug-17,Resources (Inc SIU),HCL SOCIAL CARE LIMITED,Assistant Chief Executive (Excl SIU),1258.00,Agency Staff,1718P05_CR00629,49877
Sandwell Metropolitan Borough Council,http://www.sandwell.gov.uk/info/200202/performance_and_spending/1079/payments_over_500,07-Aug-17,Resources (Inc SIU),HCL SOCIAL CARE LIMITED,Assistant Chief Executive (Excl SIU),1255.41,Agency Staff,1718P05_CR00630,49877
Sandwell Metropolitan Borough Council,http://www.sandwell.gov.uk/info/200202/performance_and_spending/1079/payments_over_500,07-Aug-17,Resources (Inc SIU),HCL SOCIAL CARE LIMITED,Assistant Chief Executive (Excl SIU),1702.00,Agency Staff,1718P05_CR00631,49877
Sandwell Metropolitan Borough Council,http://www.sandwell.gov.uk/info/200202/performance_and_spending/1079/payments_over_500,01-Aug-17,Resources (Inc SIU),HCL SOCIAL CARE LIMITED,Assistant Chief Executive (Excl SIU),1258.00,Agency Staff,1718P05_CR00632,49877
Sandwell Metropolitan Borough Council,http://www.sandwell.gov.uk/info/200202/performance_and_spending/1079/payments_over_500,07-Aug-17,Resources (Inc SIU),HCL SOCIAL CARE LIMITED,Assistant Chief Executive (Excl SIU),1258.00,Agency Staff,1718P05_CR00633,49877
Sandwell Metropolitan Borough Council,http://www.sandwell.gov.uk/info/200202/performance_and_spending/1079/payments_over_500,07-Aug-17,Resources (Inc SIU),HCL SOCIAL CARE LIMITED,Assistant Chief Executive (Excl SIU),1255.41,Agency Staff,1718P05_CR00634,49877
Sandwell Metropolitan Borough Council,http://www.sandwell.gov.uk/info/200202/performance_and_spending/1079/payments_over_500,07-Aug-17,Resources (Inc SIU),HCL SOCIAL CARE LIMITED,Assistant Chief Executive (Excl SIU),1255.41,Agency Staff,1718P05_CR00635,49877
Sandwell Metropolitan Borough Council,http://www.sandwell.gov.uk/info/200202/performance_and_spending/1079/payments_over_500,01-Aug-17,Resources (Inc SIU),HCL SOCIAL CARE LIMITED,Assistant Chief Executive (Excl SIU),1036.00,Agency Staff,1718P05_CR00636,49877
Sandwell Metropolitan Borough Council,http://www.sandwell.gov.uk/info/200202/performance_and_spending/1079/payments_over_500,01-Aug-17,Resources (Inc SIU),HCL SOCIAL CARE LIMITED,Assistant Chief Executive (Excl SIU),1238.45,Agency Staff,1718P05_CR00637,49877
Sandwell Metropolitan Borough Council,http://www.sandwell.gov.uk/info/200202/performance_and_spending/1079/payments_over_500,07-Aug-17,Resources (Inc SIU),HCL SOCIAL CARE LIMITED,Assistant Chief Executive (Excl SIU),978.75,Agency Staff,1718P05_CR00638,49877
Sandwell Metropolitan Borough Council,http://www.sandwell.gov.uk/info/200202/performance_and_spending/1079/payments_over_500,07-Aug-17,Resources (Inc SIU),HCL SOCIAL CARE LIMITED,Assistant Chief Executive (Excl SIU),1258.00,Agency Staff,1718P05_CR00639,49877
Sandwell Metropolitan Borough Council,http://www.sandwell.gov.uk/info/200202/performance_and_spending/1079/payments_over_500,07-Aug-17,Resources (Inc SIU),HCL SOCIAL CARE LIMITED,Assistant Chief Executive (Excl SIU),1794.50,Agency Staff,1718P05_CR00640,49877
Sandwell Metropolitan Borough Council,http://www.sandwell.gov.uk/info/200202/performance_and_spending/1079/payments_over_500,07-Aug-17,Resources (Inc SIU),HCL SOCIAL CARE LIMITED,Assistant Chief Executive (Excl SIU),1443.00,Agency Staff,1718P05_CR00641,49877
Sandwell Metropolitan Borough Council,http://www.sandwell.gov.uk/info/200202/performance_and_spending/1079/payments_over_500,07-Aug-17,Resources (Inc SIU),HCL SOCIAL CARE LIMITED,Assistant Chief Executive (Excl SIU),879.00,Agency Staff,1718P05_CR00642,49877
Sandwell Metropolitan Borough Council,http://www.sandwell.gov.uk/info/200202/performance_and_spending/1079/payments_over_500,07-Aug-17,Resources (Inc SIU),HCL SOCIAL CARE LIMITED,Assistant Chief Executive (Excl SIU),739.50,Agency Staff,1718P05_CR00643,49877
Sandwell Metropolitan Borough Council,http://www.sandwell.gov.uk/info/200202/performance_and_spending/1079/payments_over_500,09-Aug-17,Resources (Inc SIU),HCL SOCIAL CARE LIMITED,Assistant Chief Executive (Excl SIU),1255.41,Agency Staff,1718P05_CR00644,49877
Sandwell Metropolitan Borough Council,http://www.sandwell.gov.uk/info/200202/performance_and_spending/1079/payments_over_500,09-Aug-17,Resources (Inc SIU),HCL SOCIAL CARE LIMITED,Assistant Chief Executive (Excl SIU),1017.90,Agency Staff,1718P05_CR00645,49877
Sandwell Metropolitan Borough Council,http://www.sandwell.gov.uk/info/200202/performance_and_spending/1079/payments_over_500,10-Aug-17,Resources (Inc SIU),HCL SOCIAL CARE LIMITED,Assistant Chief Executive (Excl SIU),1593.59,Agency Staff,1718P05_CR00646,49877
Sandwell Metropolitan Borough Council,http://www.sandwell.gov.uk/info/200202/performance_and_spending/1079/payments_over_500,10-Aug-17,Resources (Inc SIU),HCL SOCIAL CARE LIMITED,Assistant Chief Executive (Excl SIU),1258.00,Agency Staff,1718P05_CR00647,49877
Sandwell Metropolitan Borough Council,http://www.sandwell.gov.uk/info/200202/performance_and_spending/1079/payments_over_500,11-Aug-17,Resources (Inc SIU),HCL SOCIAL CARE LIMITED,Assistant Chief Executive (Excl SIU),1000.94,Agency Staff,1718P05_CR00648,49877
Sandwell Metropolitan Borough Council,http://www.sandwell.gov.uk/info/200202/performance_and_spending/1079/payments_over_500,11-Aug-17,Resources (Inc SIU),HCL SOCIAL CARE LIMITED,Assistant Chief Executive (Excl SIU),1255.41,Agency Staff,1718P05_CR00649,49877
Sandwell Metropolitan Borough Council,http://www.sandwell.gov.uk/info/200202/performance_and_spending/1079/payments_over_500,11-Aug-17,Resources (Inc SIU),HCL SOCIAL CARE LIMITED,Assistant Chief Executive (Excl SIU),1332.00,Agency Staff,1718P05_CR00650,49877
Sandwell Metropolitan Borough Council,http://www.sandwell.gov.uk/info/200202/performance_and_spending/1079/payments_over_500,11-Aug-17,Resources (Inc SIU),HCL SOCIAL CARE LIMITED,Assistant Chief Executive (Excl SIU),1258.00,Agency Staff,1718P05_CR00651,49877
Sandwell Metropolitan Borough Council,http://www.sandwell.gov.uk/info/200202/performance_and_spending/1079/payments_over_500,11-Aug-17,Resources (Inc SIU),HCL SOCIAL CARE LIMITED,Assistant Chief Executive (Excl SIU),1443.00,Agency Staff,1718P05_CR00652,49877
Sandwell Metropolitan Borough Council,http://www.sandwell.gov.uk/info/200202/performance_and_spending/1079/payments_over_500,11-Aug-17,Resources (Inc SIU),HCL SOCIAL CARE LIMITED,Assistant Chief Executive (Excl SIU),1255.41,Agency Staff,1718P05_CR00653,49877
Sandwell Metropolitan Borough Council,http://www.sandwell.gov.uk/info/200202/performance_and_spending/1079/payments_over_500,11-Aug-17,Resources (Inc SIU),HCL SOCIAL CARE LIMITED,Assistant Chief Executive (Excl SIU),1258.00,Agency Staff,1718P05_CR00654,49877
Sandwell Metropolitan Borough Council,http://www.sandwell.gov.uk/info/200202/performance_and_spending/1079/payments_over_500,11-Aug-17,Resources (Inc SIU),HCL SOCIAL CARE LIMITED,Assistant Chief Executive (Excl SIU),797.50,Agency Staff,1718P05_CR00655,49877
Sandwell Metropolitan Borough Council,http://www.sandwell.gov.uk/info/200202/performance_and_spending/1079/payments_over_500,11-Aug-17,Resources (Inc SIU),HCL SOCIAL CARE LIMITED,Assistant Chief Executive (Excl SIU),1609.50,Agency Staff,1718P05_CR00656,49877
Sandwell Metropolitan Borough Council,http://www.sandwell.gov.uk/info/200202/performance_and_spending/1079/payments_over_500,11-Aug-17,Resources (Inc SIU),HCL SOCIAL CARE LIMITED,Assistant Chief Executive (Excl SIU),1258.00,Agency Staff,1718P05_CR00657,49877
Sandwell Metropolitan Borough Council,http://www.sandwell.gov.uk/info/200202/performance_and_spending/1079/payments_over_500,11-Aug-17,Resources (Inc SIU),HCL SOCIAL CARE LIMITED,Assistant Chief Executive (Excl SIU),1332.00,Agency Staff,1718P05_CR00658,49877
Sandwell Metropolitan Borough Council,http://www.sandwell.gov.uk/info/200202/performance_and_spending/1079/payments_over_500,11-Aug-17,Resources (Inc SIU),HCL SOCIAL CARE LIMITED,Assistant Chief Executive (Excl SIU),1255.41,Agency Staff,1718P05_CR00659,49877
Sandwell Metropolitan Borough Council,http://www.sandwell.gov.uk/info/200202/performance_and_spending/1079/payments_over_500,11-Aug-17,Resources (Inc SIU),HCL SOCIAL CARE LIMITED,Assistant Chief Executive (Excl SIU),1794.50,Agency Staff,1718P05_CR00660,49877
Sandwell Metropolitan Borough Council,http://www.sandwell.gov.uk/info/200202/performance_and_spending/1079/payments_over_500,11-Aug-17,Resources (Inc SIU),HCL SOCIAL CARE LIMITED,Assistant Chief Executive (Excl SIU),1702.00,Agency Staff,1718P05_CR00661,49877
Sandwell Metropolitan Borough Council,http://www.sandwell.gov.uk/info/200202/performance_and_spending/1079/payments_over_500,11-Aug-17,Resources (Inc SIU),HCL SOCIAL CARE LIMITED,Assistant Chief Executive (Excl SIU),1068.00,Agency Staff,1718P05_CR00662,49877
Sandwell Metropolitan Borough Council,http://www.sandwell.gov.uk/info/200202/performance_and_spending/1079/payments_over_500,11-Aug-17,Resources (Inc SIU),HCL SOCIAL CARE LIMITED,Assistant Chief Executive (Excl SIU),1255.41,Agency Staff,1718P05_CR00663,49877
Sandwell Metropolitan Borough Council,http://www.sandwell.gov.uk/info/200202/performance_and_spending/1079/payments_over_500,01-Aug-17,Resources (Inc SIU),HCL SOCIAL CARE LIMITED,Assistant Chief Executive (Excl SIU),510.00,Agency Staff,1718P05_CR00664,49877
Sandwell Metropolitan Borough Council,http://www.sandwell.gov.uk/info/200202/performance_and_spending/1079/payments_over_500,01-Aug-17,Resources (Inc SIU),HCL SOCIAL CARE LIMITED,Assistant Chief Executive (Excl SIU),1076.75,Agency Staff,1718P05_CR00665,49877
Sandwell Metropolitan Borough Council,http://www.sandwell.gov.uk/info/200202/performance_and_spending/1079/payments_over_500,01-Aug-17,Resources (Inc SIU),HCL SOCIAL CARE LIMITED,Assistant Chief Executive (Excl SIU),1255.41,Agency Staff,1718P05_CR00666,49877
Sandwell Metropolitan Borough Council,http://www.sandwell.gov.uk/info/200202/performance_and_spending/1079/payments_over_500,01-Aug-17,Resources (Inc SIU),HCL SOCIAL CARE LIMITED,Assistant Chief Executive (Excl SIU),1036.00,Agency Staff,1718P05_CR00667,49877
Sandwell Metropolitan Borough Council,http://www.sandwell.gov.uk/info/200202/performance_and_spending/1079/payments_over_500,01-Aug-17,Resources (Inc SIU),HCL SOCIAL CARE LIMITED,Assistant Chief Executive (Excl SIU),1258.00,Agency Staff,1718P05_CR00668,49877
Sandwell Metropolitan Borough Council,http://www.sandwell.gov.uk/info/200202/performance_and_spending/1079/payments_over_500,01-Aug-17,Resources (Inc SIU),HCL SOCIAL CARE LIMITED,Assistant Chief Executive (Excl SIU),1255.41,Agency Staff,1718P05_CR00669,49877
Sandwell Metropolitan Borough Council,http://www.sandwell.gov.uk/info/200202/performance_and_spending/1079/payments_over_500,01-Aug-17,Resources (Inc SIU),HAYS SPECIALIST RECRUITMENT LTD,Assistant Chief Executive (Excl SIU),1000.00,Agency Staff,1718P05_CR00670,80349
Sandwell Metropolitan Borough Council,http://www.sandwell.gov.uk/info/200202/performance_and_spending/1079/payments_over_500,01-Aug-17,Resources (Inc SIU),HAYS SPECIALIST RECRUITMENT LTD,Assistant Chief Executive (Excl SIU),1850.00,Agency Staff,1718P05_CR00671,80349
Sandwell Metropolitan Borough Council,http://www.sandwell.gov.uk/info/200202/performance_and_spending/1079/payments_over_500,01-Aug-17,Resources (Inc SIU),HAYS SPECIALIST RECRUITMENT LTD,Assistant Chief Executive (Excl SIU),2000.00,Agency Staff,1718P05_CR00672,80349
Sandwell Metropolitan Borough Council,http://www.sandwell.gov.uk/info/200202/performance_and_spending/1079/payments_over_500,01-Aug-17,Resources (Inc SIU),HAYS SPECIALIST RECRUITMENT LTD,Assistant Chief Executive (Excl SIU),2017.98,Agency Staff,1718P05_CR00673,80349
Sandwell Metropolitan Borough Council,http://www.sandwell.gov.uk/info/200202/performance_and_spending/1079/payments_over_500,04-Aug-17,Resources (Inc SIU),HAYS SPECIALIST RECRUITMENT LTD,Assistant Chief Executive (Excl SIU),2050.00,Agency Staff,1718P05_CR00674,80349
Sandwell Metropolitan Borough Council,http://www.sandwell.gov.uk/info/200202/performance_and_spending/1079/payments_over_500,04-Aug-17,Resources (Inc SIU),HAYS SPECIALIST RECRUITMENT LTD,Assistant Chief Executive (Excl SIU),2050.00,Agency Staff,1718P05_CR00675,80349
Sandwell Metropolitan Borough Council,http://www.sandwell.gov.uk/info/200202/performance_and_spending/1079/payments_over_500,04-Aug-17,Resources (Inc SIU),HAYS SPECIALIST RECRUITMENT LTD,Assistant Chief Executive (Excl SIU),2050.00,Agency Staff,1718P05_CR00676,80349
Sandwell Metropolitan Borough Council,http://www.sandwell.gov.uk/info/200202/performance_and_spending/1079/payments_over_500,04-Aug-17,Resources (Inc SIU),HAYS SPECIALIST RECRUITMENT LTD,Assistant Chief Executive (Excl SIU),2050.00,Agency Staff,1718P05_CR00677,80349
Sandwell Metropolitan Borough Council,http://www.sandwell.gov.uk/info/200202/performance_and_spending/1079/payments_over_500,04-Aug-17,Resources (Inc SIU),HAYS SPECIALIST RECRUITMENT LTD,Assistant Chief Executive (Excl SIU),2050.00,Agency Staff,1718P05_CR00678,80349
Sandwell Metropolitan Borough Council,http://www.sandwell.gov.uk/info/200202/performance_and_spending/1079/payments_over_500,01-Aug-17,Resources (Inc SIU),HAYS SPECIALIST RECRUITMENT LTD,Assistant Chief Executive (Excl SIU),650.00,Agency Staff,1718P05_CR00679,80349
Sandwell Metropolitan Borough Council,http://www.sandwell.gov.uk/info/200202/performance_and_spending/1079/payments_over_500,01-Aug-17,Resources (Inc SIU),HAYS SPECIALIST RECRUITMENT LTD,Assistant Chief Executive (Excl SIU),700.00,Agency Staff,1718P05_CR00680,80349
Sandwell Metropolitan Borough Council,http://www.sandwell.gov.uk/info/200202/performance_and_spending/1079/payments_over_500,02-Aug-17,Resources (Inc SIU),HAYS SPECIALIST RECRUITMENT LTD,Assistant Chief Executive (Excl SIU),520.00,Agency Staff,1718P05_CR00681,80349
Sandwell Metropolitan Borough Council,http://www.sandwell.gov.uk/info/200202/performance_and_spending/1079/payments_over_500,01-Aug-17,Resources (Inc SIU),HAYS SPECIALIST RECRUITMENT LTD,Assistant Chief Executive (Excl SIU),2050.00,Agency Staff,1718P05_CR00682,80349
Sandwell Metropolitan Borough Council,http://www.sandwell.gov.uk/info/200202/performance_and_spending/1079/payments_over_500,02-Aug-17,Resources (Inc SIU),HAYS SPECIALIST RECRUITMENT LTD,Assistant Chief Executive (Excl SIU),1850.00,Agency Staff,1718P05_CR00683,80349
Sandwell Metropolitan Borough Council,http://www.sandwell.gov.uk/info/200202/performance_and_spending/1079/payments_over_500,02-Aug-17,Resources (Inc SIU),HAYS SPECIALIST RECRUITMENT LTD,Assistant Chief Executive (Excl SIU),2000.00,Agency Staff,1718P05_CR00684,80349
Sandwell Metropolitan Borough Council,http://www.sandwell.gov.uk/info/200202/performance_and_spending/1079/payments_over_500,04-Aug-17,Resources (Inc SIU),HAYS SPECIALIST RECRUITMENT LTD,Assistant Chief Executive (Excl SIU),2151.18,Agency Staff,1718P05_CR00685,80349
Sandwell Metropolitan Borough Council,http://www.sandwell.gov.uk/info/200202/performance_and_spending/1079/payments_over_500,04-Aug-17,Resources (Inc SIU),HAYS SPECIALIST RECRUITMENT LTD,Assistant Chief Executive (Excl SIU),560.00,Agency Staff,1718P05_CR00686,80349
Sandwell Metropolitan Borough Council,http://www.sandwell.gov.uk/info/200202/performance_and_spending/1079/payments_over_500,04-Aug-17,Resources (Inc SIU),HAYS SPECIALIST RECRUITMENT LTD,Assistant Chief Executive (Excl SIU),650.00,Agency Staff,1718P05_CR00687,80349
Sandwell Metropolitan Borough Council,http://www.sandwell.gov.uk/info/200202/performance_and_spending/1079/payments_over_500,09-Aug-17,Resources (Inc SIU),HAYS SPECIALIST RECRUITMENT LTD,Assistant Chief Executive (Excl SIU),2000.00,Agency Staff,1718P05_CR00688,80349
Sandwell Metropolitan Borough Council,http://www.sandwell.gov.uk/info/200202/performance_and_spending/1079/payments_over_500,09-Aug-17,Resources (Inc SIU),HAYS SPECIALIST RECRUITMENT LTD,Assistant Chief Executive (Excl SIU),1850.00,Agency Staff,1718P05_CR00689,80349
Sandwell Metropolitan Borough Council,http://www.sandwell.gov.uk/info/200202/performance_and_spending/1079/payments_over_500,18-Aug-17,Resources (Inc SIU),HAYS SPECIALIST RECRUITMENT LTD,Assistant Chief Executive (Excl SIU),1904.76,Agency Staff,1718P05_CR00690,80349
Sandwell Metropolitan Borough Council,http://www.sandwell.gov.uk/info/200202/performance_and_spending/1079/payments_over_500,18-Aug-17,Resources (Inc SIU),HAYS SPECIALIST RECRUITMENT LTD,Assistant Chief Executive (Excl SIU),700.00,Agency Staff,1718P05_CR00691,80349
Sandwell Metropolitan Borough Council,http://www.sandwell.gov.uk/info/200202/performance_and_spending/1079/payments_over_500,18-Aug-17,Resources (Inc SIU),HAYS SPECIALIST RECRUITMENT LTD,Assistant Chief Executive (Excl SIU),520.00,Agency Staff,1718P05_CR00692,80349
Sandwell Metropolitan Borough Council,http://www.sandwell.gov.uk/info/200202/performance_and_spending/1079/payments_over_500,07-Aug-17,Resources (Inc SIU),HAYS SPECIALIST RECRUITMENT LTD,Assistant Chief Executive (Excl SIU),1250.00,Agency Staff,1718P05_CR00693,80349
Sandwell Metropolitan Borough Council,http://www.sandwell.gov.uk/info/200202/performance_and_spending/1079/payments_over_500,07-Aug-17,Resources (Inc SIU),HAYS SPECIALIST RECRUITMENT LTD,Assistant Chief Executive (Excl SIU),1850.00,Agency Staff,1718P05_CR00694,80349
Sandwell Metropolitan Borough Council,http://www.sandwell.gov.uk/info/200202/performance_and_spending/1079/payments_over_500,18-Aug-17,Resources (Inc SIU),HAYS SPECIALIST RECRUITMENT LTD,Assistant Chief Executive (Excl SIU),1981.35,Agency Staff,1718P05_CR00695,80349
Sandwell Metropolitan Borough Council,http://www.sandwell.gov.uk/info/200202/performance_and_spending/1079/payments_over_500,01-Aug-17,Resources (Inc SIU),GENESIS EUROPRINT LTD,Assistant Chief Executive (Excl SIU),633.00,"Printing, Stationery & General Office Expenses",1718P05_CR00696,01742696
Sandwell Metropolitan Borough Council,http://www.sandwell.gov.uk/info/200202/performance_and_spending/1079/payments_over_500,01-Aug-17,Resources (Inc SIU),FIRST PERSONNEL GROUP LIMITED,Assistant Chief Executive (Excl SIU),4442.36,Agency Staff,1718P05_CR00697,34153
Sandwell Metropolitan Borough Council,http://www.sandwell.gov.uk/info/200202/performance_and_spending/1079/payments_over_500,01-Aug-17,Resources (Inc SIU),FIRST PERSONNEL GROUP LIMITED,Assistant Chief Executive (Excl SIU),4263.38,Agency Staff,1718P05_CR00698,34153
Sandwell Metropolitan Borough Council,http://www.sandwell.gov.uk/info/200202/performance_and_spending/1079/payments_over_500,01-Aug-17,Resources (Inc SIU),ENTRUST SOCIAL CARE LTD,Assistant Chief Executive (Excl SIU),4744.21,Agency Staff,1718P05_CR00699,95900
Sandwell Metropolitan Borough Council,http://www.sandwell.gov.uk/info/200202/performance_and_spending/1079/payments_over_500,01-Aug-17,Resources (Inc SIU),ENTRUST SOCIAL CARE LTD,Assistant Chief Executive (Excl SIU),5297.42,Agency Staff,1718P05_CR00700,95900
Sandwell Metropolitan Borough Council,http://www.sandwell.gov.uk/info/200202/performance_and_spending/1079/payments_over_500,01-Aug-17,Resources (Inc SIU),ENTRUST SOCIAL CARE LTD,Assistant Chief Executive (Excl SIU),4228.49,Agency Staff,1718P05_CR00701,95900
Sandwell Metropolitan Borough Council,http://www.sandwell.gov.uk/info/200202/performance_and_spending/1079/payments_over_500,01-Aug-17,Resources (Inc SIU),ENTRUST SOCIAL CARE LTD,Assistant Chief Executive (Excl SIU),2616.45,Agency Staff,1718P05_CR00702,95900
Sandwell Metropolitan Borough Council,http://www.sandwell.gov.uk/info/200202/performance_and_spending/1079/payments_over_500,06-Aug-17,Resources (Inc SIU),ENTRUST SOCIAL CARE LTD,Assistant Chief Executive (Excl SIU),2432.55,Agency Staff,1718P05_CR00703,95900
Sandwell Metropolitan Borough Council,http://www.sandwell.gov.uk/info/200202/performance_and_spending/1079/payments_over_500,01-Aug-17,Resources (Inc SIU),EDEN BROWN LIMITED,Assistant Chief Executive (Excl SIU),1071.15,Agency Staff,1718P05_CR00704,47241
Sandwell Metropolitan Borough Council,http://www.sandwell.gov.uk/info/200202/performance_and_spending/1079/payments_over_500,01-Aug-17,Resources (Inc SIU),EDEN BROWN LIMITED,Assistant Chief Executive (Excl SIU),1256.15,Agency Staff,1718P05_CR00705,47241
Sandwell Metropolitan Borough Council,http://www.sandwell.gov.uk/info/200202/performance_and_spending/1079/payments_over_500,01-Aug-17,Resources (Inc SIU),EDEN BROWN LIMITED,Assistant Chief Executive (Excl SIU),1256.15,Agency Staff,1718P05_CR00706,47241
Sandwell Metropolitan Borough Council,http://www.sandwell.gov.uk/info/200202/performance_and_spending/1079/payments_over_500,01-Aug-17,Resources (Inc SIU),EDEN BROWN LIMITED,Assistant Chief Executive (Excl SIU),1274.26,Agency Staff,1718P05_CR00707,47241
Sandwell Metropolitan Borough Council,http://www.sandwell.gov.uk/info/200202/performance_and_spending/1079/payments_over_500,01-Aug-17,Resources (Inc SIU),EDEN BROWN LIMITED,Assistant Chief Executive (Excl SIU),1256.15,Agency Staff,1718P05_CR00708,47241
Sandwell Metropolitan Borough Council,http://www.sandwell.gov.uk/info/200202/performance_and_spending/1079/payments_over_500,01-Aug-17,Resources (Inc SIU),EDEN BROWN LIMITED,Assistant Chief Executive (Excl SIU),1607.65,Agency Staff,1718P05_CR00709,47241
Sandwell Metropolitan Borough Council,http://www.sandwell.gov.uk/info/200202/performance_and_spending/1079/payments_over_500,01-Aug-17,Resources (Inc SIU),EDEN BROWN LIMITED,Assistant Chief Executive (Excl SIU),1256.15,Agency Staff,1718P05_CR00710,47241
Sandwell Metropolitan Borough Council,http://www.sandwell.gov.uk/info/200202/performance_and_spending/1079/payments_over_500,01-Aug-17,Resources (Inc SIU),EDEN BROWN LIMITED,Assistant Chief Executive (Excl SIU),1253.56,Agency Staff,1718P05_CR00711,47241
Sandwell Metropolitan Borough Council,http://www.sandwell.gov.uk/info/200202/performance_and_spending/1079/payments_over_500,01-Aug-17,Resources (Inc SIU),EDEN BROWN LIMITED,Assistant Chief Executive (Excl SIU),1253.56,Agency Staff,1718P05_CR00712,47241
Sandwell Metropolitan Borough Council,http://www.sandwell.gov.uk/info/200202/performance_and_spending/1079/payments_over_500,02-Aug-17,Resources (Inc SIU),EDEN BROWN LIMITED,Assistant Chief Executive (Excl SIU),1253.56,Agency Staff,1718P05_CR00713,47241
Sandwell Metropolitan Borough Council,http://www.sandwell.gov.uk/info/200202/performance_and_spending/1079/payments_over_500,02-Aug-17,Resources (Inc SIU),EDEN BROWN LIMITED,Assistant Chief Executive (Excl SIU),1016.40,Agency Staff,1718P05_CR00714,47241
Sandwell Metropolitan Borough Council,http://www.sandwell.gov.uk/info/200202/performance_and_spending/1079/payments_over_500,02-Aug-17,Resources (Inc SIU),EDEN BROWN LIMITED,Assistant Chief Executive (Excl SIU),1256.15,Agency Staff,1718P05_CR00715,47241
Sandwell Metropolitan Borough Council,http://www.sandwell.gov.uk/info/200202/performance_and_spending/1079/payments_over_500,02-Aug-17,Resources (Inc SIU),EDEN BROWN LIMITED,Assistant Chief Executive (Excl SIU),1256.15,Agency Staff,1718P05_CR00716,47241
Sandwell Metropolitan Borough Council,http://www.sandwell.gov.uk/info/200202/performance_and_spending/1079/payments_over_500,02-Aug-17,Resources (Inc SIU),EDEN BROWN LIMITED,Assistant Chief Executive (Excl SIU),1071.15,Agency Staff,1718P05_CR00717,47241
Sandwell Metropolitan Borough Council,http://www.sandwell.gov.uk/info/200202/performance_and_spending/1079/payments_over_500,02-Aug-17,Resources (Inc SIU),EDEN BROWN LIMITED,Assistant Chief Executive (Excl SIU),1256.15,Agency Staff,1718P05_CR00718,47241
Sandwell Metropolitan Borough Council,http://www.sandwell.gov.uk/info/200202/performance_and_spending/1079/payments_over_500,02-Aug-17,Resources (Inc SIU),EDEN BROWN LIMITED,Assistant Chief Executive (Excl SIU),1354.70,Agency Staff,1718P05_CR00719,47241
Sandwell Metropolitan Borough Council,http://www.sandwell.gov.uk/info/200202/performance_and_spending/1079/payments_over_500,02-Aug-17,Resources (Inc SIU),EDEN BROWN LIMITED,Assistant Chief Executive (Excl SIU),1253.56,Agency Staff,1718P05_CR00720,47241
Sandwell Metropolitan Borough Council,http://www.sandwell.gov.uk/info/200202/performance_and_spending/1079/payments_over_500,02-Aug-17,Resources (Inc SIU),EDEN BROWN LIMITED,Assistant Chief Executive (Excl SIU),1477.30,Agency Staff,1718P05_CR00721,47241
Sandwell Metropolitan Borough Council,http://www.sandwell.gov.uk/info/200202/performance_and_spending/1079/payments_over_500,02-Aug-17,Resources (Inc SIU),EDEN BROWN LIMITED,Assistant Chief Executive (Excl SIU),1418.95,Agency Staff,1718P05_CR00722,47241
Sandwell Metropolitan Borough Council,http://www.sandwell.gov.uk/info/200202/performance_and_spending/1079/payments_over_500,10-Aug-17,Resources (Inc SIU),EDEN BROWN LIMITED,Assistant Chief Executive (Excl SIU),762.30,Agency Staff,1718P05_CR00723,47241
Sandwell Metropolitan Borough Council,http://www.sandwell.gov.uk/info/200202/performance_and_spending/1079/payments_over_500,10-Aug-17,Resources (Inc SIU),EDEN BROWN LIMITED,Assistant Chief Executive (Excl SIU),1058.20,Agency Staff,1718P05_CR00724,47241
Sandwell Metropolitan Borough Council,http://www.sandwell.gov.uk/info/200202/performance_and_spending/1079/payments_over_500,10-Aug-17,Resources (Inc SIU),EDEN BROWN LIMITED,Assistant Chief Executive (Excl SIU),1256.15,Agency Staff,1718P05_CR00725,47241
Sandwell Metropolitan Borough Council,http://www.sandwell.gov.uk/info/200202/performance_and_spending/1079/payments_over_500,10-Aug-17,Resources (Inc SIU),EDEN BROWN LIMITED,Assistant Chief Executive (Excl SIU),1085.63,Agency Staff,1718P05_CR00726,47241
Sandwell Metropolitan Borough Council,http://www.sandwell.gov.uk/info/200202/performance_and_spending/1079/payments_over_500,10-Aug-17,Resources (Inc SIU),EDEN BROWN LIMITED,Assistant Chief Executive (Excl SIU),1256.15,Agency Staff,1718P05_CR00727,47241
Sandwell Metropolitan Borough Council,http://www.sandwell.gov.uk/info/200202/performance_and_spending/1079/payments_over_500,10-Aug-17,Resources (Inc SIU),EDEN BROWN LIMITED,Assistant Chief Executive (Excl SIU),1253.56,Agency Staff,1718P05_CR00728,47241
Sandwell Metropolitan Borough Council,http://www.sandwell.gov.uk/info/200202/performance_and_spending/1079/payments_over_500,10-Aug-17,Resources (Inc SIU),EDEN BROWN LIMITED,Assistant Chief Executive (Excl SIU),1607.65,Agency Staff,1718P05_CR00729,47241
Sandwell Metropolitan Borough Council,http://www.sandwell.gov.uk/info/200202/performance_and_spending/1079/payments_over_500,11-Aug-17,Resources (Inc SIU),EDEN BROWN LIMITED,Assistant Chief Executive (Excl SIU),1319.45,Agency Staff,1718P05_CR00730,47241
Sandwell Metropolitan Borough Council,http://www.sandwell.gov.uk/info/200202/performance_and_spending/1079/payments_over_500,16-Aug-17,Resources (Inc SIU),EDEN BROWN LIMITED,Assistant Chief Executive (Excl SIU),1058.20,Agency Staff,1718P05_CR00731,47241
Sandwell Metropolitan Borough Council,http://www.sandwell.gov.uk/info/200202/performance_and_spending/1079/payments_over_500,16-Aug-17,Resources (Inc SIU),EDEN BROWN LIMITED,Assistant Chief Executive (Excl SIU),1256.15,Agency Staff,1718P05_CR00732,47241
